Department,Entity,Date of Payment,Expense Type,Expense Area,Supplier,Transaction Number,Amount,
United Kingdom Atomic Energy Authority,United Kingdom Atomic Energy Authority,28/09/2015,HIRED STAFF,FUSION,RULLION ENGINEERING PERSONNEL LTD,5100327034,344.20,
United Kingdom Atomic Energy Authority,United Kingdom Atomic Energy Authority,07/10/2015,HIRED STAFF,FUSION,TRASYS,5100327316,"8,001.70",
United Kingdom Atomic Energy Authority,United Kingdom Atomic Energy Authority,14/10/2015,HIRED STAFF,FUSION,TRASYS,5100327317,"7,469.87",
United Kingdom Atomic Energy Authority,United Kingdom Atomic Energy Authority,14/10/2015,HIRED STAFF,FUSION,TRASYS,5100327318,"7,652.55",
United Kingdom Atomic Energy Authority,United Kingdom Atomic Energy Authority,12/10/2015,HIRED STAFF,FUSION,BLACK DIAMOND UMBRELLA LTD,5100327708,"4,623.82",
United Kingdom Atomic Energy Authority,United Kingdom Atomic Energy Authority,12/10/2015,HIRED STAFF,FUSION,BLACK DIAMOND UMBRELLA LTD,5100327709,663.08,
United Kingdom Atomic Energy Authority,United Kingdom Atomic Energy Authority,12/10/2015,HIRED STAFF,FUSION,BLACK DIAMOND UMBRELLA LTD,5100327710,851.63,
United Kingdom Atomic Energy Authority,United Kingdom Atomic Energy Authority,12/10/2015,HIRED STAFF,FUSION,BLACK DIAMOND UMBRELLA LTD,5100327711,851.63,
United Kingdom Atomic Energy Authority,United Kingdom Atomic Energy Authority,12/10/2015,HIRED STAFF,FUSION,BLACK DIAMOND UMBRELLA LTD,5100327712,851.63,
United Kingdom Atomic Energy Authority,United Kingdom Atomic Energy Authority,12/10/2015,HIRED STAFF,FUSION,TESSELLA PLC,5100327731,"10,091.03",
United Kingdom Atomic Energy Authority,United Kingdom Atomic Energy Authority,19/10/2015,TRAVEL,SUPPORT SERVICES,Hogg Robinson(Travel)Ltd T/A HRG UK,5100327740,"26,998.40",
United Kingdom Atomic Energy Authority,United Kingdom Atomic Energy Authority,19/10/2015,HIRED STAFF,FUSION,PELICAN SOFTWARE LTD,5100328065,"7,113.10",
United Kingdom Atomic Energy Authority,United Kingdom Atomic Energy Authority,28/09/2015,PROFESSIONAL SERVICES,SUPPORT SERVICES,ONE FIX RECRUITMENT,5100327030,210.00,
United Kingdom Atomic Energy Authority,United Kingdom Atomic Energy Authority,14/10/2015,MATERIALS & SPARES,SUPPORT SERVICES,The Internet Corporation Ltd,5100327319,"4,500.00",
United Kingdom Atomic Energy Authority,United Kingdom Atomic Energy Authority,05/10/2015,MATERIALS & SPARES,SUPPORT SERVICES,SHL GROUP ,5100327359,330.00,
United Kingdom Atomic Energy Authority,United Kingdom Atomic Energy Authority,05/10/2015,PROFESSIONAL SERVICES,SUPPORT SERVICES,THE VALIDIUM GROUP LIMITED,5100327391,"5,688.42",
United Kingdom Atomic Energy Authority,United Kingdom Atomic Energy Authority,12/10/2015,PROFESSIONAL SERVICES,SUPPORT SERVICES,FAITHFUL & GOULD,5100327544,"4,913.92",
United Kingdom Atomic Energy Authority,United Kingdom Atomic Energy Authority,12/10/2015,PROFESSIONAL SERVICES,SUPPORT SERVICES,BDO LLP,5100327590,"2,922.70",
United Kingdom Atomic Energy Authority,United Kingdom Atomic Energy Authority,14/10/2015,TRAINING COURSE FEES,SUPPORT SERVICES,ABINGDON & WITNEY COLLEGE,5100327796,"1,999.00",
United Kingdom Atomic Energy Authority,United Kingdom Atomic Energy Authority,19/10/2015,LEGAL FEES,SUPPORT SERVICES,CATER LEYDON MILLARD LTD,5100328080,"1,400.00",
United Kingdom Atomic Energy Authority,United Kingdom Atomic Energy Authority,19/10/2015,LEGAL FEES,SUPPORT SERVICES,CATER LEYDON MILLARD LTD,5100328084,612.50,
United Kingdom Atomic Energy Authority,United Kingdom Atomic Energy Authority,19/10/2015,LEGAL FEES,SUPPORT SERVICES,CATER LEYDON MILLARD LTD,5100328086,"1,050.00",
United Kingdom Atomic Energy Authority,United Kingdom Atomic Energy Authority,19/10/2015,LEGAL FEES,SUPPORT SERVICES,CATER LEYDON MILLARD LTD,5100328088,52.50,
United Kingdom Atomic Energy Authority,United Kingdom Atomic Energy Authority,19/10/2015,LEGAL FEES,SUPPORT SERVICES,CATER LEYDON MILLARD LTD,5100328089,157.50,
United Kingdom Atomic Energy Authority,United Kingdom Atomic Energy Authority,17/10/2015,TRAINING COURSE FEES,SUPPORT SERVICES,EMPLOYEE EXPENSES,100783816,130.00,
United Kingdom Atomic Energy Authority,United Kingdom Atomic Energy Authority,10/10/2015,PROFESSIONAL SUBSCRIPTION,SUPPORT SERVICES,EMPLOYEE EXPENSES,100783642,167.00,
United Kingdom Atomic Energy Authority,United Kingdom Atomic Energy Authority,07/10/2015,PROFESSIONAL SERVICES,SUPPORT SERVICES,Bottomline Technologies Ltd,5100326379,900.00,
United Kingdom Atomic Energy Authority,United Kingdom Atomic Energy Authority,28/09/2015,PROFESSIONAL SERVICES,SUPPORT SERVICES,Bottomline Technologies Ltd,5100326423,"7,627.50",
United Kingdom Atomic Energy Authority,United Kingdom Atomic Energy Authority,28/09/2015,PROFESSIONAL SERVICES,SUPPORT SERVICES,CSC COMPUTER SERVICES,5100326844,"4,295.61",
United Kingdom Atomic Energy Authority,United Kingdom Atomic Energy Authority,28/09/2015,PERSONAL PROTECTIVE EQUIPMENT,SUPPORT SERVICES,ARCO LTD,5100327004,34.11,
United Kingdom Atomic Energy Authority,United Kingdom Atomic Energy Authority,28/09/2015,INSPECTION SERVICES,SUPPORT SERVICES,ASHDALE ENGINEERING,5100327080,"1,700.00",
United Kingdom Atomic Energy Authority,United Kingdom Atomic Energy Authority,30/09/2015,HEALTH PHYSICS,SUPPORT SERVICES,American Physical Society,5100327125,"10,282.06",
United Kingdom Atomic Energy Authority,United Kingdom Atomic Energy Authority,28/09/2015,BOOKS & PUBLICATIONS,SUPPORT SERVICES,BRITISH STANDARDS INSTITUTION,5100327143,279.00,
United Kingdom Atomic Energy Authority,United Kingdom Atomic Energy Authority,05/10/2015,HEALTH PHYSICS,SUPPORT SERVICES,Capital business Services Ltd,5100327145,785.37,
United Kingdom Atomic Energy Authority,United Kingdom Atomic Energy Authority,05/10/2015,REGULATORY COSTS,SUPPORT SERVICES,PERFORMING RIGHTS SOCIETY LTD,5100327273,"2,127.55",
United Kingdom Atomic Energy Authority,United Kingdom Atomic Energy Authority,07/10/2015,PERSONAL PROTECTIVE EQUIPMENT,SUPPORT SERVICES,ARCO LTD,5100327294,123.32,
United Kingdom Atomic Energy Authority,United Kingdom Atomic Energy Authority,05/10/2015,STATIONERY,SUPPORT SERVICES,LYRECO UK LIMITED,5100327346,150.98,
United Kingdom Atomic Energy Authority,United Kingdom Atomic Energy Authority,05/10/2015,F&F,SUPPORT SERVICES,Broadstock Office Furniture Ltd,5100327362,172.00,
United Kingdom Atomic Energy Authority,United Kingdom Atomic Energy Authority,01/10/2015,INSPECTION SERVICES,SUPPORT SERVICES,ASHDALE ENGINEERING,5100327390,"-1,700.00",
United Kingdom Atomic Energy Authority,United Kingdom Atomic Energy Authority,05/10/2015,INSPECTION SERVICES,SUPPORT SERVICES,ASHDALE ENGINEERING,5100327475,250.00,
United Kingdom Atomic Energy Authority,United Kingdom Atomic Energy Authority,07/10/2015,BOOKS & PUBLICATIONS,SUPPORT SERVICES,THE BRITISH LIBRARY,5100327480,69.65,
United Kingdom Atomic Energy Authority,United Kingdom Atomic Energy Authority,12/10/2015,PLANT & EQUIPMENT,SUPPORT SERVICES,FISHER SCIENTIFIC UK LTD,5100327580,70.52,
United Kingdom Atomic Energy Authority,United Kingdom Atomic Energy Authority,07/10/2015,PROFESSIONAL SERVICES,SUPPORT SERVICES,Bottomline Technologies Ltd,5100327605,-900.00,
United Kingdom Atomic Energy Authority,United Kingdom Atomic Energy Authority,12/10/2015,BUILDING REPAIRS,SUPPORT SERVICES,KNOWLES & SONS (OXFORD) LTD,5100327609,27.99,
United Kingdom Atomic Energy Authority,United Kingdom Atomic Energy Authority,12/10/2015,BUILDING REPAIRS,SUPPORT SERVICES,KNOWLES & SONS (OXFORD) LTD,5100327619,26.71,
United Kingdom Atomic Energy Authority,United Kingdom Atomic Energy Authority,12/10/2015,BOOKS & PUBLICATIONS,SUPPORT SERVICES,BRITISH STANDARDS INSTITUTION,5100327775,171.00,
United Kingdom Atomic Energy Authority,United Kingdom Atomic Energy Authority,14/10/2015,MATERIALS & SPARES,SUPPORT SERVICES,WOODSTOCK INDUSTRIAL SUPPLIES LTD,5100327813,68.90,
United Kingdom Atomic Energy Authority,United Kingdom Atomic Energy Authority,12/10/2015,PROFESSIONAL SERVICES,SUPPORT SERVICES,CSC COMPUTER SERVICES,5100327818,"18,672.31",
United Kingdom Atomic Energy Authority,United Kingdom Atomic Energy Authority,12/10/2015,PROFESSIONAL SERVICES,SUPPORT SERVICES,CSC COMPUTER SERVICES,5100327820,"34,224.09",
United Kingdom Atomic Energy Authority,United Kingdom Atomic Energy Authority,19/10/2015,CONSUMABLES,SUPPORT SERVICES,SYNERGYHEALTH (UK) LIMITED,5100327912,115.20,
United Kingdom Atomic Energy Authority,United Kingdom Atomic Energy Authority,21/10/2015,CATERING SUPPLIES,SUPPORT SERVICES,BWT UK LTD,5100327917,183.60,
United Kingdom Atomic Energy Authority,United Kingdom Atomic Energy Authority,21/10/2015,CATERING SUPPLIES,SUPPORT SERVICES,BWT UK LTD,5100327919,723.93,
United Kingdom Atomic Energy Authority,United Kingdom Atomic Energy Authority,14/10/2015,PROFESSIONAL SERVICES,SUPPORT SERVICES,GAEL LTD,5100327961,"1,175.00",
United Kingdom Atomic Energy Authority,United Kingdom Atomic Energy Authority,19/10/2015,HEALTH PHYSICS,SUPPORT SERVICES,Capital business Services Ltd,5100327984,365.86,
United Kingdom Atomic Energy Authority,United Kingdom Atomic Energy Authority,19/10/2015,PERSONAL PROTECTIVE EQUIPMENT,SUPPORT SERVICES,ARCO LTD,5100327989,448.74,
United Kingdom Atomic Energy Authority,United Kingdom Atomic Energy Authority,19/10/2015,F&F,SUPPORT SERVICES,Broadstock Office Furniture Ltd,5100328045,"1,900.00",
United Kingdom Atomic Energy Authority,United Kingdom Atomic Energy Authority,19/10/2015,F&F,SUPPORT SERVICES,Broadstock Office Furniture Ltd,5100328048,344.00,
United Kingdom Atomic Energy Authority,United Kingdom Atomic Energy Authority,19/10/2015,F&F,SUPPORT SERVICES,Broadstock Office Furniture Ltd,5100328049,42.00,
United Kingdom Atomic Energy Authority,United Kingdom Atomic Energy Authority,19/10/2015,PERSONAL PROTECTIVE EQUIPMENT,SUPPORT SERVICES,ARCO LTD,5100328069,268.08,
United Kingdom Atomic Energy Authority,United Kingdom Atomic Energy Authority,19/10/2015,PROFESSIONAL SERVICES,SUPPORT SERVICES,DISCLOSURE SCOTLAND,5100328101,150.00,
United Kingdom Atomic Energy Authority,United Kingdom Atomic Energy Authority,21/10/2015,SOFTWARE,SUPPORT SERVICES,RIVO SOFTWARE LIMITED,5100328106,"1,700.00",
United Kingdom Atomic Energy Authority,United Kingdom Atomic Energy Authority,02/10/2015,SUBSISTENCE,SUPPORT SERVICES,EMPLOYEE EXPENSES,100783581,8.21,
United Kingdom Atomic Energy Authority,United Kingdom Atomic Energy Authority,17/10/2015,SUBSISTENCE,SUPPORT SERVICES,EMPLOYEE EXPENSES,100783786,204.92,
United Kingdom Atomic Energy Authority,United Kingdom Atomic Energy Authority,17/10/2015,SUBSISTENCE,SUPPORT SERVICES,EMPLOYEE EXPENSES,100783790,2.05,
United Kingdom Atomic Energy Authority,United Kingdom Atomic Energy Authority,24/10/2015,SUBSISTENCE,SUPPORT SERVICES,EMPLOYEE EXPENSES,100785803,2.15,
United Kingdom Atomic Energy Authority,United Kingdom Atomic Energy Authority,17/10/2015,RAIL TRAVEL,SUPPORT SERVICES,EMPLOYEE EXPENSES,100783790,66.60,
United Kingdom Atomic Energy Authority,United Kingdom Atomic Energy Authority,24/10/2015,RAIL TRAVEL,SUPPORT SERVICES,EMPLOYEE EXPENSES,100785803,66.60,
United Kingdom Atomic Energy Authority,United Kingdom Atomic Energy Authority,02/10/2015,ROAD TRAVEL,SUPPORT SERVICES,EMPLOYEE EXPENSES,100783581,9.40,
United Kingdom Atomic Energy Authority,United Kingdom Atomic Energy Authority,17/10/2015,ROAD TRAVEL,SUPPORT SERVICES,EMPLOYEE EXPENSES,100783790,5.80,
United Kingdom Atomic Energy Authority,United Kingdom Atomic Energy Authority,24/10/2015,ROAD TRAVEL,SUPPORT SERVICES,EMPLOYEE EXPENSES,100785803,5.80,
United Kingdom Atomic Energy Authority,United Kingdom Atomic Energy Authority,12/10/2015,OPERATING LEASE,FUSION,ANNODATA BUSINESS COMMUNICATIONS,5100324422,"2,778.30",
United Kingdom Atomic Energy Authority,United Kingdom Atomic Energy Authority,05/10/2015,OPERATING LEASE,FUSION,ANNODATA BUSINESS COMMUNICATIONS,5100326283,"34,855.59",
United Kingdom Atomic Energy Authority,United Kingdom Atomic Energy Authority,05/10/2015,STATIONERY,FUSION,PREMIER PAPER GROUP LTD,5100326355,284.69,
United Kingdom Atomic Energy Authority,United Kingdom Atomic Energy Authority,12/10/2015,OPERATING LEASE,FUSION,ANNODATA BUSINESS COMMUNICATIONS,5100326819,"2,487.00",
United Kingdom Atomic Energy Authority,United Kingdom Atomic Energy Authority,30/09/2015,OPERATING LEASE,FUSION,ANNODATA BUSINESS COMMUNICATIONS,5100327179,"1,597.25",
United Kingdom Atomic Energy Authority,United Kingdom Atomic Energy Authority,30/09/2015,OPERATING LEASE,FUSION,ANNODATA BUSINESS COMMUNICATIONS,5100327180,159.10,
United Kingdom Atomic Energy Authority,United Kingdom Atomic Energy Authority,12/10/2015,STATIONERY,FUSION,ARTISAN LITHO PRINT  DESIGN,5100327208,799.00,
United Kingdom Atomic Energy Authority,United Kingdom Atomic Energy Authority,07/10/2015,STATIONERY,FUSION,ARTISAN LITHO PRINT  DESIGN,5100327209,145.00,
United Kingdom Atomic Energy Authority,United Kingdom Atomic Energy Authority,30/09/2015,STATIONERY,FUSION,HOBS REPROGRAPHICS PLC,5100327258,15.80,
United Kingdom Atomic Energy Authority,United Kingdom Atomic Energy Authority,30/09/2015,STATIONERY,FUSION,HOBS REPROGRAPHICS PLC,5100327259,92.75,
United Kingdom Atomic Energy Authority,United Kingdom Atomic Energy Authority,05/10/2015,OPERATING LEASE,FUSION,ANNODATA BUSINESS COMMUNICATIONS,5100327275,"2,898.93",
United Kingdom Atomic Energy Authority,United Kingdom Atomic Energy Authority,05/10/2015,STATIONERY,FUSION,MPS SERVICES LTD,5100327283,117.00,
United Kingdom Atomic Energy Authority,United Kingdom Atomic Energy Authority,07/10/2015,STATIONERY,FUSION,PREMIER PAPER GROUP LTD,5100327347,423.00,
United Kingdom Atomic Energy Authority,United Kingdom Atomic Energy Authority,05/10/2015,STATIONERY,FUSION,HOBS REPROGRAPHICS PLC,5100327349,8.48,
United Kingdom Atomic Energy Authority,United Kingdom Atomic Energy Authority,05/10/2015,STATIONERY,FUSION,HOBS REPROGRAPHICS PLC,5100327350,226.11,
United Kingdom Atomic Energy Authority,United Kingdom Atomic Energy Authority,07/10/2015,STATIONERY,FUSION,PREMIER PAPER GROUP LTD,5100327459,391.69,
United Kingdom Atomic Energy Authority,United Kingdom Atomic Energy Authority,12/10/2015,STATIONERY,FUSION,HOBS REPROGRAPHICS PLC,5100327488,438.26,
United Kingdom Atomic Energy Authority,United Kingdom Atomic Energy Authority,14/10/2015,STATIONERY,FUSION,ARTISAN LITHO PRINT  DESIGN,5100327513,65.00,
United Kingdom Atomic Energy Authority,United Kingdom Atomic Energy Authority,12/10/2015,PROFESSIONAL SERVICES,FUSION,ELECTRIC STUDIO LTD,5100327520,"1,000.00",
United Kingdom Atomic Energy Authority,United Kingdom Atomic Energy Authority,19/10/2015,OPERATING LEASE,FUSION,ANNODATA BUSINESS COMMUNICATIONS,5100327924,"9,845.99",
United Kingdom Atomic Energy Authority,United Kingdom Atomic Energy Authority,19/10/2015,PRINTING & GRAPHICS,FUSION,AWARDFRAMERS INTERNATIONAL,5100328008,135.00,
United Kingdom Atomic Energy Authority,United Kingdom Atomic Energy Authority,12/10/2015,TAXIS,FUSION,HAROLDS CARS,5100327639,"4,801.69",
United Kingdom Atomic Energy Authority,United Kingdom Atomic Energy Authority,05/10/2015,PRINTING & GRAPHICS,FUSION,AWARDFRAMERS INTERNATIONAL,5100327205,"1,125.00",
United Kingdom Atomic Energy Authority,United Kingdom Atomic Energy Authority,05/10/2015,PRINTING & GRAPHICS,FUSION,AWARDFRAMERS INTERNATIONAL,5100327206,225.00,
United Kingdom Atomic Energy Authority,United Kingdom Atomic Energy Authority,12/10/2015,PRINTING & GRAPHICS,FUSION,AWARDFRAMERS INTERNATIONAL,5100327517,222.00,
United Kingdom Atomic Energy Authority,United Kingdom Atomic Energy Authority,07/10/2015,GRANTS & AWARDS,FUSION,Institute of Engineering & Technology IET,1900061145, 180.00,
United Kingdom Atomic Energy Authority,United Kingdom Atomic Energy Authority,14/10/2015,CONFERENCES/MEETINGS,FUSION,UKRC CIC ,1900061154, 156.00,
United Kingdom Atomic Energy Authority,United Kingdom Atomic Energy Authority,19/10/2015,GRANTS & AWARDS,FUSION,Institute of Engineering & Technology IET,1900061163, 90.00,
United Kingdom Atomic Energy Authority,United Kingdom Atomic Energy Authority,10/10/2015,SUBSISTENCE,FUSION,EMPLOYEE EXPENSES,100783651,10.22,
United Kingdom Atomic Energy Authority,United Kingdom Atomic Energy Authority,02/10/2015,MILEAGE ALLOWANCE,FUSION,EMPLOYEE EXPENSES,100783595,33.75,
United Kingdom Atomic Energy Authority,United Kingdom Atomic Energy Authority,10/10/2015,MILEAGE ALLOWANCE,FUSION,EMPLOYEE EXPENSES,100783662,33.75,
United Kingdom Atomic Energy Authority,United Kingdom Atomic Energy Authority,24/10/2015,MILEAGE ALLOWANCE,FUSION,EMPLOYEE EXPENSES,100785828,19.20,
United Kingdom Atomic Energy Authority,United Kingdom Atomic Energy Authority,24/10/2015,MILEAGE ALLOWANCE,FUSION,EMPLOYEE EXPENSES,100785829,6.75,
United Kingdom Atomic Energy Authority,United Kingdom Atomic Energy Authority,24/10/2015,MILEAGE ALLOWANCE,FUSION,EMPLOYEE EXPENSES,100785830,6.75,
United Kingdom Atomic Energy Authority,United Kingdom Atomic Energy Authority,24/10/2015,MILEAGE ALLOWANCE,FUSION,EMPLOYEE EXPENSES,100785831,6.75,
United Kingdom Atomic Energy Authority,United Kingdom Atomic Energy Authority,24/10/2015,MILEAGE ALLOWANCE,FUSION,EMPLOYEE EXPENSES,100785832,6.75,
United Kingdom Atomic Energy Authority,United Kingdom Atomic Energy Authority,24/10/2015,MILEAGE ALLOWANCE,FUSION,EMPLOYEE EXPENSES,100785833,6.75,
United Kingdom Atomic Energy Authority,United Kingdom Atomic Energy Authority,10/10/2015,RAIL TRAVEL,FUSION,EMPLOYEE EXPENSES,100783651,163.00,
United Kingdom Atomic Energy Authority,United Kingdom Atomic Energy Authority,10/10/2015,RAIL TRAVEL,FUSION,EMPLOYEE EXPENSES,100783652,65.00,
United Kingdom Atomic Energy Authority,United Kingdom Atomic Energy Authority,24/10/2015,RAIL TRAVEL,FUSION,EMPLOYEE EXPENSES,100785828,12.00,
United Kingdom Atomic Energy Authority,United Kingdom Atomic Energy Authority,10/10/2015,ROAD TRAVEL,FUSION,EMPLOYEE EXPENSES,100783651,3.10,
United Kingdom Atomic Energy Authority,United Kingdom Atomic Energy Authority,24/10/2015,ROAD TRAVEL,FUSION,EMPLOYEE EXPENSES,100785824,3.72,
United Kingdom Atomic Energy Authority,United Kingdom Atomic Energy Authority,24/10/2015,ROAD TRAVEL,FUSION,EMPLOYEE EXPENSES,100785828,14.00,
United Kingdom Atomic Energy Authority,United Kingdom Atomic Energy Authority,24/10/2015,ROAD TRAVEL,FUSION,EMPLOYEE EXPENSES,100785828,4.00,
United Kingdom Atomic Energy Authority,United Kingdom Atomic Energy Authority,28/09/2015,ELECTRICITY,FUSION,E.ON (UK) Ltd,5100327066,"20,149.26",
United Kingdom Atomic Energy Authority,United Kingdom Atomic Energy Authority,28/09/2015,ELECTRICITY,FUSION,E.ON (UK) Ltd,5100327171,"111,898.99",
United Kingdom Atomic Energy Authority,United Kingdom Atomic Energy Authority,05/10/2015,ELECTRICITY,FUSION,NATIONAL GRID TRANSCO,5100327306,"3,821.45",
United Kingdom Atomic Energy Authority,United Kingdom Atomic Energy Authority,12/10/2015,ELECTRICITY,FUSION,E.ON (UK) Ltd,5100327603,"307,806.34",
United Kingdom Atomic Energy Authority,United Kingdom Atomic Energy Authority,14/10/2015,UTILITIES/ELECTRICITY,FUSION,EDF ENERGY,5100327933,"131,123.16",
United Kingdom Atomic Energy Authority,United Kingdom Atomic Energy Authority,28/09/2015,MATERIALS & SPARES,FUSION,CROMWELL LTD,5100327154,161.74,
United Kingdom Atomic Energy Authority,United Kingdom Atomic Energy Authority,05/10/2015,PLANT & EQUIPMENT,FUSION,THAMES VALLEY SAW SERVICE LTD,5100327413,137.23,
United Kingdom Atomic Energy Authority,United Kingdom Atomic Energy Authority,05/10/2015,PLANT & EQUIPMENT,FUSION,THAMES VALLEY SAW SERVICE LTD,5100327414,102.00,
United Kingdom Atomic Energy Authority,United Kingdom Atomic Energy Authority,19/10/2015,MATERIALS & SPARES,FUSION,OXFORD BOLTS & BEARINGS,5100327963,107.60,
United Kingdom Atomic Energy Authority,United Kingdom Atomic Energy Authority,19/10/2015,MATERIALS: NON-HAZARDOUS,FUSION,ILF Ltd,5100328092,114.30,
United Kingdom Atomic Energy Authority,United Kingdom Atomic Energy Authority,30/09/2015,MATERIALS & SPARES,FUSION,CROMWELL LTD,5100326395,300.93,
United Kingdom Atomic Energy Authority,United Kingdom Atomic Energy Authority,05/10/2015,GASES,FUSION,BOC LTD,5100326860,88.30,
United Kingdom Atomic Energy Authority,United Kingdom Atomic Energy Authority,28/09/2015,MATERIALS & SPARES,FUSION,CROMWELL LTD,5100326920,28.76,
United Kingdom Atomic Energy Authority,United Kingdom Atomic Energy Authority,30/09/2015,REPAIRS & MAINTENANCE,FUSION,BSA MACHINE TOOLS LTD,5100326978,553.05,
United Kingdom Atomic Energy Authority,United Kingdom Atomic Energy Authority,28/09/2015,PLANT & EQUIPMENT,FUSION,HEWDEN,5100327008,874.50,
United Kingdom Atomic Energy Authority,United Kingdom Atomic Energy Authority,28/09/2015,MATERIALS & SPARES,FUSION,BUDGET FORKTRUCKS LTD,5100327063,342.33,
United Kingdom Atomic Energy Authority,United Kingdom Atomic Energy Authority,28/09/2015,HIRED STAFF,FUSION,MORSON INTERNATIONAL,5100327067,61.02,
United Kingdom Atomic Energy Authority,United Kingdom Atomic Energy Authority,05/10/2015,GASES,FUSION,BOC LTD,5100327071,89.34,
United Kingdom Atomic Energy Authority,United Kingdom Atomic Energy Authority,28/09/2015,MATERIALS & SPARES,FUSION,CROMWELL LTD,5100327155,191.96,
United Kingdom Atomic Energy Authority,United Kingdom Atomic Energy Authority,30/09/2015,MATERIALS & SPARES,FUSION,Oxford Air conditioning Ltd.,5100327181,700.30,
United Kingdom Atomic Energy Authority,United Kingdom Atomic Energy Authority,05/10/2015,MATERIALS & SPARES,FUSION,BUDGET FORKTRUCKS LTD,5100327216,390.00,
United Kingdom Atomic Energy Authority,United Kingdom Atomic Energy Authority,05/10/2015,MATERIALS & SPARES,FUSION,BUDGET FORKTRUCKS LTD,5100327217,342.33,
United Kingdom Atomic Energy Authority,United Kingdom Atomic Energy Authority,05/10/2015,MATERIALS & SPARES,FUSION,BUDGET FORKTRUCKS LTD,5100327219,793.00,
United Kingdom Atomic Energy Authority,United Kingdom Atomic Energy Authority,05/10/2015,MATERIALS & SPARES,FUSION,BUDGET FORKTRUCKS LTD,5100327221,390.00,
United Kingdom Atomic Energy Authority,United Kingdom Atomic Energy Authority,05/10/2015,MATERIALS & SPARES,FUSION,OXFORD BOLTS & BEARINGS,5100327234,49.75,
United Kingdom Atomic Energy Authority,United Kingdom Atomic Energy Authority,30/09/2015,BUILDING REPAIRS,FUSION,D CLOUGH LTD,5100327305,"4,187.76",
United Kingdom Atomic Energy Authority,United Kingdom Atomic Energy Authority,05/10/2015,PROFESSIONAL SERVICES,FUSION,BNS NUCLEAR SERVICES,5100327320,"28,389.01",
United Kingdom Atomic Energy Authority,United Kingdom Atomic Energy Authority,05/10/2015,MATERIALS & SPARES,FUSION,BUDGET FORKTRUCKS LTD,5100327432,12.00,
United Kingdom Atomic Energy Authority,United Kingdom Atomic Energy Authority,05/10/2015,MATERIALS & SPARES,FUSION,BUDGET FORKTRUCKS LTD,5100327437,73.43,
United Kingdom Atomic Energy Authority,United Kingdom Atomic Energy Authority,05/10/2015,MATERIALS & SPARES,FUSION,CROMWELL LTD,5100327481,177.84,
United Kingdom Atomic Energy Authority,United Kingdom Atomic Energy Authority,05/10/2015,MATERIALS & SPARES,FUSION,CROMWELL LTD,5100327482,22.80,
United Kingdom Atomic Energy Authority,United Kingdom Atomic Energy Authority,12/10/2015,MATERIALS & SPARES,FUSION,FORGEWELD LTD,5100327546,297.25,
United Kingdom Atomic Energy Authority,United Kingdom Atomic Energy Authority,12/10/2015,MATERIALS & SPARES,FUSION,B&M Engineering Ltd,5100327547,270.00,
United Kingdom Atomic Energy Authority,United Kingdom Atomic Energy Authority,12/10/2015,MATERIALS & SPARES,FUSION,B&M Engineering Ltd,5100327587,110.00,
United Kingdom Atomic Energy Authority,United Kingdom Atomic Energy Authority,12/10/2015,PROFESSIONAL SERVICES,FUSION,BNS NUCLEAR SERVICES,5100327714,"36,579.74",
United Kingdom Atomic Energy Authority,United Kingdom Atomic Energy Authority,12/10/2015,CONSUMABLES,FUSION,MacHowie Transport ltd,5100327717,700.00,
United Kingdom Atomic Energy Authority,United Kingdom Atomic Energy Authority,12/10/2015,HIRED STAFF,FUSION,MORSON INTERNATIONAL,5100327725,36.23,
United Kingdom Atomic Energy Authority,United Kingdom Atomic Energy Authority,12/10/2015,HIRED STAFF,FUSION,MORSON INTERNATIONAL,5100327726,39.38,
United Kingdom Atomic Energy Authority,United Kingdom Atomic Energy Authority,12/10/2015,HIRED STAFF,FUSION,MORSON INTERNATIONAL,5100327807,"315,275.70",
United Kingdom Atomic Energy Authority,United Kingdom Atomic Energy Authority,14/10/2015,HIRED STAFF,FUSION,MORSON INTERNATIONAL,5100327829,32.40,
United Kingdom Atomic Energy Authority,United Kingdom Atomic Energy Authority,19/10/2015,MATERIALS & SPARES,FUSION,SCREWFIX DIRECT LTD,5100327900,24.16,
United Kingdom Atomic Energy Authority,United Kingdom Atomic Energy Authority,19/10/2015,MATERIALS & SPARES,FUSION,SCREWFIX DIRECT LTD,5100327907,121.95,
United Kingdom Atomic Energy Authority,United Kingdom Atomic Energy Authority,19/10/2015,MATERIALS & SPARES,FUSION,SCREWFIX DIRECT LTD,5100327909,29.13,
United Kingdom Atomic Energy Authority,United Kingdom Atomic Energy Authority,19/10/2015,PROFESSIONAL SERVICES,FUSION,BNS NUCLEAR SERVICES,5100328041,"35,457.92",
United Kingdom Atomic Energy Authority,United Kingdom Atomic Energy Authority,21/10/2015,MATERIALS & SPARES,FUSION,CROMWELL LTD,5100328070,36.96,
United Kingdom Atomic Energy Authority,United Kingdom Atomic Energy Authority,19/10/2015,MATERIALS & SPARES,FUSION,CROMWELL LTD,5100328071,38.28,
United Kingdom Atomic Energy Authority,United Kingdom Atomic Energy Authority,19/10/2015,MATERIALS & SPARES,FUSION,CROMWELL LTD,5100328072,143.97,
United Kingdom Atomic Energy Authority,United Kingdom Atomic Energy Authority,21/10/2015,CONSUMABLES,FUSION,BOXER MACHINE TOOLS SERVICES,5100328095,"1,105.00",
United Kingdom Atomic Energy Authority,United Kingdom Atomic Energy Authority,28/09/2015,GASES,FUSION,BOC LTD,5100327074,84.97,
United Kingdom Atomic Energy Authority,United Kingdom Atomic Energy Authority,28/09/2015,MATERIALS & SPARES,FUSION,RS COMPONENTS LTD,5100327088,45.69,
United Kingdom Atomic Energy Authority,United Kingdom Atomic Energy Authority,28/09/2015,PLANT SPARES,FUSION,CUTWEL LTD,5100327112,78.74,
United Kingdom Atomic Energy Authority,United Kingdom Atomic Energy Authority,30/09/2015,MATERIALS & SPARES,FUSION,CROMWELL LTD,5100327152,162.22,
United Kingdom Atomic Energy Authority,United Kingdom Atomic Energy Authority,05/10/2015,MATERIALS & SPARES,FUSION,GOODMAND STEEL SERVICES LTD,5100327210,158.81,
United Kingdom Atomic Energy Authority,United Kingdom Atomic Energy Authority,05/10/2015,MATERIALS & SPARES,FUSION,GOODMAND STEEL SERVICES LTD,5100327211,117.63,
United Kingdom Atomic Energy Authority,United Kingdom Atomic Energy Authority,05/10/2015,MATERIALS & SPARES,FUSION,RS COMPONENTS LTD,5100327271,16.73,
United Kingdom Atomic Energy Authority,United Kingdom Atomic Energy Authority,12/10/2015,PERSONAL PROTECTIVE EQUIPMENT,FUSION,BUCK & HICKMAN LTD,5100327533,41.89,
United Kingdom Atomic Energy Authority,United Kingdom Atomic Energy Authority,12/10/2015,MATERIALS & SPARES,FUSION,PI-KEM LTD,5100327572,76.00,
United Kingdom Atomic Energy Authority,United Kingdom Atomic Energy Authority,14/10/2015,MATERIALS & SPARES,FUSION,TVH,5100327826,328.40,
United Kingdom Atomic Energy Authority,United Kingdom Atomic Energy Authority,12/10/2015,MATERIALS & SPARES,FUSION,RS COMPONENTS LTD,5100327846,77.25,
United Kingdom Atomic Energy Authority,United Kingdom Atomic Energy Authority,19/10/2015,MATERIALS & SPARES,FUSION,FARNELL ELECTRONIC,5100327920,42.10,
United Kingdom Atomic Energy Authority,United Kingdom Atomic Energy Authority,19/10/2015,PLANT & EQUIPMENT,FUSION,MILLHILL TOOLS LTD,5100327971,15.30,
United Kingdom Atomic Energy Authority,United Kingdom Atomic Energy Authority,19/10/2015,PLANT & EQUIPMENT,FUSION,MILLHILL TOOLS LTD,5100327972,8.13,
United Kingdom Atomic Energy Authority,United Kingdom Atomic Energy Authority,23/10/2015,INSPECTION SERVICES,FUSION,Macgregor Welding Systems Ltd,1900061169, 450.00,
United Kingdom Atomic Energy Authority,United Kingdom Atomic Energy Authority,19/10/2015,PROFESSIONAL SERVICES,FUSION,ONE FIX RECRUITMENT,5100328010,275.00,
United Kingdom Atomic Energy Authority,United Kingdom Atomic Energy Authority,24/10/2015,MILEAGE ALLOWANCE,FUSION,EMPLOYEE EXPENSES,100785821,83.70,
United Kingdom Atomic Energy Authority,United Kingdom Atomic Energy Authority,24/10/2015,ROAD TRAVEL,FUSION,EMPLOYEE EXPENSES,100785821,21.00,
United Kingdom Atomic Energy Authority,United Kingdom Atomic Energy Authority,17/10/2015,PROFESSIONAL SUBSCRIPTION,FUSION,EMPLOYEE EXPENSES,100783796,137.00,
United Kingdom Atomic Energy Authority,United Kingdom Atomic Energy Authority,17/10/2015,PROFESSIONAL SUBSCRIPTION,FUSION,EMPLOYEE EXPENSES,100783818,175.40,
United Kingdom Atomic Energy Authority,United Kingdom Atomic Energy Authority,30/09/2015,MATERIALS & SPARES,FUSION,Harting Ltd,5100324860,"2,290.83",
United Kingdom Atomic Energy Authority,United Kingdom Atomic Energy Authority,12/10/2015,MATERIALS & SPARES,FUSION,IS RAYFAST LTD,5100326308,882.52,
United Kingdom Atomic Energy Authority,United Kingdom Atomic Energy Authority,05/10/2015,GASES,FUSION,BOC LTD,5100326660,399.86,
United Kingdom Atomic Energy Authority,United Kingdom Atomic Energy Authority,12/10/2015,PLANT & EQUIPMENT,FUSION,LEE SPRING LTD,5100326908,31.50,
United Kingdom Atomic Energy Authority,United Kingdom Atomic Energy Authority,28/09/2015,MATERIALS & SPARES,FUSION,FARNELL ELECTRONIC,5100326963,73.34,
United Kingdom Atomic Energy Authority,United Kingdom Atomic Energy Authority,28/09/2015,MATERIALS & SPARES,FUSION,RS COMPONENTS LTD,5100326974,41.33,
United Kingdom Atomic Energy Authority,United Kingdom Atomic Energy Authority,28/09/2015,MATERIALS & SPARES,FUSION,RS COMPONENTS LTD,5100327009,684.76,
United Kingdom Atomic Energy Authority,United Kingdom Atomic Energy Authority,28/09/2015,MATERIALS & SPARES,FUSION,Harting Ltd,5100327010,124.40,
United Kingdom Atomic Energy Authority,United Kingdom Atomic Energy Authority,28/09/2015,MATERIALS & SPARES,FUSION,Harting Ltd,5100327012,"1,085.57",
United Kingdom Atomic Energy Authority,United Kingdom Atomic Energy Authority,28/09/2015,MATERIALS & SPARES,FUSION,RS COMPONENTS LTD,5100327090,87.40,
United Kingdom Atomic Energy Authority,United Kingdom Atomic Energy Authority,28/09/2015,MATERIALS & SPARES,FUSION,CROMWELL LTD,5100327151,77.50,
United Kingdom Atomic Energy Authority,United Kingdom Atomic Energy Authority,19/10/2015,MATERIALS & SPARES,FUSION,IS RAYFAST LTD,5100327182,"1,813.05",
United Kingdom Atomic Energy Authority,United Kingdom Atomic Energy Authority,28/09/2015,PLANT & EQUIPMENT,FUSION,LEMO UK LTD,5100327196,51.15,
United Kingdom Atomic Energy Authority,United Kingdom Atomic Energy Authority,05/10/2015,MATERIALS & SPARES,FUSION,RS COMPONENTS LTD,5100327236,124.84,
United Kingdom Atomic Energy Authority,United Kingdom Atomic Energy Authority,05/10/2015,MATERIALS & SPARES,FUSION,RS COMPONENTS LTD,5100327377,18.20,
United Kingdom Atomic Energy Authority,United Kingdom Atomic Energy Authority,05/10/2015,MATERIALS & SPARES,FUSION,RS COMPONENTS LTD,5100327378,98.47,
United Kingdom Atomic Energy Authority,United Kingdom Atomic Energy Authority,05/10/2015,MATERIALS & SPARES,FUSION,RS COMPONENTS LTD,5100327382,187.27,
United Kingdom Atomic Energy Authority,United Kingdom Atomic Energy Authority,05/10/2015,PLANT & EQUIPMENT,FUSION,LEMO UK LTD,5100327392,"1,864.12",
United Kingdom Atomic Energy Authority,United Kingdom Atomic Energy Authority,05/10/2015,MATERIALS & SPARES,FUSION,RS COMPONENTS LTD,5100327427,244.42,
United Kingdom Atomic Energy Authority,United Kingdom Atomic Energy Authority,05/10/2015,MATERIALS & SPARES,FUSION,Marker Tech ltd,5100327435,248.66,
United Kingdom Atomic Energy Authority,United Kingdom Atomic Energy Authority,05/10/2015,MATERIALS & SPARES,FUSION,BUDGET FORKTRUCKS LTD,5100327436,90.00,
United Kingdom Atomic Energy Authority,United Kingdom Atomic Energy Authority,05/10/2015,MATERIALS & SPARES,FUSION,BUDGET FORKTRUCKS LTD,5100327438,139.00,
United Kingdom Atomic Energy Authority,United Kingdom Atomic Energy Authority,05/10/2015,MATERIALS & SPARES,FUSION,RS COMPONENTS LTD,5100327451,107.45,
United Kingdom Atomic Energy Authority,United Kingdom Atomic Energy Authority,05/10/2015,MATERIALS & SPARES,FUSION,Harting Ltd,5100327466,20.73,
United Kingdom Atomic Energy Authority,United Kingdom Atomic Energy Authority,05/10/2015,PROFESSIONAL SERVICES,FUSION,METRO ENGINEERING AND PLATING WORKS,5100327478,100.00,
United Kingdom Atomic Energy Authority,United Kingdom Atomic Energy Authority,14/10/2015,PLANT SPARES,FUSION,Aerotech Ltd,5100327741,"7,500.00",
United Kingdom Atomic Energy Authority,United Kingdom Atomic Energy Authority,12/10/2015,MATERIALS & SPARES,FUSION,FARNELL ELECTRONIC,5100327754,8.00,
United Kingdom Atomic Energy Authority,United Kingdom Atomic Energy Authority,12/10/2015,MATERIALS & SPARES,FUSION,Harting Ltd,5100327758,190.54,
United Kingdom Atomic Energy Authority,United Kingdom Atomic Energy Authority,12/10/2015,MATERIALS & SPARES,FUSION,NW Keys Ltd,5100327779,12.65,
United Kingdom Atomic Energy Authority,United Kingdom Atomic Energy Authority,12/10/2015,MATERIALS & SPARES,FUSION,RS COMPONENTS LTD,5100327787,221.29,
United Kingdom Atomic Energy Authority,United Kingdom Atomic Energy Authority,14/10/2015,MATERIALS & SPARES,FUSION,OXFORD BOLTS & BEARINGS,5100327837,321.85,
United Kingdom Atomic Energy Authority,United Kingdom Atomic Energy Authority,12/10/2015,MATERIALS & SPARES,FUSION,RS COMPONENTS LTD,5100327841,638.66,
United Kingdom Atomic Energy Authority,United Kingdom Atomic Energy Authority,19/10/2015,MATERIALS & SPARES,FUSION,FIBRE OPTIONS LTD,5100327864,"3,375.00",
United Kingdom Atomic Energy Authority,United Kingdom Atomic Energy Authority,19/10/2015,MATERIALS & SPARES,FUSION,RS COMPONENTS LTD,5100327866,17.90,
United Kingdom Atomic Energy Authority,United Kingdom Atomic Energy Authority,19/10/2015,MATERIALS & SPARES,FUSION,RS COMPONENTS LTD,5100327898,105.19,
United Kingdom Atomic Energy Authority,United Kingdom Atomic Energy Authority,19/10/2015,MATERIALS & SPARES,FUSION,FARNELL ELECTRONIC,5100327915,4.70,
United Kingdom Atomic Energy Authority,United Kingdom Atomic Energy Authority,19/10/2015,MATERIALS & SPARES,FUSION,Harting Ltd,5100327956,5.98,
United Kingdom Atomic Energy Authority,United Kingdom Atomic Energy Authority,19/10/2015,MATERIALS & SPARES,FUSION,Pilz Automation Technology Ltd,5100328016,140.30,
United Kingdom Atomic Energy Authority,United Kingdom Atomic Energy Authority,19/10/2015,MATERIALS & SPARES,FUSION,NW Keys Ltd,5100328060,12.44,
United Kingdom Atomic Energy Authority,United Kingdom Atomic Energy Authority,19/10/2015,MATERIALS & SPARES,FUSION,NW Keys Ltd,5100328061,4.80,
United Kingdom Atomic Energy Authority,United Kingdom Atomic Energy Authority,19/10/2015,PLANT & EQUIPMENT,FUSION,LEMO UK LTD,5100328076,173.60,
United Kingdom Atomic Energy Authority,United Kingdom Atomic Energy Authority,19/10/2015,MATERIALS & SPARES,FUSION,FARNELL ELECTRONIC,5100328097,228.70,
United Kingdom Atomic Energy Authority,United Kingdom Atomic Energy Authority,19/10/2015,MATERIALS & SPARES,FUSION,Harting Ltd,5100328126,6.91,
United Kingdom Atomic Energy Authority,United Kingdom Atomic Energy Authority,19/10/2015,MATERIALS & SPARES,FUSION,FARNELL ELECTRONIC,5100328138,187.00,
United Kingdom Atomic Energy Authority,United Kingdom Atomic Energy Authority,14/10/2015,DELIVERY & CARRIAGE,FUSION,Intelligent Motion Control Ltd,1900061157, 972.34,
United Kingdom Atomic Energy Authority,United Kingdom Atomic Energy Authority,21/10/2015,DELIVERY & CARRIAGE,FUSION,Siegrist-Orel Limited,1900061166, 986.59,
United Kingdom Atomic Energy Authority,United Kingdom Atomic Energy Authority,17/10/2015,SUBSISTENCE,FUSION,EMPLOYEE EXPENSES,100783817,9.40,
United Kingdom Atomic Energy Authority,United Kingdom Atomic Energy Authority,17/10/2015,MILEAGE ALLOWANCE,FUSION,EMPLOYEE EXPENSES,100783817,126.00,
United Kingdom Atomic Energy Authority,United Kingdom Atomic Energy Authority,12/10/2015,STATIONERY,FUSION,HOBS REPROGRAPHICS PLC,5100327489,18.93,
United Kingdom Atomic Energy Authority,United Kingdom Atomic Energy Authority,07/10/2015,F&F,FUSION,POSTURITE UK LTD,5100326804,134.99,
United Kingdom Atomic Energy Authority,United Kingdom Atomic Energy Authority,07/10/2015,F&F,FUSION,POSTURITE UK LTD,5100327018,271.00,
United Kingdom Atomic Energy Authority,United Kingdom Atomic Energy Authority,05/10/2015,IT EQUIPMENT NON CAPITAL,FUSION,WILDE ANALYSIS,5100327490,99.00,
United Kingdom Atomic Energy Authority,United Kingdom Atomic Energy Authority,24/10/2015,SUBSISTENCE,FUSION,EMPLOYEE EXPENSES,100785823,5.00,
United Kingdom Atomic Energy Authority,United Kingdom Atomic Energy Authority,24/10/2015,SUBSISTENCE,FUSION,EMPLOYEE EXPENSES,100785823,103.12,
United Kingdom Atomic Energy Authority,United Kingdom Atomic Energy Authority,24/10/2015,SUBSISTENCE,FUSION,EMPLOYEE EXPENSES,100785827,7.50,
United Kingdom Atomic Energy Authority,United Kingdom Atomic Energy Authority,10/10/2015,MILEAGE ALLOWANCE,FUSION,EMPLOYEE EXPENSES,100783662,33.75,
United Kingdom Atomic Energy Authority,United Kingdom Atomic Energy Authority,24/10/2015,MILEAGE ALLOWANCE,FUSION,EMPLOYEE EXPENSES,100785827,33.75,
United Kingdom Atomic Energy Authority,United Kingdom Atomic Energy Authority,24/10/2015,RAIL TRAVEL,FUSION,EMPLOYEE EXPENSES,100785827,12.00,
United Kingdom Atomic Energy Authority,United Kingdom Atomic Energy Authority,24/10/2015,ROAD TRAVEL,FUSION,EMPLOYEE EXPENSES,100785823,45.39,
United Kingdom Atomic Energy Authority,United Kingdom Atomic Energy Authority,19/10/2015,PLANT SPARES,FUSION,BECKHOFF AUTOMATION LTD,5100328064,"5,051.90",
United Kingdom Atomic Energy Authority,United Kingdom Atomic Energy Authority,12/10/2015,PLANT & EQUIPMENT,FUSION,REECE SAFETY PRODUCTS LTD,5100327569,72.70,
United Kingdom Atomic Energy Authority,United Kingdom Atomic Energy Authority,02/10/2015,MILEAGE ALLOWANCE,FUSION,EMPLOYEE EXPENSES,100783590,69.75,
United Kingdom Atomic Energy Authority,United Kingdom Atomic Energy Authority,02/10/2015,MILEAGE ALLOWANCE,FUSION,EMPLOYEE EXPENSES,100783591,69.75,
United Kingdom Atomic Energy Authority,United Kingdom Atomic Energy Authority,17/10/2015,MILEAGE ALLOWANCE,FUSION,EMPLOYEE EXPENSES,100783804,69.75,
United Kingdom Atomic Energy Authority,United Kingdom Atomic Energy Authority,17/10/2015,MILEAGE ALLOWANCE,FUSION,EMPLOYEE EXPENSES,100783805,69.75,
United Kingdom Atomic Energy Authority,United Kingdom Atomic Energy Authority,24/10/2015,MILEAGE ALLOWANCE,FUSION,EMPLOYEE EXPENSES,100785815,58.50,
United Kingdom Atomic Energy Authority,United Kingdom Atomic Energy Authority,24/10/2015,MILEAGE ALLOWANCE,FUSION,EMPLOYEE EXPENSES,100785816,58.50,
United Kingdom Atomic Energy Authority,United Kingdom Atomic Energy Authority,24/10/2015,MILEAGE ALLOWANCE,FUSION,EMPLOYEE EXPENSES,100785817,58.50,
United Kingdom Atomic Energy Authority,United Kingdom Atomic Energy Authority,24/10/2015,MILEAGE ALLOWANCE,FUSION,EMPLOYEE EXPENSES,100785818,58.50,
United Kingdom Atomic Energy Authority,United Kingdom Atomic Energy Authority,24/10/2015,MILEAGE ALLOWANCE,FUSION,EMPLOYEE EXPENSES,100785819,69.75,
United Kingdom Atomic Energy Authority,United Kingdom Atomic Energy Authority,02/10/2015,ROAD TRAVEL,FUSION,EMPLOYEE EXPENSES,100783590,3.00,
United Kingdom Atomic Energy Authority,United Kingdom Atomic Energy Authority,02/10/2015,ROAD TRAVEL,FUSION,EMPLOYEE EXPENSES,100783591,3.00,
United Kingdom Atomic Energy Authority,United Kingdom Atomic Energy Authority,17/10/2015,ROAD TRAVEL,FUSION,EMPLOYEE EXPENSES,100783804,5.00,
United Kingdom Atomic Energy Authority,United Kingdom Atomic Energy Authority,17/10/2015,ROAD TRAVEL,FUSION,EMPLOYEE EXPENSES,100783807,80.00,
United Kingdom Atomic Energy Authority,United Kingdom Atomic Energy Authority,24/10/2015,ROAD TRAVEL,FUSION,EMPLOYEE EXPENSES,100785819,5.00,
United Kingdom Atomic Energy Authority,United Kingdom Atomic Energy Authority,19/10/2015,MATERIALS & SPARES,FUSION,FARNELL ELECTRONIC,5100326962,107.74,
United Kingdom Atomic Energy Authority,United Kingdom Atomic Energy Authority,28/09/2015,MATERIALS & SPARES,FUSION,FARNELL ELECTRONIC,5100326969,125.79,
United Kingdom Atomic Energy Authority,United Kingdom Atomic Energy Authority,28/09/2015,MATERIALS & SPARES,FUSION,RS COMPONENTS LTD,5100327014,321.29,
United Kingdom Atomic Energy Authority,United Kingdom Atomic Energy Authority,28/09/2015,PLANT SPARES,FUSION,AS SCIENTIFIC PRODUCTS LTD,5100327134,"24,200.00",
United Kingdom Atomic Energy Authority,United Kingdom Atomic Energy Authority,05/10/2015,MATERIALS & SPARES,FUSION,RS COMPONENTS LTD,5100327241,65.47,
United Kingdom Atomic Energy Authority,United Kingdom Atomic Energy Authority,05/10/2015,MATERIALS & SPARES,FUSION,RS COMPONENTS LTD,5100327249,116.18,
United Kingdom Atomic Energy Authority,United Kingdom Atomic Energy Authority,05/10/2015,MATERIALS & SPARES,FUSION,RS COMPONENTS LTD,5100327272,9.69,
United Kingdom Atomic Energy Authority,United Kingdom Atomic Energy Authority,05/10/2015,MATERIALS & SPARES,FUSION,RS COMPONENTS LTD,5100327338,478.95,
United Kingdom Atomic Energy Authority,United Kingdom Atomic Energy Authority,05/10/2015,MATERIALS & SPARES,FUSION,RS COMPONENTS LTD,5100327449,98.26,
United Kingdom Atomic Energy Authority,United Kingdom Atomic Energy Authority,07/10/2015,TRAINING COSTS,FUSION,UNIVERSITY OF THE WEST OF ENGLAND,5100327474,"1,736.00",
United Kingdom Atomic Energy Authority,United Kingdom Atomic Energy Authority,12/10/2015,MATERIALS & SPARES,FUSION,BSS OXFORD,5100327534,299.72,
United Kingdom Atomic Energy Authority,United Kingdom Atomic Energy Authority,12/10/2015,MATERIALS & SPARES,FUSION,RS COMPONENTS LTD,5100327801,67.97,
United Kingdom Atomic Energy Authority,United Kingdom Atomic Energy Authority,12/10/2015,MATERIALS & SPARES,FUSION,RS COMPONENTS LTD,5100327804,557.89,
United Kingdom Atomic Energy Authority,United Kingdom Atomic Energy Authority,19/10/2015,MATERIALS & SPARES,FUSION,BSS OXFORD,5100327825,16.23,
United Kingdom Atomic Energy Authority,United Kingdom Atomic Energy Authority,19/10/2015,MATERIALS & SPARES,FUSION,RS COMPONENTS LTD,5100327893,161.31,
United Kingdom Atomic Energy Authority,United Kingdom Atomic Energy Authority,19/10/2015,MATERIALS & SPARES,FUSION,RS COMPONENTS LTD,5100327929,15.06,
United Kingdom Atomic Energy Authority,United Kingdom Atomic Energy Authority,19/10/2015,MATERIALS & SPARES,FUSION,SB SERVICES PNEUMATICS LTD,5100327976,805.75,
United Kingdom Atomic Energy Authority,United Kingdom Atomic Energy Authority,19/10/2015,MATERIALS & SPARES,FUSION,NEWBURY ELECTRONICS,5100327986,206.98,
United Kingdom Atomic Energy Authority,United Kingdom Atomic Energy Authority,19/10/2015,MATERIALS & SPARES,FUSION,CPC PLC,5100328136,43.68,
United Kingdom Atomic Energy Authority,United Kingdom Atomic Energy Authority,19/10/2015,MATERIALS & SPARES,FUSION,FARNELL ELECTRONIC,5100328142,73.90,
United Kingdom Atomic Energy Authority,United Kingdom Atomic Energy Authority,10/10/2015,CAR HIRE,FUSION,EMPLOYEE EXPENSES,100783644,216.99,
United Kingdom Atomic Energy Authority,United Kingdom Atomic Energy Authority,10/10/2015,SUBSISTENCE,FUSION,EMPLOYEE EXPENSES,100783644,104.38,
United Kingdom Atomic Energy Authority,United Kingdom Atomic Energy Authority,10/10/2015,SUBSISTENCE,FUSION,EMPLOYEE EXPENSES,100783644,3.21,
United Kingdom Atomic Energy Authority,United Kingdom Atomic Energy Authority,10/10/2015,ROAD TRAVEL,FUSION,EMPLOYEE EXPENSES,100783644,14.41,
United Kingdom Atomic Energy Authority,United Kingdom Atomic Energy Authority,12/10/2015,MATERIALS & SPARES,FUSION,FARNELL ELECTRONIC,5100326298,587.20,
United Kingdom Atomic Energy Authority,United Kingdom Atomic Energy Authority,28/09/2015,PLANT & EQUIPMENT,FUSION,NATIONAL INSTRUMENTS LTD,5100326850,-419.88,
United Kingdom Atomic Energy Authority,United Kingdom Atomic Energy Authority,30/09/2015,MATERIALS & SPARES,FUSION,FARNELL ELECTRONIC,5100326890,62.50,
United Kingdom Atomic Energy Authority,United Kingdom Atomic Energy Authority,07/10/2015,MATERIALS & SPARES,FUSION,FARNELL ELECTRONIC,5100326894,360.00,
United Kingdom Atomic Energy Authority,United Kingdom Atomic Energy Authority,07/10/2015,MATERIALS & SPARES,FUSION,FARNELL ELECTRONIC,5100326895,"1,517.30",
United Kingdom Atomic Energy Authority,United Kingdom Atomic Energy Authority,28/09/2015,MATERIALS & SPARES,FUSION,FARNELL ELECTRONIC,5100326968,108.48,
United Kingdom Atomic Energy Authority,United Kingdom Atomic Energy Authority,30/09/2015,PLANT & EQUIPMENT,FUSION,NATIONAL INSTRUMENTS LTD,5100327022,"3,146.56",
United Kingdom Atomic Energy Authority,United Kingdom Atomic Energy Authority,28/09/2015,MATERIALS & SPARES,FUSION,FARNELL ELECTRONIC,5100327041,530.89,
United Kingdom Atomic Energy Authority,United Kingdom Atomic Energy Authority,28/09/2015,MATERIALS & SPARES,FUSION,FARNELL ELECTRONIC,5100327049,43.79,
United Kingdom Atomic Energy Authority,United Kingdom Atomic Energy Authority,28/09/2015,MATERIALS & SPARES,FUSION,FARNELL ELECTRONIC,5100327167,50.95,
United Kingdom Atomic Energy Authority,United Kingdom Atomic Energy Authority,05/10/2015,MATERIALS & SPARES,FUSION,MOUSER ELECTRONICS,5100327274,28.10,
United Kingdom Atomic Energy Authority,United Kingdom Atomic Energy Authority,21/10/2015,MATERIALS & SPARES,FUSION,NEWBURY ELECTRONICS,5100327385,942.30,
United Kingdom Atomic Energy Authority,United Kingdom Atomic Energy Authority,21/10/2015,MATERIALS & SPARES,FUSION,NEWBURY ELECTRONICS,5100327386,"1,102.55",
United Kingdom Atomic Energy Authority,United Kingdom Atomic Energy Authority,21/10/2015,MATERIALS & SPARES,FUSION,FARNELL ELECTRONIC,5100327400,161.22,
United Kingdom Atomic Energy Authority,United Kingdom Atomic Energy Authority,05/10/2015,MATERIALS & SPARES,FUSION,FARNELL ELECTRONIC,5100327409,56.29,
United Kingdom Atomic Energy Authority,United Kingdom Atomic Energy Authority,21/10/2015,MATERIALS & SPARES,FUSION,NEWBURY ELECTRONICS,5100327671,160.45,
United Kingdom Atomic Energy Authority,United Kingdom Atomic Energy Authority,21/10/2015,MATERIALS & SPARES,FUSION,NEWBURY ELECTRONICS,5100327739,"1,193.35",
United Kingdom Atomic Energy Authority,United Kingdom Atomic Energy Authority,12/10/2015,MATERIALS & SPARES,FUSION,FARNELL ELECTRONIC,5100327746,"1,588.20",
United Kingdom Atomic Energy Authority,United Kingdom Atomic Energy Authority,12/10/2015,MATERIALS & SPARES,FUSION,FARNELL ELECTRONIC,5100327764,906.06,
United Kingdom Atomic Energy Authority,United Kingdom Atomic Energy Authority,19/10/2015,MATERIALS & SPARES,FUSION,FARNELL ELECTRONIC,5100327853,105.57,
United Kingdom Atomic Energy Authority,United Kingdom Atomic Energy Authority,19/10/2015,MATERIALS & SPARES,FUSION,FARNELL ELECTRONIC,5100327914,65.18,
United Kingdom Atomic Energy Authority,United Kingdom Atomic Energy Authority,21/10/2015,MATERIALS & SPARES,FUSION,NEWBURY ELECTRONICS,5100328050,"1,039.65",
United Kingdom Atomic Energy Authority,United Kingdom Atomic Energy Authority,30/09/2015,PLANT & EQUIPMENT,FUSION,Industrial Electronic Wiring Ltd,1900061132," 2,592.19",
United Kingdom Atomic Energy Authority,United Kingdom Atomic Energy Authority,28/09/2015,MATERIALS & SPARES,FUSION,UNDERWOODS ELECTRICAL DISTRIBUTORS,5100327017,247.55,
United Kingdom Atomic Energy Authority,United Kingdom Atomic Energy Authority,28/09/2015,MATERIALS & SPARES,FUSION,FARNELL ELECTRONIC,5100327052,68.43,
United Kingdom Atomic Energy Authority,United Kingdom Atomic Energy Authority,28/09/2015,MATERIALS & SPARES,FUSION,FARNELL ELECTRONIC,5100327170,7.15,
United Kingdom Atomic Energy Authority,United Kingdom Atomic Energy Authority,05/10/2015,CAR HIRE,FUSION,LEASEDRIVE VELO,5100327291,36.44,
United Kingdom Atomic Energy Authority,United Kingdom Atomic Energy Authority,05/10/2015,PROFESSIONAL SERVICES,FUSION,SCIENTIFICS LTD,5100327322,100.00,
United Kingdom Atomic Energy Authority,United Kingdom Atomic Energy Authority,14/10/2015,PERSONAL PROTECTIVE EQUIPMENT,FUSION,ARCO LTD,5100327397,27.99,
United Kingdom Atomic Energy Authority,United Kingdom Atomic Energy Authority,19/10/2015,MATERIALS & SPARES,FUSION,RS COMPONENTS LTD,5100327871,198.76,
United Kingdom Atomic Energy Authority,United Kingdom Atomic Energy Authority,14/10/2015,PERSONAL PROTECTIVE EQUIPMENT,FUSION,ARCO LTD,5100327881,-27.99,
United Kingdom Atomic Energy Authority,United Kingdom Atomic Energy Authority,19/10/2015,PERSONAL PROTECTIVE EQUIPMENT,FUSION,ARCO LTD,5100327973,27.99,
United Kingdom Atomic Energy Authority,United Kingdom Atomic Energy Authority,28/09/2015,MATERIALS & SPARES,FUSION,TVH,5100326922,169.00,
United Kingdom Atomic Energy Authority,United Kingdom Atomic Energy Authority,05/10/2015,MATERIALS & SPARES,FUSION,RS COMPONENTS LTD,5100327262,143.24,
United Kingdom Atomic Energy Authority,United Kingdom Atomic Energy Authority,05/10/2015,MATERIALS & SPARES,FUSION,RS COMPONENTS LTD,5100327369,32.59,
United Kingdom Atomic Energy Authority,United Kingdom Atomic Energy Authority,12/10/2015,GASES,FUSION,BOC LTD,5100327518,"29,415.03",
United Kingdom Atomic Energy Authority,United Kingdom Atomic Energy Authority,12/10/2015,MATERIALS & SPARES,FUSION,B&M Engineering Ltd,5100327541,140.00,
United Kingdom Atomic Energy Authority,United Kingdom Atomic Energy Authority,12/10/2015,GASES,FUSION,BOC LTD,5100327757,"38,317.78",
United Kingdom Atomic Energy Authority,United Kingdom Atomic Energy Authority,12/10/2015,MATERIALS & SPARES,FUSION,RS COMPONENTS LTD,5100327814,101.06,
United Kingdom Atomic Energy Authority,United Kingdom Atomic Energy Authority,14/10/2015,MATERIALS & SPARES,FUSION,TAMO LTD,5100327831,646.27,
United Kingdom Atomic Energy Authority,United Kingdom Atomic Energy Authority,19/10/2015,MATERIALS & SPARES,FUSION,The Valve and Actuator Ltd,5100328109,772.00,
United Kingdom Atomic Energy Authority,United Kingdom Atomic Energy Authority,28/09/2015,MATERIALS & SPARES,FUSION,RS COMPONENTS LTD,5100327097,47.77,
United Kingdom Atomic Energy Authority,United Kingdom Atomic Energy Authority,14/10/2015,PLANT & EQUIPMENT,FUSION,PFEIFFER VACUUM UK,5100327402,"1,580.00",
United Kingdom Atomic Energy Authority,United Kingdom Atomic Energy Authority,28/09/2015,MATERIALS & SPARES,FUSION,FARNELL ELECTRONIC,5100327047,61.66,
United Kingdom Atomic Energy Authority,United Kingdom Atomic Energy Authority,05/10/2015,PLANT & EQUIPMENT,FUSION,Feedwater LTD,5100327092,450.00,
United Kingdom Atomic Energy Authority,United Kingdom Atomic Energy Authority,30/09/2015,MATERIALS & SPARES,FUSION,Wychwood Water Systems Ltd,5100327265,"4,963.00",
United Kingdom Atomic Energy Authority,United Kingdom Atomic Energy Authority,05/10/2015,MATERIALS & SPARES,FUSION,Wychwood Water Systems Ltd,5100327266,"3,882.00",
United Kingdom Atomic Energy Authority,United Kingdom Atomic Energy Authority,12/10/2015,PLANT & EQUIPMENT,FUSION,Feedwater LTD,5100327289,177.00,
United Kingdom Atomic Energy Authority,United Kingdom Atomic Energy Authority,05/10/2015,MATERIALS & SPARES,FUSION,RS COMPONENTS LTD,5100327333,86.05,
United Kingdom Atomic Energy Authority,United Kingdom Atomic Energy Authority,05/10/2015,MATERIALS & SPARES,FUSION,FARNELL ELECTRONIC,5100327406,12.99,
United Kingdom Atomic Energy Authority,United Kingdom Atomic Energy Authority,12/10/2015,PLANT & EQUIPMENT,FUSION,Feedwater LTD,5100327412,879.00,
United Kingdom Atomic Energy Authority,United Kingdom Atomic Energy Authority,07/10/2015,REPAIRS & MAINTENANCE,FUSION,PRUFTECHNIK,5100327465,315.00,
United Kingdom Atomic Energy Authority,United Kingdom Atomic Energy Authority,12/10/2015,MATERIALS & SPARES,FUSION,DRAEGER SAFETY,5100327713,380.00,
United Kingdom Atomic Energy Authority,United Kingdom Atomic Energy Authority,12/10/2015,GASES,FUSION,BOC LTD,5100327736,204.34,
United Kingdom Atomic Energy Authority,United Kingdom Atomic Energy Authority,12/10/2015,MATERIALS & SPARES,FUSION,COMPRESSORS & PNEUMATIC SYSTEMS LTD,5100327833,690.94,
United Kingdom Atomic Energy Authority,United Kingdom Atomic Energy Authority,12/10/2015,MATERIALS & SPARES,FUSION,RS COMPONENTS LTD,5100327842,337.94,
United Kingdom Atomic Energy Authority,United Kingdom Atomic Energy Authority,19/10/2015,PLANT SPARES,FUSION,RS COMPONENTS CALIBRATION SERVICES,5100327849,77.87,
United Kingdom Atomic Energy Authority,United Kingdom Atomic Energy Authority,19/10/2015,MATERIALS & SPARES,FUSION,RS COMPONENTS LTD,5100327934,212.07,
United Kingdom Atomic Energy Authority,United Kingdom Atomic Energy Authority,19/10/2015,PLANT & EQUIPMENT,FUSION,Feedwater LTD,5100327980,719.80,
United Kingdom Atomic Energy Authority,United Kingdom Atomic Energy Authority,19/10/2015,PLANT & EQUIPMENT,FUSION,Feedwater LTD,5100327981,"3,394.00",
United Kingdom Atomic Energy Authority,United Kingdom Atomic Energy Authority,19/10/2015,MATERIALS & SPARES,FUSION,KSB LTD,5100328093,496.70,
United Kingdom Atomic Energy Authority,United Kingdom Atomic Energy Authority,30/09/2015,PROFESSIONAL SERVICES,FUSION,HONEYWELL ANALYTICS (SALES &SERVICE,5100325806,571.50,
United Kingdom Atomic Energy Authority,United Kingdom Atomic Energy Authority,28/09/2015,CATERING,FUSION,AVENANCE PLC,5100326258,518.77,
United Kingdom Atomic Energy Authority,United Kingdom Atomic Energy Authority,28/09/2015,CATERING,FUSION,AVENANCE PLC,5100327114,977.18,
United Kingdom Atomic Energy Authority,United Kingdom Atomic Energy Authority,28/09/2015,CATERING,FUSION,AVENANCE PLC,5100327122,645.02,
United Kingdom Atomic Energy Authority,United Kingdom Atomic Energy Authority,05/10/2015,MATERIALS & SPARES,FUSION,OXFORD BOLTS & BEARINGS,5100327235,357.14,
United Kingdom Atomic Energy Authority,United Kingdom Atomic Energy Authority,07/10/2015,SECURITY & EMERGENCY,FUSION,TRINITY PROTETION SYSTEMS,5100327281,"1,330.99",
United Kingdom Atomic Energy Authority,United Kingdom Atomic Energy Authority,05/10/2015,MATERIALS & SPARES,FUSION,RS COMPONENTS LTD,5100327450,158.88,
United Kingdom Atomic Energy Authority,United Kingdom Atomic Energy Authority,12/10/2015,MATERIALS & SPARES,FUSION,SETON,5100327501,"1,134.00",
United Kingdom Atomic Energy Authority,United Kingdom Atomic Energy Authority,12/10/2015,MATERIALS & SPARES,FUSION,B&M Engineering Ltd,5100327588,360.00,
United Kingdom Atomic Energy Authority,United Kingdom Atomic Energy Authority,12/10/2015,BUILDING REPAIRS,FUSION,KNOWLES & SONS (OXFORD) LTD,5100327612,25.00,
United Kingdom Atomic Energy Authority,United Kingdom Atomic Energy Authority,12/10/2015,BUILDING REPAIRS,FUSION,KNOWLES & SONS (OXFORD) LTD,5100327630,"6,840.13",
United Kingdom Atomic Energy Authority,United Kingdom Atomic Energy Authority,12/10/2015,SECURITY & EMERGENCY,FUSION,TRINITY PROTETION SYSTEMS,5100327699,375.24,
United Kingdom Atomic Energy Authority,United Kingdom Atomic Energy Authority,12/10/2015,MATERIALS & SPARES,FUSION,NW Keys Ltd,5100327778,3.75,
United Kingdom Atomic Energy Authority,United Kingdom Atomic Energy Authority,12/10/2015,MATERIALS & SPARES,FUSION,RS COMPONENTS LTD,5100327802,113.01,
United Kingdom Atomic Energy Authority,United Kingdom Atomic Energy Authority,14/10/2015,MATERIALS & SPARES,FUSION,RS COMPONENTS LTD,5100327808,33.91,
United Kingdom Atomic Energy Authority,United Kingdom Atomic Energy Authority,23/10/2015,PLANT & EQUIPMENT,FUSION,Autoclock Systems Ltd,1900061172, 594.00,
United Kingdom Atomic Energy Authority,United Kingdom Atomic Energy Authority,28/09/2015,MATERIALS & SPARES,FUSION,CPC PLC,5100326953,10.38,
United Kingdom Atomic Energy Authority,United Kingdom Atomic Energy Authority,28/09/2015,MATERIALS & SPARES,FUSION,RS COMPONENTS LTD,5100327005,79.77,
United Kingdom Atomic Energy Authority,United Kingdom Atomic Energy Authority,28/09/2015,MATERIALS & SPARES,FUSION,FARNELL ELECTRONIC,5100327054,28.17,
United Kingdom Atomic Energy Authority,United Kingdom Atomic Energy Authority,28/09/2015,MATERIALS & SPARES,FUSION,RS COMPONENTS LTD,5100327101,168.80,
United Kingdom Atomic Energy Authority,United Kingdom Atomic Energy Authority,28/09/2015,MATERIALS & SPARES,FUSION,FARNELL ELECTRONIC,5100327169,186.46,
United Kingdom Atomic Energy Authority,United Kingdom Atomic Energy Authority,28/09/2015,MATERIALS & SPARES,FUSION,CPC PLC,5100327192,19.29,
United Kingdom Atomic Energy Authority,United Kingdom Atomic Energy Authority,05/10/2015,MATERIALS & SPARES,FUSION,RS COMPONENTS LTD,5100327325,18.29,
United Kingdom Atomic Energy Authority,United Kingdom Atomic Energy Authority,05/10/2015,MATERIALS & SPARES,FUSION,RS COMPONENTS LTD,5100327351,22.79,
United Kingdom Atomic Energy Authority,United Kingdom Atomic Energy Authority,12/10/2015,MATERIALS & SPARES,FUSION,SCHROFF UK LTD,5100327372,725.75,
United Kingdom Atomic Energy Authority,United Kingdom Atomic Energy Authority,05/10/2015,MATERIALS & SPARES,FUSION,FARNELL ELECTRONIC,5100327403,9.27,
United Kingdom Atomic Energy Authority,United Kingdom Atomic Energy Authority,05/10/2015,MATERIALS & SPARES,FUSION,Marker Tech ltd,5100327433,125.00,
United Kingdom Atomic Energy Authority,United Kingdom Atomic Energy Authority,05/10/2015,MATERIALS & SPARES,FUSION,RS COMPONENTS LTD,5100327448,37.30,
United Kingdom Atomic Energy Authority,United Kingdom Atomic Energy Authority,12/10/2015,GASES,FUSION,BOC LTD,5100327505,443.20,
United Kingdom Atomic Energy Authority,United Kingdom Atomic Energy Authority,21/10/2015,MATERIALS & SPARES,FUSION,SCHROFF UK LTD,5100327703,"1,424.65",
United Kingdom Atomic Energy Authority,United Kingdom Atomic Energy Authority,12/10/2015,MATERIALS & SPARES,FUSION,RS COMPONENTS LTD,5100327795,70.12,
United Kingdom Atomic Energy Authority,United Kingdom Atomic Energy Authority,19/10/2015,CAR HIRE,FUSION,LEASEDRIVE VELO,5100328033,62.58,
United Kingdom Atomic Energy Authority,United Kingdom Atomic Energy Authority,28/09/2015,MATERIALS & SPARES,FUSION,FARNELL ELECTRONIC,5100326965,5.96,
United Kingdom Atomic Energy Authority,United Kingdom Atomic Energy Authority,28/09/2015,MATERIALS & SPARES,FUSION,FARNELL ELECTRONIC,5100326967,103.09,
United Kingdom Atomic Energy Authority,United Kingdom Atomic Energy Authority,28/09/2015,PERSONAL PROTECTIVE EQUIPMENT,FUSION,ARCO LTD,5100327006,138.03,
United Kingdom Atomic Energy Authority,United Kingdom Atomic Energy Authority,28/09/2015,MATERIALS & SPARES,FUSION,ELECTRICAL OIL SERVICES LTD,5100327025,240.90,
United Kingdom Atomic Energy Authority,United Kingdom Atomic Energy Authority,28/09/2015,MATERIALS & SPARES,FUSION,FARNELL ELECTRONIC,5100327044,120.69,
United Kingdom Atomic Energy Authority,United Kingdom Atomic Energy Authority,28/09/2015,MATERIALS & SPARES,FUSION,FARNELL ELECTRONIC,5100327050,67.50,
United Kingdom Atomic Energy Authority,United Kingdom Atomic Energy Authority,28/09/2015,MATERIALS & SPARES,FUSION,RS COMPONENTS LTD,5100327126,59.39,
United Kingdom Atomic Energy Authority,United Kingdom Atomic Energy Authority,28/09/2015,BUILDING REPAIRS,FUSION,LORNE STEWART PLC,5100327132,"6,853.01",
United Kingdom Atomic Energy Authority,United Kingdom Atomic Energy Authority,05/10/2015,MATERIALS & SPARES,FUSION,FARNELL ELECTRONIC,5100327156,45.35,
United Kingdom Atomic Energy Authority,United Kingdom Atomic Energy Authority,30/09/2015,PLANT & EQUIPMENT,FUSION,MF HYDRAULICS LTD,5100327312,178.57,
United Kingdom Atomic Energy Authority,United Kingdom Atomic Energy Authority,05/10/2015,MATERIALS & SPARES,FUSION,RS COMPONENTS LTD,5100327342,81.46,
United Kingdom Atomic Energy Authority,United Kingdom Atomic Energy Authority,05/10/2015,MATERIALS & SPARES,FUSION,FARNELL ELECTRONIC,5100327398,9.27,
United Kingdom Atomic Energy Authority,United Kingdom Atomic Energy Authority,12/10/2015,MATERIALS & SPARES,FUSION,FARNELL ELECTRONIC,5100327486,462.01,
United Kingdom Atomic Energy Authority,United Kingdom Atomic Energy Authority,12/10/2015,MATERIALS & SPARES,FUSION,RS COMPONENTS LTD,5100327845,57.96,
United Kingdom Atomic Energy Authority,United Kingdom Atomic Energy Authority,19/10/2015,MATERIALS & SPARES,FUSION,FARNELL ELECTRONIC,5100327850,144.15,
United Kingdom Atomic Energy Authority,United Kingdom Atomic Energy Authority,19/10/2015,PLANT & EQUIPMENT,FUSION,QUARTZELEC LTD,5100327876,"70,452.06",
United Kingdom Atomic Energy Authority,United Kingdom Atomic Energy Authority,21/10/2015,MATERIALS & SPARES,FUSION,RS COMPONENTS LTD,5100327904,82.07,
United Kingdom Atomic Energy Authority,United Kingdom Atomic Energy Authority,21/10/2015,MATERIALS & SPARES,FUSION,RS COMPONENTS LTD,5100327936,274.85,
United Kingdom Atomic Energy Authority,United Kingdom Atomic Energy Authority,21/10/2015,MATERIALS & SPARES,FUSION,RS COMPONENTS LTD,5100327951,62.99,
United Kingdom Atomic Energy Authority,United Kingdom Atomic Energy Authority,21/10/2015,MATERIALS & SPARES,FUSION,MOUSER ELECTRONICS,5100328078,66.10,
United Kingdom Atomic Energy Authority,United Kingdom Atomic Energy Authority,21/10/2015,MATERIALS & SPARES,FUSION,FARNELL ELECTRONIC,5100328100,161.72,
United Kingdom Atomic Energy Authority,United Kingdom Atomic Energy Authority,21/10/2015,MATERIALS & SPARES,FUSION,FARNELL ELECTRONIC,5100328143,66.04,
United Kingdom Atomic Energy Authority,United Kingdom Atomic Energy Authority,21/10/2015,MATERIALS & SPARES,FUSION,FARNELL ELECTRONIC,5100328144,188.93,
United Kingdom Atomic Energy Authority,United Kingdom Atomic Energy Authority,02/10/2015,SUBSISTENCE,FUSION,EMPLOYEE EXPENSES,100783592,5.00,
United Kingdom Atomic Energy Authority,United Kingdom Atomic Energy Authority,02/10/2015,MILEAGE ALLOWANCE,FUSION,EMPLOYEE EXPENSES,100783592,54.00,
United Kingdom Atomic Energy Authority,United Kingdom Atomic Energy Authority,05/10/2015,PLANT & EQUIPMENT,FUSION,INNOLAS UK LTD,5100326516,"2,956.52",
United Kingdom Atomic Energy Authority,United Kingdom Atomic Energy Authority,28/09/2015,MATERIALS & SPARES,FUSION,SCHROFF UK LTD,5100326862,220.50,
United Kingdom Atomic Energy Authority,United Kingdom Atomic Energy Authority,07/10/2015,PLANT & EQUIPMENT,FUSION,PFEIFFER VACUUM UK,5100326952,668.69,
United Kingdom Atomic Energy Authority,United Kingdom Atomic Energy Authority,28/09/2015,MATERIALS & SPARES,FUSION,FARNELL ELECTRONIC,5100326966,16.41,
United Kingdom Atomic Energy Authority,United Kingdom Atomic Energy Authority,28/09/2015,MATERIALS & SPARES,FUSION,RS COMPONENTS LTD,5100327003,100.99,
United Kingdom Atomic Energy Authority,United Kingdom Atomic Energy Authority,28/09/2015,PLANT & EQUIPMENT,FUSION,NATIONAL INSTRUMENTS LTD,5100327021,"10,537.35",
United Kingdom Atomic Energy Authority,United Kingdom Atomic Energy Authority,28/09/2015,SOFTWARE,FUSION,OPTIMA RESEARCH LTD,5100327023,"1,195.19",
United Kingdom Atomic Energy Authority,United Kingdom Atomic Energy Authority,28/09/2015,GASES,FUSION,BOC LTD,5100327070,69.10,
United Kingdom Atomic Energy Authority,United Kingdom Atomic Energy Authority,28/09/2015,PLANT & EQUIPMENT,FUSION,NATIONAL INSTRUMENTS LTD,5100327087,"10,530.00",
United Kingdom Atomic Energy Authority,United Kingdom Atomic Energy Authority,28/09/2015,MATERIALS & SPARES,FUSION,THORLABS LTD,5100327144,232.72,
United Kingdom Atomic Energy Authority,United Kingdom Atomic Energy Authority,07/10/2015,DELIVERY & CARRIAGE,FUSION,CAEN SPA,5100327165,315.50,
United Kingdom Atomic Energy Authority,United Kingdom Atomic Energy Authority,05/10/2015,MATERIALS & SPARES,FUSION,THORLABS LTD,5100327218,279.36,
United Kingdom Atomic Energy Authority,United Kingdom Atomic Energy Authority,05/10/2015,MATERIALS & SPARES,FUSION,THORLABS LTD,5100327220,74.24,
United Kingdom Atomic Energy Authority,United Kingdom Atomic Energy Authority,05/10/2015,MATERIALS & SPARES,FUSION,THORLABS LTD,5100327224,56.00,
United Kingdom Atomic Energy Authority,United Kingdom Atomic Energy Authority,05/10/2015,MATERIALS & SPARES,FUSION,NEWBURY ELECTRONICS,5100327227,493.72,
United Kingdom Atomic Energy Authority,United Kingdom Atomic Energy Authority,05/10/2015,PLANT SPARES,FUSION,AMETEK ADVANCE MEASUREMENT,5100327248,814.20,
United Kingdom Atomic Energy Authority,United Kingdom Atomic Energy Authority,05/10/2015,PLANT & EQUIPMENT,FUSION,QMC INSTRUMENT LTD,5100327290,"1,250.00",
United Kingdom Atomic Energy Authority,United Kingdom Atomic Energy Authority,05/10/2015,MATERIALS & SPARES,FUSION,FLANN MICROWAVE INSTRUMENTS,5100327343,"4,176.00",
United Kingdom Atomic Energy Authority,United Kingdom Atomic Energy Authority,05/10/2015,MATERIALS & SPARES,FUSION,RS COMPONENTS LTD,5100327353,29.88,
United Kingdom Atomic Energy Authority,United Kingdom Atomic Energy Authority,05/10/2015,MATERIALS & SPARES,FUSION,FARNELL ELECTRONIC,5100327404,5.68,
United Kingdom Atomic Energy Authority,United Kingdom Atomic Energy Authority,07/10/2015,GASES,FUSION,BOC LTD,5100327428,"3,183.82",
United Kingdom Atomic Energy Authority,United Kingdom Atomic Energy Authority,12/10/2015,MATERIALS & SPARES,FUSION,ACRONA ENGINEERING LTD,5100327467,319.65,
United Kingdom Atomic Energy Authority,United Kingdom Atomic Energy Authority,12/10/2015,MATERIALS & SPARES,FUSION,NEWBURY ELECTRONICS,5100327469,62.11,
United Kingdom Atomic Energy Authority,United Kingdom Atomic Energy Authority,12/10/2015,GASES,FUSION,BOC LTD,5100327511,304.11,
United Kingdom Atomic Energy Authority,United Kingdom Atomic Energy Authority,12/10/2015,MATERIALS & SPARES,FUSION,B&M Engineering Ltd,5100327545,125.00,
United Kingdom Atomic Energy Authority,United Kingdom Atomic Energy Authority,12/10/2015,MATERIALS & SPARES,FUSION,Marine & Industrial Plastics Ltd,5100327583,"1,408.00",
United Kingdom Atomic Energy Authority,United Kingdom Atomic Energy Authority,12/10/2015,MATERIALS & SPARES,FUSION,THORLABS LTD,5100327595,262.91,
United Kingdom Atomic Energy Authority,United Kingdom Atomic Energy Authority,12/10/2015,PLANT & EQUIPMENT,FUSION,COLE-PALMER INSTRUMENTAL COMPANY LTD,5100327599,138.55,
United Kingdom Atomic Energy Authority,United Kingdom Atomic Energy Authority,14/10/2015,PROFESSIONAL SERVICES,FUSION,i2 Security Services,5100327674,416.00,
United Kingdom Atomic Energy Authority,United Kingdom Atomic Energy Authority,12/10/2015,MATERIALS & SPARES,FUSION,Mi-Net Technology Ltd,5100327698,"6,214.00",
United Kingdom Atomic Energy Authority,United Kingdom Atomic Energy Authority,12/10/2015,MATERIALS & SPARES,FUSION,RS COMPONENTS LTD,5100327798,68.54,
United Kingdom Atomic Energy Authority,United Kingdom Atomic Energy Authority,14/10/2015,PROFESSIONAL SERVICES,FUSION,SWAGELOK LONDON,5100327811,276.65,
United Kingdom Atomic Energy Authority,United Kingdom Atomic Energy Authority,12/10/2015,PLANT & EQUIPMENT,FUSION,INNOLAS UK LTD,5100327821,"4,758.00",
United Kingdom Atomic Energy Authority,United Kingdom Atomic Energy Authority,12/10/2015,MATERIALS & SPARES,FUSION,RS COMPONENTS LTD,5100327848,88.31,
United Kingdom Atomic Energy Authority,United Kingdom Atomic Energy Authority,19/10/2015,MATERIALS & SPARES,FUSION,THORLABS LTD,5100327911,275.63,
United Kingdom Atomic Energy Authority,United Kingdom Atomic Energy Authority,19/10/2015,MATERIALS & SPARES,FUSION,FARNELL ELECTRONIC,5100327916,6.36,
United Kingdom Atomic Energy Authority,United Kingdom Atomic Energy Authority,19/10/2015,MATERIALS & SPARES,FUSION,RS COMPONENTS LTD,5100327942,489.49,
United Kingdom Atomic Energy Authority,United Kingdom Atomic Energy Authority,30/09/2015,PLANT & EQUIPMENT,FUSION,American Magnetics Inc,1900061135," 2,978.16",
United Kingdom Atomic Energy Authority,United Kingdom Atomic Energy Authority,01/10/2015,DELIVERY & CARRIAGE,FUSION,UCC University College Cork,1900061138, 349.33,
United Kingdom Atomic Energy Authority,United Kingdom Atomic Energy Authority,01/10/2015,INTERVIEW EXPENSES,FUSION,INTERVIEW EXPENSES,1900061139, 440.22,
United Kingdom Atomic Energy Authority,United Kingdom Atomic Energy Authority,06/10/2015,PLANT & EQUIPMENT,FUSION,40-30 Uk Ltd,1900061142," 1,416.00",
United Kingdom Atomic Energy Authority,United Kingdom Atomic Energy Authority,10/10/2015,BOOKS & PUBLICATIONS,FUSION,EMPLOYEE EXPENSES,100783668,34.60,
United Kingdom Atomic Energy Authority,United Kingdom Atomic Energy Authority,02/10/2015,PROFESSIONAL SUBSCRIPTION,FUSION,EMPLOYEE EXPENSES,100783571,100.00,
United Kingdom Atomic Energy Authority,United Kingdom Atomic Energy Authority,07/10/2015,MATERIALS & SPARES,FUSION,SCHROFF UK LTD,5100327175,678.16,
United Kingdom Atomic Energy Authority,United Kingdom Atomic Energy Authority,05/10/2015,MATERIALS & SPARES,FUSION,WADSWORTH (A DIVISION OF PRISM DATA,5100327282,43.60,
United Kingdom Atomic Energy Authority,United Kingdom Atomic Energy Authority,19/10/2015,REPAIRS & MAINTENANCE,FUSION,ADVATEK,5100327966,"3,410.42",
United Kingdom Atomic Energy Authority,United Kingdom Atomic Energy Authority,19/10/2015,MATERIALS & SPARES,FUSION,SCREWFIX DIRECT LTD,5100328131,67.11,
United Kingdom Atomic Energy Authority,United Kingdom Atomic Energy Authority,05/10/2015,IT EQUIPMENT NON CAPITAL,FUSION,SCAN COMPUTERS INTERNATIONAL LTD,5100320480,"2,144.00",
United Kingdom Atomic Energy Authority,United Kingdom Atomic Energy Authority,28/09/2015,MATERIALS & SPARES,FUSION,FARNELL ELECTRONIC,5100327051,"2,609.25",
United Kingdom Atomic Energy Authority,United Kingdom Atomic Energy Authority,28/09/2015,MATERIALS & SPARES,FUSION,SM System UK Ltd,5100327064,"1,474.00",
United Kingdom Atomic Energy Authority,United Kingdom Atomic Energy Authority,28/09/2015,MATERIALS & SPARES,FUSION,SM System UK Ltd,5100327065,254.00,
United Kingdom Atomic Energy Authority,United Kingdom Atomic Energy Authority,28/09/2015,IT EQUIPMENT NON CAPITAL,FUSION,SCAN COMPUTERS INTERNATIONAL LTD,5100327142,"3,150.82",
United Kingdom Atomic Energy Authority,United Kingdom Atomic Energy Authority,28/09/2015,MATERIALS & SPARES,FUSION,FARNELL ELECTRONIC,5100327157,172.25,
United Kingdom Atomic Energy Authority,United Kingdom Atomic Energy Authority,28/09/2015,MATERIALS & SPARES,FUSION,FARNELL ELECTRONIC,5100327166,92.45,
United Kingdom Atomic Energy Authority,United Kingdom Atomic Energy Authority,05/10/2015,IT EQUIPMENT NON CAPITAL,FUSION,SCAN COMPUTERS INTERNATIONAL LTD,5100327284,"2,985.10",
United Kingdom Atomic Energy Authority,United Kingdom Atomic Energy Authority,05/10/2015,IT EQUIPMENT NON CAPITAL,FUSION,SCAN COMPUTERS INTERNATIONAL LTD,5100327326,-25.00,
United Kingdom Atomic Energy Authority,United Kingdom Atomic Energy Authority,05/10/2015,IT EQUIPMENT NON CAPITAL,FUSION,SCAN COMPUTERS INTERNATIONAL LTD,5100327327,"-2,119.00",
United Kingdom Atomic Energy Authority,United Kingdom Atomic Energy Authority,05/10/2015,IT EQUIPMENT NON CAPITAL,FUSION,SCAN COMPUTERS INTERNATIONAL LTD,5100327479,"1,510.33",
United Kingdom Atomic Energy Authority,United Kingdom Atomic Energy Authority,12/10/2015,PLANT SPARES,FUSION,AURIGA EUROPE PLC,5100327575,120.00,
United Kingdom Atomic Energy Authority,United Kingdom Atomic Energy Authority,12/10/2015,IT EQUIPMENT NON CAPITAL,FUSION,SCAN COMPUTERS INTERNATIONAL LTD,5100327592,545.84,
United Kingdom Atomic Energy Authority,United Kingdom Atomic Energy Authority,12/10/2015,MATERIALS & SPARES,FUSION,SOUTHERN CALIBRATION LABORATORY,5100327828,154.36,
United Kingdom Atomic Energy Authority,United Kingdom Atomic Energy Authority,19/10/2015,CONSUMABLES,FUSION,SEAWARD ELECTRONIC LTD,5100327910,299.00,
United Kingdom Atomic Energy Authority,United Kingdom Atomic Energy Authority,05/10/2015,REPAIRS & MAINTENANCE,FUSION,CHUBB ELECTRONIC SECURITY LTD,5100325726,250.00,
United Kingdom Atomic Energy Authority,United Kingdom Atomic Energy Authority,05/10/2015,REPAIRS & MAINTENANCE,FUSION,CHUBB ELECTRONIC SECURITY LTD,5100325738,600.00,
United Kingdom Atomic Energy Authority,United Kingdom Atomic Energy Authority,05/10/2015,REPAIRS & MAINTENANCE,FUSION,CHUBB ELECTRONIC SECURITY LTD,5100326777,-429.31,
United Kingdom Atomic Energy Authority,United Kingdom Atomic Energy Authority,05/10/2015,REPAIRS & MAINTENANCE,FUSION,CHUBB ELECTRONIC SECURITY LTD,5100326778,-317.69,
United Kingdom Atomic Energy Authority,United Kingdom Atomic Energy Authority,05/10/2015,REPAIRS & MAINTENANCE,FUSION,CHUBB ELECTRONIC SECURITY LTD,5100326779,-171.72,
United Kingdom Atomic Energy Authority,United Kingdom Atomic Energy Authority,05/10/2015,REPAIRS & MAINTENANCE,FUSION,CHUBB ELECTRONIC SECURITY LTD,5100327302,228.55,
United Kingdom Atomic Energy Authority,United Kingdom Atomic Energy Authority,05/10/2015,REPAIRS & MAINTENANCE,FUSION,CHUBB ELECTRONIC SECURITY LTD,5100327303,422.82,
United Kingdom Atomic Energy Authority,United Kingdom Atomic Energy Authority,05/10/2015,REPAIRS & MAINTENANCE,FUSION,CHUBB ELECTRONIC SECURITY LTD,5100327304,571.37,
United Kingdom Atomic Energy Authority,United Kingdom Atomic Energy Authority,21/10/2015,MATERIALS & SPARES,FUSION,SM System UK Ltd,5100328054,978.00,
United Kingdom Atomic Energy Authority,United Kingdom Atomic Energy Authority,12/10/2015,BUILDING REPAIRS,FUSION,KNOWLES & SONS (OXFORD) LTD,5100327618,113.29,
United Kingdom Atomic Energy Authority,United Kingdom Atomic Energy Authority,24/10/2015,SUBSISTENCE,FUSION,EMPLOYEE EXPENSES,100785834,5.25,
United Kingdom Atomic Energy Authority,United Kingdom Atomic Energy Authority,24/10/2015,SUBSISTENCE,FUSION,EMPLOYEE EXPENSES,100785836,2.33,
United Kingdom Atomic Energy Authority,United Kingdom Atomic Energy Authority,24/10/2015,SUBSISTENCE,FUSION,EMPLOYEE EXPENSES,100785837,44.65,
United Kingdom Atomic Energy Authority,United Kingdom Atomic Energy Authority,24/10/2015,SUBSISTENCE,FUSION,EMPLOYEE EXPENSES,100785837,24.08,
United Kingdom Atomic Energy Authority,United Kingdom Atomic Energy Authority,24/10/2015,MILEAGE ALLOWANCE,FUSION,EMPLOYEE EXPENSES,100785837,90.90,
United Kingdom Atomic Energy Authority,United Kingdom Atomic Energy Authority,24/10/2015,ROAD TRAVEL,FUSION,EMPLOYEE EXPENSES,100785834,4.75,
United Kingdom Atomic Energy Authority,United Kingdom Atomic Energy Authority,24/10/2015,ROAD TRAVEL,FUSION,EMPLOYEE EXPENSES,100785835,4.75,
United Kingdom Atomic Energy Authority,United Kingdom Atomic Energy Authority,24/10/2015,ROAD TRAVEL,FUSION,EMPLOYEE EXPENSES,100785836,4.75,
United Kingdom Atomic Energy Authority,United Kingdom Atomic Energy Authority,24/10/2015,ROAD TRAVEL,FUSION,EMPLOYEE EXPENSES,100785837,32.00,
United Kingdom Atomic Energy Authority,United Kingdom Atomic Energy Authority,24/10/2015,ROAD TRAVEL,FUSION,EMPLOYEE EXPENSES,100785837,5.42,
United Kingdom Atomic Energy Authority,United Kingdom Atomic Energy Authority,01/10/2015,INTERVIEW EXPENSES,FUSION,INTERVIEW EXPENSES,1900061140, 469.94,
United Kingdom Atomic Energy Authority,United Kingdom Atomic Energy Authority,28/09/2015,PROFESSIONAL SERVICES,FUSION,JSB UK and Ireland Ltd,5100325490,"79,982.49",
United Kingdom Atomic Energy Authority,United Kingdom Atomic Energy Authority,02/10/2015,MATERIALS & SPARES,FUSION,FILEDER FILTER LTD,5100325540,15.00,
United Kingdom Atomic Energy Authority,United Kingdom Atomic Energy Authority,28/09/2015,REPAIRS & MAINTENANCE,FUSION,WESSINGTON CRYOGENICS,5100326976,160.00,
United Kingdom Atomic Energy Authority,United Kingdom Atomic Energy Authority,28/09/2015,REPAIRS & MAINTENANCE,FUSION,WESSINGTON CRYOGENICS,5100326977,71.00,
United Kingdom Atomic Energy Authority,United Kingdom Atomic Energy Authority,28/09/2015,PROFESSIONAL SERVICES,FUSION,MKS INSTRUMENT UK LIMITED,5100326980,"1,994.70",
United Kingdom Atomic Energy Authority,United Kingdom Atomic Energy Authority,28/09/2015,MATERIALS & SPARES,FUSION,RS COMPONENTS LTD,5100327013,222.19,
United Kingdom Atomic Energy Authority,United Kingdom Atomic Energy Authority,28/09/2015,PROFESSIONAL SERVICES,FUSION,ONE FIX RECRUITMENT,5100327031,425.00,
United Kingdom Atomic Energy Authority,United Kingdom Atomic Energy Authority,28/09/2015,IT EQUIPMENT NON CAPITAL,FUSION,Inverter Drives Southern Ltd,5100327032,"1,573.00",
United Kingdom Atomic Energy Authority,United Kingdom Atomic Energy Authority,28/09/2015,PROFESSIONAL SERVICES,FUSION,JSB UK and Ireland Ltd,5100327036,"-79,982.49",
United Kingdom Atomic Energy Authority,United Kingdom Atomic Energy Authority,05/10/2015,PROFESSIONAL SERVICES,FUSION,JSB UK and Ireland Ltd,5100327037,"66,652.07",
United Kingdom Atomic Energy Authority,United Kingdom Atomic Energy Authority,28/09/2015,MATERIALS & SPARES,FUSION,RS COMPONENTS LTD,5100327103,74.49,
United Kingdom Atomic Energy Authority,United Kingdom Atomic Energy Authority,30/09/2015,PLANT SPARES,FUSION,SENIOR AEROSPACE METAL BELLOWS,5100327111,"13,490.98",
United Kingdom Atomic Energy Authority,United Kingdom Atomic Energy Authority,28/09/2015,MATERIALS & SPARES,FUSION,RS COMPONENTS LTD,5100327128,49.37,
United Kingdom Atomic Energy Authority,United Kingdom Atomic Energy Authority,28/09/2015,MATERIALS & SPARES,FUSION,RS COMPONENTS LTD,5100327129,14.70,
United Kingdom Atomic Energy Authority,United Kingdom Atomic Energy Authority,28/09/2015,MATERIALS & SPARES,FUSION,BSS OXFORD,5100327198,38.15,
United Kingdom Atomic Energy Authority,United Kingdom Atomic Energy Authority,05/10/2015,PLANT & EQUIPMENT,FUSION,OMEGA ENGINEERING LTD,5100327239,859.80,
United Kingdom Atomic Energy Authority,United Kingdom Atomic Energy Authority,07/10/2015,PLANT & EQUIPMENT,FUSION,LOT ORIEL LTD,5100327252,884.00,
United Kingdom Atomic Energy Authority,United Kingdom Atomic Energy Authority,05/10/2015,PLANT & EQUIPMENT,FUSION,LOT ORIEL LTD,5100327253,230.00,
United Kingdom Atomic Energy Authority,United Kingdom Atomic Energy Authority,05/10/2015,PLANT & EQUIPMENT,FUSION,LINDAB LTD,5100327257,50.89,
United Kingdom Atomic Energy Authority,United Kingdom Atomic Energy Authority,30/09/2015,IT EQUIPMENT NON CAPITAL,FUSION,Omniflex (UK) Ltd,5100327264,"65,012.00",
United Kingdom Atomic Energy Authority,United Kingdom Atomic Energy Authority,05/10/2015,PLANT & EQUIPMENT,FUSION,LINDAB LTD,5100327269,11.76,
United Kingdom Atomic Energy Authority,United Kingdom Atomic Energy Authority,05/10/2015,MATERIALS & SPARES,FUSION,SANDVIK MATERIALS TECHNOLOGY EMEA A,5100327285,208.00,
United Kingdom Atomic Energy Authority,United Kingdom Atomic Energy Authority,05/10/2015,MATERIALS & SPARES,FUSION,BSS OXFORD,5100327288,98.55,
United Kingdom Atomic Energy Authority,United Kingdom Atomic Energy Authority,05/10/2015,MATERIALS & SPARES,FUSION,RS COMPONENTS LTD,5100327332,11.49,
United Kingdom Atomic Energy Authority,United Kingdom Atomic Energy Authority,05/10/2015,PLANT & EQUIPMENT,FUSION,MCDC VACCUUM LTD,5100327357,115.08,
United Kingdom Atomic Energy Authority,United Kingdom Atomic Energy Authority,05/10/2015,MATERIALS & SPARES,FUSION,RS COMPONENTS LTD,5100327364,457.22,
United Kingdom Atomic Energy Authority,United Kingdom Atomic Energy Authority,05/10/2015,MATERIALS & SPARES,FUSION,RS COMPONENTS LTD,5100327380,113.73,
United Kingdom Atomic Energy Authority,United Kingdom Atomic Energy Authority,05/10/2015,MATERIALS & SPARES,FUSION,RS COMPONENTS LTD,5100327381,68.13,
United Kingdom Atomic Energy Authority,United Kingdom Atomic Energy Authority,12/10/2015,MATERIALS & SPARES,FUSION,ABLE INSTRUMENTS & CONTROLS LTD,5100327387,"4,032.00",
United Kingdom Atomic Energy Authority,United Kingdom Atomic Energy Authority,05/10/2015,GASES,FUSION,BOC LTD,5100327424,170.44,
United Kingdom Atomic Energy Authority,United Kingdom Atomic Energy Authority,05/10/2015,MATERIALS & SPARES,FUSION,RS COMPONENTS LTD,5100327439,49.87,
United Kingdom Atomic Energy Authority,United Kingdom Atomic Energy Authority,12/10/2015,MATERIALS & SPARES,FUSION,HOTCHKISS AIR SUPPLY,5100327457,31.00,
United Kingdom Atomic Energy Authority,United Kingdom Atomic Energy Authority,12/10/2015,MATERIALS & SPARES,FUSION,HOTCHKISS AIR SUPPLY,5100327458,114.14,
United Kingdom Atomic Energy Authority,United Kingdom Atomic Energy Authority,12/10/2015,MATERIALS & SPARES,FUSION,ABB Limited,5100327471,"32,916.75",
United Kingdom Atomic Energy Authority,United Kingdom Atomic Energy Authority,12/10/2015,GASES,FUSION,BOC LTD,5100327503,283.68,
United Kingdom Atomic Energy Authority,United Kingdom Atomic Energy Authority,12/10/2015,MATERIALS & SPARES,FUSION,BSS OXFORD,5100327522,9.93,
United Kingdom Atomic Energy Authority,United Kingdom Atomic Energy Authority,12/10/2015,MATERIALS & SPARES,FUSION,BSS OXFORD,5100327523,38.15,
United Kingdom Atomic Energy Authority,United Kingdom Atomic Energy Authority,19/10/2015,MATERIALS & SPARES,FUSION,BSS OXFORD,5100327524,17.27,
United Kingdom Atomic Energy Authority,United Kingdom Atomic Energy Authority,12/10/2015,PLANT & EQUIPMENT,FUSION,SOFFRON SCIENTIFIC EQUIPMENT LTD,5100327594,685.00,
United Kingdom Atomic Energy Authority,United Kingdom Atomic Energy Authority,12/10/2015,PLANT & EQUIPMENT,FUSION,COLE-PALMER INSTRUMENTAL COMPANY LTD,5100327598,24.95,
United Kingdom Atomic Energy Authority,United Kingdom Atomic Energy Authority,12/10/2015,PLANT & EQUIPMENT,FUSION,COLE-PALMER INSTRUMENTAL COMPANY LTD,5100327600,208.95,
United Kingdom Atomic Energy Authority,United Kingdom Atomic Energy Authority,12/10/2015,MATERIALS & SPARES,FUSION,ABB Limited,5100327615,"-32,916.75",
United Kingdom Atomic Energy Authority,United Kingdom Atomic Energy Authority,14/10/2015,CAR HIRE,FUSION,LEASEDRIVE VELO,5100327677,34.39,
United Kingdom Atomic Energy Authority,United Kingdom Atomic Energy Authority,12/10/2015,MATERIALS & SPARES,FUSION,SANDVIK MATERIALS TECHNOLOGY EMEA A,5100327745,115.87,
United Kingdom Atomic Energy Authority,United Kingdom Atomic Energy Authority,14/10/2015,MATERIALS & SPARES,FUSION,AGILENT TECHNOLOGIES LDA UL LTD,5100327748,325.00,
United Kingdom Atomic Energy Authority,United Kingdom Atomic Energy Authority,12/10/2015,GASES,FUSION,BOC LTD,5100327755,255.66,
United Kingdom Atomic Energy Authority,United Kingdom Atomic Energy Authority,12/10/2015,PLANT & EQUIPMENT,FUSION,EDMUNDSON ELECTRICALS LTD,5100327761,218.29,
United Kingdom Atomic Energy Authority,United Kingdom Atomic Energy Authority,12/10/2015,MATERIALS & SPARES,FUSION,RS COMPONENTS LTD,5100327784,618.29,
United Kingdom Atomic Energy Authority,United Kingdom Atomic Energy Authority,12/10/2015,MATERIALS & SPARES,FUSION,RS COMPONENTS LTD,5100327805,38.20,
United Kingdom Atomic Energy Authority,United Kingdom Atomic Energy Authority,12/10/2015,MATERIALS & SPARES,FUSION,RS COMPONENTS LTD,5100327806,5.34,
United Kingdom Atomic Energy Authority,United Kingdom Atomic Energy Authority,14/10/2015,PROFESSIONAL SERVICES,FUSION,SWAGELOK LONDON,5100327809,144.55,
United Kingdom Atomic Energy Authority,United Kingdom Atomic Energy Authority,14/10/2015,PROFESSIONAL SERVICES,FUSION,SWAGELOK LONDON,5100327824,428.46,
United Kingdom Atomic Energy Authority,United Kingdom Atomic Energy Authority,14/10/2015,MATERIALS & SPARES,FUSION,TVH,5100327827,209.95,
United Kingdom Atomic Energy Authority,United Kingdom Atomic Energy Authority,12/10/2015,MATERIALS & SPARES,FUSION,RS COMPONENTS LTD,5100327834,285.78,
United Kingdom Atomic Energy Authority,United Kingdom Atomic Energy Authority,19/10/2015,MATERIALS & SPARES,FUSION,RS COMPONENTS LTD,5100327869,50.19,
United Kingdom Atomic Energy Authority,United Kingdom Atomic Energy Authority,19/10/2015,MATERIALS & SPARES,FUSION,SANDVIK MATERIALS TECHNOLOGY EMEA A,5100327891,45.00,
United Kingdom Atomic Energy Authority,United Kingdom Atomic Energy Authority,19/10/2015,GASES,FUSION,BOC LTD,5100327896,173.55,
United Kingdom Atomic Energy Authority,United Kingdom Atomic Energy Authority,19/10/2015,MATERIALS & SPARES,FUSION,RS COMPONENTS LTD,5100327897,134.26,
United Kingdom Atomic Energy Authority,United Kingdom Atomic Energy Authority,19/10/2015,MATERIALS & SPARES,FUSION,RS COMPONENTS LTD,5100327905,11.51,
United Kingdom Atomic Energy Authority,United Kingdom Atomic Energy Authority,19/10/2015,MATERIALS & SPARES,FUSION,FARNELL ELECTRONIC,5100327918,166.30,
United Kingdom Atomic Energy Authority,United Kingdom Atomic Energy Authority,19/10/2015,MATERIALS & SPARES,FUSION,RS COMPONENTS LTD,5100327937,38.06,
United Kingdom Atomic Energy Authority,United Kingdom Atomic Energy Authority,19/10/2015,MATERIALS & SPARES,FUSION,RS COMPONENTS LTD,5100327938,19.12,
United Kingdom Atomic Energy Authority,United Kingdom Atomic Energy Authority,19/10/2015,MATERIALS & SPARES,FUSION,RS COMPONENTS LTD,5100327941,56.24,
United Kingdom Atomic Energy Authority,United Kingdom Atomic Energy Authority,19/10/2015,PROFESSIONAL SERVICES,FUSION,SWAGELOK LONDON,5100327958,948.35,
United Kingdom Atomic Energy Authority,United Kingdom Atomic Energy Authority,19/10/2015,MATERIALS & SPARES,FUSION,FORWARD 2000 LTD,5100327985,850.00,
United Kingdom Atomic Energy Authority,United Kingdom Atomic Energy Authority,19/10/2015,MATERIALS & SPARES,FUSION,HOTCHKISS AIR SUPPLY,5100327990,4.25,
United Kingdom Atomic Energy Authority,United Kingdom Atomic Energy Authority,19/10/2015,MATERIALS & SPARES,FUSION,Dairy Pipe Lines Ltd,5100327998,681.35,
United Kingdom Atomic Energy Authority,United Kingdom Atomic Energy Authority,19/10/2015,PLANT & EQUIPMENT,FUSION,PFEIFFER VACUUM UK,5100328029,629.82,
United Kingdom Atomic Energy Authority,United Kingdom Atomic Energy Authority,19/10/2015,MATERIALS & SPARES,FUSION,KEY INDUSTRIAL EQUIPMENT LTD,5100328087,469.30,
United Kingdom Atomic Energy Authority,United Kingdom Atomic Energy Authority,17/10/2015,SUBSISTENCE,FUSION,EMPLOYEE EXPENSES,100783809,3.33,
United Kingdom Atomic Energy Authority,United Kingdom Atomic Energy Authority,17/10/2015,SUBSISTENCE,FUSION,EMPLOYEE EXPENSES,100783810,5.75,
United Kingdom Atomic Energy Authority,United Kingdom Atomic Energy Authority,17/10/2015,SUBSISTENCE,FUSION,EMPLOYEE EXPENSES,100783810,4.17,
United Kingdom Atomic Energy Authority,United Kingdom Atomic Energy Authority,17/10/2015,SUBSISTENCE,FUSION,EMPLOYEE EXPENSES,100783811,5.20,
United Kingdom Atomic Energy Authority,United Kingdom Atomic Energy Authority,17/10/2015,SUBSISTENCE,FUSION,EMPLOYEE EXPENSES,100783811,4.17,
United Kingdom Atomic Energy Authority,United Kingdom Atomic Energy Authority,24/10/2015,SUBSISTENCE,FUSION,EMPLOYEE EXPENSES,100785826,65.28,
United Kingdom Atomic Energy Authority,United Kingdom Atomic Energy Authority,17/10/2015,RAIL TRAVEL,FUSION,EMPLOYEE EXPENSES,100783810,50.80,
United Kingdom Atomic Energy Authority,United Kingdom Atomic Energy Authority,17/10/2015,RAIL TRAVEL,FUSION,EMPLOYEE EXPENSES,100783811,50.70,
United Kingdom Atomic Energy Authority,United Kingdom Atomic Energy Authority,17/10/2015,ROAD TRAVEL,FUSION,EMPLOYEE EXPENSES,100783809,4.80,
United Kingdom Atomic Energy Authority,United Kingdom Atomic Energy Authority,17/10/2015,ROAD TRAVEL,FUSION,EMPLOYEE EXPENSES,100783810,9.60,
United Kingdom Atomic Energy Authority,United Kingdom Atomic Energy Authority,17/10/2015,ROAD TRAVEL,FUSION,EMPLOYEE EXPENSES,100783811,8.00,
United Kingdom Atomic Energy Authority,United Kingdom Atomic Energy Authority,24/10/2015,ROAD TRAVEL,FUSION,EMPLOYEE EXPENSES,100785826,16.67,
United Kingdom Atomic Energy Authority,United Kingdom Atomic Energy Authority,17/10/2015,TRAINING COURSE FEES,FUSION,EMPLOYEE EXPENSES,100783814,38.00,
United Kingdom Atomic Energy Authority,United Kingdom Atomic Energy Authority,28/09/2015,PROFESSIONAL SERVICES,FUSION,SCIENTIFICS LTD,5100326243,"10,755.00",
United Kingdom Atomic Energy Authority,United Kingdom Atomic Energy Authority,28/09/2015,PROFESSIONAL SERVICES,FUSION,SCIENTIFICS LTD,5100326245,316.00,
United Kingdom Atomic Energy Authority,United Kingdom Atomic Energy Authority,28/09/2015,BUILDING REPAIRS,FUSION,LORNE STEWART PLC,5100326517,289.19,
United Kingdom Atomic Energy Authority,United Kingdom Atomic Energy Authority,28/09/2015,PLANT SPARES,FUSION,AXTEC WEIGHT TECHNOLOGY ,5100326906,"-1,895.25",
United Kingdom Atomic Energy Authority,United Kingdom Atomic Energy Authority,28/09/2015,PROFESSIONAL SERVICES,FUSION,SCIENTIFICS LTD,5100326983,"5,835.00",
United Kingdom Atomic Energy Authority,United Kingdom Atomic Energy Authority,28/09/2015,PLANT & EQUIPMENT,FUSION,AIR SEA CONTAINERS LTD,5100327035,433.05,
United Kingdom Atomic Energy Authority,United Kingdom Atomic Energy Authority,28/09/2015,PLANT & EQUIPMENT,FUSION,MF HYDRAULICS LTD,5100327061,155.04,
United Kingdom Atomic Energy Authority,United Kingdom Atomic Energy Authority,05/10/2015,PLANT & EQUIPMENT,FUSION,PATRICO LTD,5100327133,"2,300.00",
United Kingdom Atomic Energy Authority,United Kingdom Atomic Energy Authority,05/10/2015,MATERIALS & SPARES,FUSION,BUDGET FORKTRUCKS LTD,5100327223,312.00,
United Kingdom Atomic Energy Authority,United Kingdom Atomic Energy Authority,14/10/2015,MATERIALS: HAZARDOUS,FUSION,CHEMTECH WASTE MANAGEMENT,5100327226,"8,025.50",
United Kingdom Atomic Energy Authority,United Kingdom Atomic Energy Authority,05/10/2015,MATERIALS & SPARES,FUSION,BUDGET FORKTRUCKS LTD,5100327229,390.00,
United Kingdom Atomic Energy Authority,United Kingdom Atomic Energy Authority,05/10/2015,MATERIALS & SPARES,FUSION,RS COMPONENTS LTD,5100327231,32.59,
United Kingdom Atomic Energy Authority,United Kingdom Atomic Energy Authority,05/10/2015,PLANT & EQUIPMENT,FUSION,NEW PIG LTD,5100327250,486.09,
United Kingdom Atomic Energy Authority,United Kingdom Atomic Energy Authority,05/10/2015,PLANT & EQUIPMENT,FUSION,FISHER SCIENTIFIC UK LTD,5100327254,353.22,
United Kingdom Atomic Energy Authority,United Kingdom Atomic Energy Authority,05/10/2015,PERSONAL PROTECTIVE EQUIPMENT,FUSION,ARCO LTD,5100327293,53.00,
United Kingdom Atomic Energy Authority,United Kingdom Atomic Energy Authority,05/10/2015,MATERIALS & SPARES,FUSION,RS COMPONENTS LTD,5100327355,24.57,
United Kingdom Atomic Energy Authority,United Kingdom Atomic Energy Authority,05/10/2015,PROFESSIONAL SERVICES,FUSION,SCIENTIFICS LTD,5100327368,"1,250.00",
United Kingdom Atomic Energy Authority,United Kingdom Atomic Energy Authority,05/10/2015,MATERIALS & SPARES,FUSION,RS COMPONENTS LTD,5100327376,36.92,
United Kingdom Atomic Energy Authority,United Kingdom Atomic Energy Authority,07/10/2015,PROFESSIONAL SERVICES,FUSION,OHES ENNVIRONMENTAL LTD,5100327470,"2,782.56",
United Kingdom Atomic Energy Authority,United Kingdom Atomic Energy Authority,05/10/2015,MATERIALS & SPARES,FUSION,FARNELL ELECTRONIC,5100327493,43.55,
United Kingdom Atomic Energy Authority,United Kingdom Atomic Energy Authority,05/10/2015,MATERIALS & SPARES,FUSION,BUDGET FORKTRUCKS LTD,5100327494,-390.00,
United Kingdom Atomic Energy Authority,United Kingdom Atomic Energy Authority,05/10/2015,MATERIALS & SPARES,FUSION,BUDGET FORKTRUCKS LTD,5100327495,390.00,
United Kingdom Atomic Energy Authority,United Kingdom Atomic Energy Authority,12/10/2015,GASES,FUSION,BOC LTD,5100327508,38.48,
United Kingdom Atomic Energy Authority,United Kingdom Atomic Energy Authority,12/10/2015,MATERIALS & SPARES,FUSION,FASTFIX,5100327567,399.92,
United Kingdom Atomic Energy Authority,United Kingdom Atomic Energy Authority,12/10/2015,MATERIALS & SPARES,FUSION,FASTFIX,5100327568,308.11,
United Kingdom Atomic Energy Authority,United Kingdom Atomic Energy Authority,12/10/2015,MATERIALS & SPARES,FUSION,B&M Engineering Ltd,5100327585,106.00,
United Kingdom Atomic Energy Authority,United Kingdom Atomic Energy Authority,14/10/2015,PLANT & EQUIPMENT,FUSION,FRANCIS WARD LTD,5100327601,"1,903.70",
United Kingdom Atomic Energy Authority,United Kingdom Atomic Energy Authority,12/10/2015,BUILDING REPAIRS,FUSION,KNOWLES & SONS (OXFORD) LTD,5100327623,210.44,
United Kingdom Atomic Energy Authority,United Kingdom Atomic Energy Authority,12/10/2015,BUILDING REPAIRS,FUSION,KNOWLES & SONS (OXFORD) LTD,5100327629,"8,074.00",
United Kingdom Atomic Energy Authority,United Kingdom Atomic Energy Authority,12/10/2015,PERSONAL PROTECTIVE EQUIPMENT,FUSION,ARCO LTD,5100327777,64.78,
United Kingdom Atomic Energy Authority,United Kingdom Atomic Energy Authority,19/10/2015,MATERIALS & SPARES,FUSION,RS COMPONENTS LTD,5100327870,133.40,
United Kingdom Atomic Energy Authority,United Kingdom Atomic Energy Authority,19/10/2015,MATERIALS & SPARES,FUSION,RS COMPONENTS LTD,5100327947,133.70,
United Kingdom Atomic Energy Authority,United Kingdom Atomic Energy Authority,19/10/2015,MATERIALS & SPARES,FUSION,Green Machine Computers Ltd,5100327983,"1,525.00",
United Kingdom Atomic Energy Authority,United Kingdom Atomic Energy Authority,19/10/2015,MATERIALS & SPARES,FUSION,FLEXIBLE REINFORCEMENT LIMITED,5100328025,"1,475.00",
United Kingdom Atomic Energy Authority,United Kingdom Atomic Energy Authority,19/10/2015,BUILDING REPAIRS,FUSION,LORNE STEWART PLC,5100328036,547.74,
United Kingdom Atomic Energy Authority,United Kingdom Atomic Energy Authority,19/10/2015,BUILDING REPAIRS,FUSION,LORNE STEWART PLC,5100328037,878.37,
United Kingdom Atomic Energy Authority,United Kingdom Atomic Energy Authority,19/10/2015,MATERIALS & SPARES,FUSION,machine Mart Ltd,5100328056,190.48,
United Kingdom Atomic Energy Authority,United Kingdom Atomic Energy Authority,23/10/2015,DELIVERY & CARRIAGE,FUSION,Westermans International Ltd,1900061168, 65.00,
United Kingdom Atomic Energy Authority,United Kingdom Atomic Energy Authority,19/10/2015,MATERIALS & SPARES,FUSION,FARNELL ELECTRONIC,5100325687,56.25,
United Kingdom Atomic Energy Authority,United Kingdom Atomic Energy Authority,30/09/2015,PLANT & EQUIPMENT,FUSION,GARDNER DENVER ALTON LTD,5100326755,990.90,
United Kingdom Atomic Energy Authority,United Kingdom Atomic Energy Authority,07/10/2015,MATERIALS & SPARES,FUSION,FARNELL ELECTRONIC,5100326934,998.34,
United Kingdom Atomic Energy Authority,United Kingdom Atomic Energy Authority,07/10/2015,MATERIALS & SPARES,FUSION,FARNELL ELECTRONIC,5100327048,365.13,
United Kingdom Atomic Energy Authority,United Kingdom Atomic Energy Authority,28/09/2015,GASES,FUSION,BOC LTD,5100327072,242.30,
United Kingdom Atomic Energy Authority,United Kingdom Atomic Energy Authority,28/09/2015,GASES,FUSION,BOC LTD,5100327073,189.24,
United Kingdom Atomic Energy Authority,United Kingdom Atomic Energy Authority,30/09/2015,MATERIALS & SPARES,FUSION,VG SCIENTA,5100327084,"1,422.59",
United Kingdom Atomic Energy Authority,United Kingdom Atomic Energy Authority,07/10/2015,MATERIALS & SPARES,FUSION,RS COMPONENTS LTD,5100327105,384.76,
United Kingdom Atomic Energy Authority,United Kingdom Atomic Energy Authority,07/10/2015,MATERIALS & SPARES,FUSION,RS COMPONENTS LTD,5100327124,15.19,
United Kingdom Atomic Energy Authority,United Kingdom Atomic Energy Authority,28/09/2015,MATERIALS & SPARES,FUSION,CROMWELL LTD,5100327158,"1,044.94",
United Kingdom Atomic Energy Authority,United Kingdom Atomic Energy Authority,07/10/2015,MATERIALS & SPARES,FUSION,FARNELL ELECTRONIC,5100327168,7.53,
United Kingdom Atomic Energy Authority,United Kingdom Atomic Energy Authority,05/10/2015,PLANT & EQUIPMENT,FUSION,NOR-CAL UK LTD,5100327245,343.50,
United Kingdom Atomic Energy Authority,United Kingdom Atomic Energy Authority,05/10/2015,PLANT & EQUIPMENT,FUSION,NOR-CAL UK LTD,5100327246,356.00,
United Kingdom Atomic Energy Authority,United Kingdom Atomic Energy Authority,07/10/2015,MATERIALS & SPARES,FUSION,RS COMPONENTS LTD,5100327247,465.56,
United Kingdom Atomic Energy Authority,United Kingdom Atomic Energy Authority,05/10/2015,PERSONAL PROTECTIVE EQUIPMENT,FUSION,ARCO LTD,5100327255,47.19,
United Kingdom Atomic Energy Authority,United Kingdom Atomic Energy Authority,05/10/2015,MATERIALS & SPARES,FUSION,VG SCIENTA,5100327328,"3,319.37",
United Kingdom Atomic Energy Authority,United Kingdom Atomic Energy Authority,07/10/2015,MATERIALS & SPARES,FUSION,RS COMPONENTS LTD,5100327374,352.36,
United Kingdom Atomic Energy Authority,United Kingdom Atomic Energy Authority,12/10/2015,MATERIALS & SPARES,FUSION,RS COMPONENTS LTD,5100327379,76.28,
United Kingdom Atomic Energy Authority,United Kingdom Atomic Energy Authority,14/10/2015,MATERIALS & SPARES,FUSION,METALFAST (A DIVISION OF,5100327429,188.04,
United Kingdom Atomic Energy Authority,United Kingdom Atomic Energy Authority,12/10/2015,GASES,FUSION,BOC LTD,5100327510,358.73,
United Kingdom Atomic Energy Authority,United Kingdom Atomic Energy Authority,14/10/2015,MATERIALS & SPARES,FUSION,FTI LTD,5100327525,186.64,
United Kingdom Atomic Energy Authority,United Kingdom Atomic Energy Authority,12/10/2015,MATERIALS & SPARES,FUSION,METALFAST (A DIVISION OF,5100327707,86.20,
United Kingdom Atomic Energy Authority,United Kingdom Atomic Energy Authority,12/10/2015,MATERIALS & SPARES,FUSION,RS COMPONENTS LTD,5100327792,255.74,
United Kingdom Atomic Energy Authority,United Kingdom Atomic Energy Authority,12/10/2015,MATERIALS & SPARES,FUSION,RS COMPONENTS LTD,5100327797,-76.28,
United Kingdom Atomic Energy Authority,United Kingdom Atomic Energy Authority,19/10/2015,MATERIALS & SPARES,FUSION,RS COMPONENTS LTD,5100327844,44.87,
United Kingdom Atomic Energy Authority,United Kingdom Atomic Energy Authority,19/10/2015,MATERIALS & SPARES,FUSION,FARNELL ELECTRONIC,5100327852,12.50,
United Kingdom Atomic Energy Authority,United Kingdom Atomic Energy Authority,19/10/2015,MATERIALS & SPARES,FUSION,SCREWFIX DIRECT LTD,5100327908,42.07,
United Kingdom Atomic Energy Authority,United Kingdom Atomic Energy Authority,19/10/2015,MATERIALS & SPARES,FUSION,FARNELL ELECTRONIC,5100327926,195.82,
United Kingdom Atomic Energy Authority,United Kingdom Atomic Energy Authority,30/09/2015,SOFTWARE - NON-CAP,FUSION,SAS Software Ltd,1900061134," 2,000.00",
United Kingdom Atomic Energy Authority,United Kingdom Atomic Energy Authority,13/10/2015,PLANT & EQUIPMENT,FUSION,Charcroft Electronics Ltd,1900061148, 690.36,
United Kingdom Atomic Energy Authority,United Kingdom Atomic Energy Authority,10/10/2015,TAXIS,FUSION,EMPLOYEE EXPENSES,100783641,12.00,
United Kingdom Atomic Energy Authority,United Kingdom Atomic Energy Authority,10/10/2015,SUBSISTENCE,FUSION,EMPLOYEE EXPENSES,100783641,659.07,
United Kingdom Atomic Energy Authority,United Kingdom Atomic Energy Authority,24/10/2015,SUBSISTENCE,FUSION,EMPLOYEE EXPENSES,100785805,5.00,
United Kingdom Atomic Energy Authority,United Kingdom Atomic Energy Authority,24/10/2015,SUBSISTENCE,FUSION,EMPLOYEE EXPENSES,100785805,13.28,
United Kingdom Atomic Energy Authority,United Kingdom Atomic Energy Authority,10/10/2015,ROAD TRAVEL,FUSION,EMPLOYEE EXPENSES,100783641,28.00,
United Kingdom Atomic Energy Authority,United Kingdom Atomic Energy Authority,10/10/2015,ROAD TRAVEL,FUSION,EMPLOYEE EXPENSES,100783641,4.90,
United Kingdom Atomic Energy Authority,United Kingdom Atomic Energy Authority,10/10/2015,OTHER EMPLOYEE EXPENSES,FUSION,EMPLOYEE EXPENSES,100783641,49.00,
United Kingdom Atomic Energy Authority,United Kingdom Atomic Energy Authority,19/10/2015,CONSUMABLES,FUSION,MacHowie Transport ltd,5100328113,"1,300.00",
United Kingdom Atomic Energy Authority,United Kingdom Atomic Energy Authority,30/09/2015,MATERIALS & SPARES,FUSION,R&M Electrical Group Ltd,5100324764,146.36,
United Kingdom Atomic Energy Authority,United Kingdom Atomic Energy Authority,19/10/2015,MATERIALS & SPARES,FUSION,Fibregrid Ltd,5100326092,-629.19,
United Kingdom Atomic Energy Authority,United Kingdom Atomic Energy Authority,28/09/2015,PLANT & EQUIPMENT,FUSION,EDMUNDSON ELECTRICALS LTD,5100326385,830.13,
United Kingdom Atomic Energy Authority,United Kingdom Atomic Energy Authority,28/09/2015,BUILDING REPAIRS,FUSION,LORNE STEWART PLC,5100326501,"19,702.84",
United Kingdom Atomic Energy Authority,United Kingdom Atomic Energy Authority,28/09/2015,BUILDING REPAIRS,FUSION,LORNE STEWART PLC,5100326502,"6,196.57",
United Kingdom Atomic Energy Authority,United Kingdom Atomic Energy Authority,28/09/2015,BUILDING REPAIRS,FUSION,LORNE STEWART PLC,5100326506,498.52,
United Kingdom Atomic Energy Authority,United Kingdom Atomic Energy Authority,28/09/2015,BUILDING REPAIRS,FUSION,LORNE STEWART PLC,5100326507,"17,361.35",
United Kingdom Atomic Energy Authority,United Kingdom Atomic Energy Authority,28/09/2015,BUILDING REPAIRS,FUSION,LORNE STEWART PLC,5100326508,"4,787.73",
United Kingdom Atomic Energy Authority,United Kingdom Atomic Energy Authority,28/09/2015,BUILDING REPAIRS,FUSION,LORNE STEWART PLC,5100326512,341.77,
United Kingdom Atomic Energy Authority,United Kingdom Atomic Energy Authority,28/09/2015,BUILDING REPAIRS,FUSION,LORNE STEWART PLC,5100326513,"6,399.91",
United Kingdom Atomic Energy Authority,United Kingdom Atomic Energy Authority,28/09/2015,BUILDING REPAIRS,FUSION,LORNE STEWART PLC,5100326515,"2,942.09",
United Kingdom Atomic Energy Authority,United Kingdom Atomic Energy Authority,28/09/2015,MATERIALS & SPARES,FUSION,RS COMPONENTS LTD,5100326918,245.00,
United Kingdom Atomic Energy Authority,United Kingdom Atomic Energy Authority,28/09/2015,PLANT & EQUIPMENT,FUSION,EDMUNDSON ELECTRICALS LTD,5100326927,"1,072.80",
United Kingdom Atomic Energy Authority,United Kingdom Atomic Energy Authority,28/09/2015,PLANT & EQUIPMENT,FUSION,EDMUNDSON ELECTRICALS LTD,5100326928,344.15,
United Kingdom Atomic Energy Authority,United Kingdom Atomic Energy Authority,28/09/2015,PLANT & EQUIPMENT,FUSION,EDMUNDSON ELECTRICALS LTD,5100326929,161.28,
United Kingdom Atomic Energy Authority,United Kingdom Atomic Energy Authority,28/09/2015,PLANT & EQUIPMENT,FUSION,EDMUNDSON ELECTRICALS LTD,5100326931,549.11,
United Kingdom Atomic Energy Authority,United Kingdom Atomic Energy Authority,28/09/2015,PLANT & EQUIPMENT,FUSION,EDMUNDSON ELECTRICALS LTD,5100326932,26.40,
United Kingdom Atomic Energy Authority,United Kingdom Atomic Energy Authority,12/10/2015,MATERIALS & SPARES,FUSION,Cable Services Ltd,5100326933,"4,795.55",
United Kingdom Atomic Energy Authority,United Kingdom Atomic Energy Authority,28/09/2015,BUILDING REPAIRS,FUSION,LORNE STEWART PLC,5100326944,"-58,952.11",
United Kingdom Atomic Energy Authority,United Kingdom Atomic Energy Authority,28/09/2015,MATERIALS & SPARES,FUSION,RS COMPONENTS LTD,5100326970,296.50,
United Kingdom Atomic Energy Authority,United Kingdom Atomic Energy Authority,28/09/2015,MATERIALS & SPARES,FUSION,Industrial Technical Ltd,5100326991,150.60,
United Kingdom Atomic Energy Authority,United Kingdom Atomic Energy Authority,28/09/2015,MATERIALS & SPARES,FUSION,Industrial Technical Ltd,5100326994,263.70,
United Kingdom Atomic Energy Authority,United Kingdom Atomic Energy Authority,28/09/2015,MATERIALS & SPARES,FUSION,Industrial Technical Ltd,5100326996,273.60,
United Kingdom Atomic Energy Authority,United Kingdom Atomic Energy Authority,28/09/2015,MATERIALS & SPARES,FUSION,RS COMPONENTS LTD,5100326998,214.20,
United Kingdom Atomic Energy Authority,United Kingdom Atomic Energy Authority,28/09/2015,MATERIALS & SPARES,FUSION,RS COMPONENTS LTD,5100327011,109.37,
United Kingdom Atomic Energy Authority,United Kingdom Atomic Energy Authority,28/09/2015,MATERIALS & SPARES,FUSION,RS COMPONENTS LTD,5100327015,574.15,
United Kingdom Atomic Energy Authority,United Kingdom Atomic Energy Authority,28/09/2015,GASES,FUSION,BOC LTD,5100327069,16.86,
United Kingdom Atomic Energy Authority,United Kingdom Atomic Energy Authority,28/09/2015,MATERIALS & SPARES,FUSION,RS COMPONENTS LTD,5100327085,256.50,
United Kingdom Atomic Energy Authority,United Kingdom Atomic Energy Authority,28/09/2015,MATERIALS & SPARES,FUSION,ANIXTER (UK) LTD,5100327094,583.50,
United Kingdom Atomic Energy Authority,United Kingdom Atomic Energy Authority,28/09/2015,STATIONERY,FUSION,LYRECO UK LIMITED,5100327096,101.95,
United Kingdom Atomic Energy Authority,United Kingdom Atomic Energy Authority,28/09/2015,STATIONERY,FUSION,LYRECO UK LIMITED,5100327098,156.33,
United Kingdom Atomic Energy Authority,United Kingdom Atomic Energy Authority,28/09/2015,STATIONERY,FUSION,LYRECO UK LIMITED,5100327100,84.67,
United Kingdom Atomic Energy Authority,United Kingdom Atomic Energy Authority,28/09/2015,PERSONAL PROTECTIVE EQUIPMENT,FUSION,ARCO LTD,5100327104,29.59,
United Kingdom Atomic Energy Authority,United Kingdom Atomic Energy Authority,28/09/2015,PERSONAL PROTECTIVE EQUIPMENT,FUSION,ARCO LTD,5100327106,164.46,
United Kingdom Atomic Energy Authority,United Kingdom Atomic Energy Authority,28/09/2015,PERSONAL PROTECTIVE EQUIPMENT,FUSION,ARCO LTD,5100327108,387.80,
United Kingdom Atomic Energy Authority,United Kingdom Atomic Energy Authority,28/09/2015,MATERIALS & SPARES,FUSION,CROMWELL LTD,5100327146,17.28,
United Kingdom Atomic Energy Authority,United Kingdom Atomic Energy Authority,05/10/2015,MATERIALS & SPARES,FUSION,CROMWELL LTD,5100327148,10.15,
United Kingdom Atomic Energy Authority,United Kingdom Atomic Energy Authority,28/09/2015,MATERIALS & SPARES,FUSION,CROMWELL LTD,5100327150,139.74,
United Kingdom Atomic Energy Authority,United Kingdom Atomic Energy Authority,28/09/2015,MATERIALS & SPARES,FUSION,CROMWELL LTD,5100327153,477.36,
United Kingdom Atomic Energy Authority,United Kingdom Atomic Energy Authority,05/10/2015,PERSONAL PROTECTIVE EQUIPMENT,FUSION,ARCO LTD,5100327159,-125.16,
United Kingdom Atomic Energy Authority,United Kingdom Atomic Energy Authority,28/09/2015,PERSONAL PROTECTIVE EQUIPMENT,FUSION,ARCO LTD,5100327161,125.16,
United Kingdom Atomic Energy Authority,United Kingdom Atomic Energy Authority,30/09/2015,MATERIALS & SPARES,FUSION,OXFORD BOLTS & BEARINGS,5100327172,308.90,
United Kingdom Atomic Energy Authority,United Kingdom Atomic Energy Authority,28/09/2015,PROFESSIONAL SERVICES,FUSION,ONE FIX RECRUITMENT,5100327184,"1,080.00",
United Kingdom Atomic Energy Authority,United Kingdom Atomic Energy Authority,30/09/2015,PERSONAL PROTECTIVE EQUIPMENT,FUSION,ARCO LTD,5100327188,285.60,
United Kingdom Atomic Energy Authority,United Kingdom Atomic Energy Authority,30/09/2015,PLANT & EQUIPMENT,FUSION,EDMUNDSON ELECTRICALS LTD,5100327199,302.84,
United Kingdom Atomic Energy Authority,United Kingdom Atomic Energy Authority,30/09/2015,PLANT & EQUIPMENT,FUSION,EDMUNDSON ELECTRICALS LTD,5100327201,29.58,
United Kingdom Atomic Energy Authority,United Kingdom Atomic Energy Authority,30/09/2015,PLANT & EQUIPMENT,FUSION,EDMUNDSON ELECTRICALS LTD,5100327202,33.03,
United Kingdom Atomic Energy Authority,United Kingdom Atomic Energy Authority,05/10/2015,MATERIALS & SPARES,FUSION,OXFORD BOLTS & BEARINGS,5100327232,273.60,
United Kingdom Atomic Energy Authority,United Kingdom Atomic Energy Authority,05/10/2015,MATERIALS & SPARES,FUSION,OXFORD BOLTS & BEARINGS,5100327233,20.52,
United Kingdom Atomic Energy Authority,United Kingdom Atomic Energy Authority,05/10/2015,PERSONAL PROTECTIVE EQUIPMENT,FUSION,ARCO LTD,5100327256,53.28,
United Kingdom Atomic Energy Authority,United Kingdom Atomic Energy Authority,05/10/2015,PERSONAL PROTECTIVE EQUIPMENT,FUSION,ARCO LTD,5100327270,439.50,
United Kingdom Atomic Energy Authority,United Kingdom Atomic Energy Authority,05/10/2015,STATIONERY,FUSION,LYRECO UK LIMITED,5100327336,410.28,
United Kingdom Atomic Energy Authority,United Kingdom Atomic Energy Authority,05/10/2015,STATIONERY,FUSION,LYRECO UK LIMITED,5100327340,69.01,
United Kingdom Atomic Energy Authority,United Kingdom Atomic Energy Authority,05/10/2015,STATIONERY,FUSION,LYRECO UK LIMITED,5100327341,185.27,
United Kingdom Atomic Energy Authority,United Kingdom Atomic Energy Authority,05/10/2015,STATIONERY,FUSION,LYRECO UK LIMITED,5100327344,52.30,
United Kingdom Atomic Energy Authority,United Kingdom Atomic Energy Authority,05/10/2015,MATERIALS & SPARES,FUSION,SCHNEIDER ELECTRIC LIMITED,5100327360,"1,695.00",
United Kingdom Atomic Energy Authority,United Kingdom Atomic Energy Authority,05/10/2015,MATERIALS & SPARES,FUSION,FLEXIBLE REINFORCEMENT LIMITED,5100327389,"1,475.00",
United Kingdom Atomic Energy Authority,United Kingdom Atomic Energy Authority,05/10/2015,PERSONAL PROTECTIVE EQUIPMENT,FUSION,ARCO LTD,5100327395,29.59,
United Kingdom Atomic Energy Authority,United Kingdom Atomic Energy Authority,05/10/2015,PERSONAL PROTECTIVE EQUIPMENT,FUSION,ARCO LTD,5100327396,29.59,
United Kingdom Atomic Energy Authority,United Kingdom Atomic Energy Authority,05/10/2015,MATERIALS & SPARES,FUSION,Stephens plastic Ltd,5100327415,"6,274.80",
United Kingdom Atomic Energy Authority,United Kingdom Atomic Energy Authority,12/10/2015,PLANT & EQUIPMENT,FUSION,EDMUNDSON ELECTRICALS LTD,5100327420,294.35,
United Kingdom Atomic Energy Authority,United Kingdom Atomic Energy Authority,05/10/2015,PLANT & EQUIPMENT,FUSION,EDMUNDSON ELECTRICALS LTD,5100327421,194.58,
United Kingdom Atomic Energy Authority,United Kingdom Atomic Energy Authority,05/10/2015,MATERIALS & SPARES,FUSION,RS COMPONENTS LTD,5100327440,40.16,
United Kingdom Atomic Energy Authority,United Kingdom Atomic Energy Authority,05/10/2015,MATERIALS & SPARES,FUSION,CROMWELL LTD,5100327483,18.48,
United Kingdom Atomic Energy Authority,United Kingdom Atomic Energy Authority,12/10/2015,GASES,FUSION,BOC LTD,5100327516,57.72,
United Kingdom Atomic Energy Authority,United Kingdom Atomic Energy Authority,12/10/2015,PLANT & EQUIPMENT,FUSION,EDMUNDSON ELECTRICALS LTD,5100327527,79.52,
United Kingdom Atomic Energy Authority,United Kingdom Atomic Energy Authority,12/10/2015,MATERIALS & SPARES,FUSION,Industrial Technical Ltd,5100327555,328.40,
United Kingdom Atomic Energy Authority,United Kingdom Atomic Energy Authority,12/10/2015,MATERIALS & SPARES,FUSION,Industrial Technical Ltd,5100327556,139.68,
United Kingdom Atomic Energy Authority,United Kingdom Atomic Energy Authority,12/10/2015,MATERIALS & SPARES,FUSION,Industrial Technical Ltd,5100327557,234.00,
United Kingdom Atomic Energy Authority,United Kingdom Atomic Energy Authority,14/10/2015,MATERIALS & SPARES,FUSION,OXFORD BOLTS & BEARINGS,5100327559,77.90,
United Kingdom Atomic Energy Authority,United Kingdom Atomic Energy Authority,14/10/2015,PERSONAL PROTECTIVE EQUIPMENT,FUSION,ARCO LTD,5100327565,"7,780.00",
United Kingdom Atomic Energy Authority,United Kingdom Atomic Energy Authority,14/10/2015,PERSONAL PROTECTIVE EQUIPMENT,FUSION,ARCO LTD,5100327566,132.60,
United Kingdom Atomic Energy Authority,United Kingdom Atomic Energy Authority,14/10/2015,MATERIALS & SPARES,FUSION,OXFORD BOLTS & BEARINGS,5100327570,339.70,
United Kingdom Atomic Energy Authority,United Kingdom Atomic Energy Authority,12/10/2015,MATERIALS & SPARES,FUSION,Industrial Technical Ltd,5100327573,316.50,
United Kingdom Atomic Energy Authority,United Kingdom Atomic Energy Authority,19/10/2015,SOFTWARE,FUSION,AMTECH POWER SOFTWARE,5100327577,"7,385.23",
United Kingdom Atomic Energy Authority,United Kingdom Atomic Energy Authority,12/10/2015,BUILDING REPAIRS,FUSION,KNOWLES & SONS (OXFORD) LTD,5100327637,891.30,
United Kingdom Atomic Energy Authority,United Kingdom Atomic Energy Authority,12/10/2015,MATERIALS & SPARES,FUSION,Industrial Technical Ltd,5100327670,199.70,
United Kingdom Atomic Energy Authority,United Kingdom Atomic Energy Authority,19/10/2015,MATERIALS & SPARES,FUSION,ANIXTER (UK) LTD,5100327682,254.00,
United Kingdom Atomic Energy Authority,United Kingdom Atomic Energy Authority,12/10/2015,MATERIALS & SPARES,FUSION,CHANNEL SAFETY SERVICES LTD,5100327696,435.37,
United Kingdom Atomic Energy Authority,United Kingdom Atomic Energy Authority,12/10/2015,PLANT & EQUIPMENT,FUSION,EDMUNDSON ELECTRICALS LTD,5100327722,294.35,
United Kingdom Atomic Energy Authority,United Kingdom Atomic Energy Authority,12/10/2015,PLANT & EQUIPMENT,FUSION,EDMUNDSON ELECTRICALS LTD,5100327723,168.70,
United Kingdom Atomic Energy Authority,United Kingdom Atomic Energy Authority,12/10/2015,PLANT & EQUIPMENT,FUSION,EDMUNDSON ELECTRICALS LTD,5100327724,124.74,
United Kingdom Atomic Energy Authority,United Kingdom Atomic Energy Authority,12/10/2015,LAUNDRY,FUSION,BLUEBELL LAUNDRY,5100327737,120.14,
United Kingdom Atomic Energy Authority,United Kingdom Atomic Energy Authority,12/10/2015,PLANT & EQUIPMENT,FUSION,EDMUNDSON ELECTRICALS LTD,5100327762,816.44,
United Kingdom Atomic Energy Authority,United Kingdom Atomic Energy Authority,19/10/2015,MATERIALS & SPARES,FUSION,R&M Electrical Group Ltd,5100327765,536.79,
United Kingdom Atomic Energy Authority,United Kingdom Atomic Energy Authority,19/10/2015,MATERIALS & SPARES,FUSION,R&M Electrical Group Ltd,5100327766,40.00,
United Kingdom Atomic Energy Authority,United Kingdom Atomic Energy Authority,12/10/2015,PLANT & EQUIPMENT,FUSION,EDMUNDSON ELECTRICALS LTD,5100327767,"1,212.66",
United Kingdom Atomic Energy Authority,United Kingdom Atomic Energy Authority,12/10/2015,STATIONERY,FUSION,LYRECO UK LIMITED,5100327768,499.80,
United Kingdom Atomic Energy Authority,United Kingdom Atomic Energy Authority,12/10/2015,STATIONERY,FUSION,LYRECO UK LIMITED,5100327770,609.44,
United Kingdom Atomic Energy Authority,United Kingdom Atomic Energy Authority,12/10/2015,STATIONERY,FUSION,LYRECO UK LIMITED,5100327771,171.28,
United Kingdom Atomic Energy Authority,United Kingdom Atomic Energy Authority,12/10/2015,MATERIALS & SPARES,FUSION,CROMWELL LTD,5100327773,388.32,
United Kingdom Atomic Energy Authority,United Kingdom Atomic Energy Authority,14/10/2015,PERSONAL PROTECTIVE EQUIPMENT,FUSION,ARCO LTD,5100327774,"2,357.40",
United Kingdom Atomic Energy Authority,United Kingdom Atomic Energy Authority,14/10/2015,PERSONAL PROTECTIVE EQUIPMENT,FUSION,ARCO LTD,5100327776,"2,580.00",
United Kingdom Atomic Energy Authority,United Kingdom Atomic Energy Authority,14/10/2015,MATERIALS & SPARES,FUSION,RS COMPONENTS LTD,5100327793,511.77,
United Kingdom Atomic Energy Authority,United Kingdom Atomic Energy Authority,12/10/2015,MATERIALS & SPARES,FUSION,KEY INDUSTRIAL EQUIPMENT LTD,5100327836,113.00,
United Kingdom Atomic Energy Authority,United Kingdom Atomic Energy Authority,19/10/2015,MATERIALS & SPARES,FUSION,OXFORD BOLTS & BEARINGS,5100327878,555.92,
United Kingdom Atomic Energy Authority,United Kingdom Atomic Energy Authority,19/10/2015,MATERIALS & SPARES,FUSION,OXFORD BOLTS & BEARINGS,5100327879,229.00,
United Kingdom Atomic Energy Authority,United Kingdom Atomic Energy Authority,21/10/2015,PLANT & EQUIPMENT,FUSION,EDMUNDSON ELECTRICALS LTD,5100327890,401.58,
United Kingdom Atomic Energy Authority,United Kingdom Atomic Energy Authority,19/10/2015,MATERIALS & SPARES,FUSION,SCREWFIX DIRECT LTD,5100327906,58.32,
United Kingdom Atomic Energy Authority,United Kingdom Atomic Energy Authority,19/10/2015,MATERIALS & SPARES,FUSION,FARNELL ELECTRONIC,5100327923,226.53,
United Kingdom Atomic Energy Authority,United Kingdom Atomic Energy Authority,19/10/2015,MATERIALS & SPARES,FUSION,RS COMPONENTS LTD,5100327946,"1,039.46",
United Kingdom Atomic Energy Authority,United Kingdom Atomic Energy Authority,19/10/2015,MATERIALS & SPARES,FUSION,RS COMPONENTS LTD,5100327948,237.71,
United Kingdom Atomic Energy Authority,United Kingdom Atomic Energy Authority,19/10/2015,MATERIALS & SPARES,FUSION,ANIXTER (UK) LTD,5100327957,"1,270.00",
United Kingdom Atomic Energy Authority,United Kingdom Atomic Energy Authority,19/10/2015,MATERIALS & SPARES,FUSION,OXFORD BOLTS & BEARINGS,5100327964,32.00,
United Kingdom Atomic Energy Authority,United Kingdom Atomic Energy Authority,19/10/2015,PERSONAL PROTECTIVE EQUIPMENT,FUSION,ARCO LTD,5100327979,61.31,
United Kingdom Atomic Energy Authority,United Kingdom Atomic Energy Authority,19/10/2015,BUILDING REPAIRS,FUSION,LORNE STEWART PLC,5100328011,"19,702.84",
United Kingdom Atomic Energy Authority,United Kingdom Atomic Energy Authority,19/10/2015,BUILDING REPAIRS,FUSION,LORNE STEWART PLC,5100328012,"6,196.57",
United Kingdom Atomic Energy Authority,United Kingdom Atomic Energy Authority,19/10/2015,MATERIALS & SPARES,FUSION,OXFORD BOLTS & BEARINGS,5100328018,41.38,
United Kingdom Atomic Energy Authority,United Kingdom Atomic Energy Authority,19/10/2015,MATERIALS & SPARES,FUSION,OXFORD BOLTS & BEARINGS,5100328021,771.69,
United Kingdom Atomic Energy Authority,United Kingdom Atomic Energy Authority,19/10/2015,STATIONERY,FUSION,LYRECO UK LIMITED,5100328026,171.66,
United Kingdom Atomic Energy Authority,United Kingdom Atomic Energy Authority,19/10/2015,BUILDING REPAIRS,FUSION,LORNE STEWART PLC,5100328027,"16,903.79",
United Kingdom Atomic Energy Authority,United Kingdom Atomic Energy Authority,19/10/2015,BUILDING REPAIRS,FUSION,LORNE STEWART PLC,5100328028,"5,964.60",
United Kingdom Atomic Energy Authority,United Kingdom Atomic Energy Authority,19/10/2015,MATERIALS & SPARES,FUSION,R&M Electrical Group Ltd,5100328053,-2.94,
United Kingdom Atomic Energy Authority,United Kingdom Atomic Energy Authority,19/10/2015,MATERIALS & SPARES,FUSION,Fibregrid Ltd,5100328074,969.10,
United Kingdom Atomic Energy Authority,United Kingdom Atomic Energy Authority,19/10/2015,MATERIALS & SPARES,FUSION,CROMWELL LTD,5100328077,26.55,
United Kingdom Atomic Energy Authority,United Kingdom Atomic Energy Authority,21/10/2015,PLANT & EQUIPMENT,FUSION,EDMUNDSON ELECTRICALS LTD,5100328133,"1,054.54",
United Kingdom Atomic Energy Authority,United Kingdom Atomic Energy Authority,21/10/2015,PLANT & EQUIPMENT,FUSION,EDMUNDSON ELECTRICALS LTD,5100328134,544.78,
United Kingdom Atomic Energy Authority,United Kingdom Atomic Energy Authority,21/10/2015,PLANT & EQUIPMENT,FUSION,EDMUNDSON ELECTRICALS LTD,5100328135,51.68,
United Kingdom Atomic Energy Authority,United Kingdom Atomic Energy Authority,07/10/2015,DELIVERY & CARRIAGE,FUSION,Appleton Signs & Manufacturing Limited,1900061146, 310.45,
United Kingdom Atomic Energy Authority,United Kingdom Atomic Energy Authority,28/09/2015,MEDICAL EXPENSES,FUSION,IMASS LTD,5100327075,"4,985.41",
United Kingdom Atomic Energy Authority,United Kingdom Atomic Energy Authority,28/09/2015,MEDICAL EXPENSES,FUSION,IMASS LTD,5100327076,"4,985.41",
United Kingdom Atomic Energy Authority,United Kingdom Atomic Energy Authority,28/09/2015,PROFESSIONAL SERVICES,FUSION,PERKIN ELMER LAS UK LTD,5100324626,66.00,
United Kingdom Atomic Energy Authority,United Kingdom Atomic Energy Authority,28/09/2015,PROFESSIONAL SERVICES,FUSION,PERKIN ELMER LAS UK LTD,5100325625,"2,199.16",
United Kingdom Atomic Energy Authority,United Kingdom Atomic Energy Authority,14/10/2015,PROFESSIONAL SERVICES,FUSION,RADIOCARBON DATING,5100326473,"12,946.83",
United Kingdom Atomic Energy Authority,United Kingdom Atomic Energy Authority,14/10/2015,PROFESSIONAL SERVICES,FUSION,RADIOCARBON DATING,5100326474,"16,133.60",
United Kingdom Atomic Energy Authority,United Kingdom Atomic Energy Authority,14/10/2015,PROFESSIONAL SERVICES,FUSION,RADIOCARBON DATING,5100326475,"4,077.20",
United Kingdom Atomic Energy Authority,United Kingdom Atomic Energy Authority,28/09/2015,MATERIALS & SPARES,FUSION,VWR INTERNATIONAL LTD,5100326675,510.15,
United Kingdom Atomic Energy Authority,United Kingdom Atomic Energy Authority,28/09/2015,PROFESSIONAL SERVICES,FUSION,SCIENTIFICS LTD,5100326982,232.00,
United Kingdom Atomic Energy Authority,United Kingdom Atomic Energy Authority,28/09/2015,PROFESSIONAL SERVICES,FUSION,SCIENTIFICS LTD,5100326984,297.00,
United Kingdom Atomic Energy Authority,United Kingdom Atomic Energy Authority,28/09/2015,MATERIALS & SPARES,FUSION,VWR INTERNATIONAL LTD,5100326985,906.15,
United Kingdom Atomic Energy Authority,United Kingdom Atomic Energy Authority,28/09/2015,PLANT & EQUIPMENT,FUSION,FISHER SCIENTIFIC UK LTD,5100326987,177.99,
United Kingdom Atomic Energy Authority,United Kingdom Atomic Energy Authority,28/09/2015,MATERIALS & SPARES,FUSION,ASTLES CONTROL SYSTEMS,5100327033,"1,170.00",
United Kingdom Atomic Energy Authority,United Kingdom Atomic Energy Authority,30/09/2015,MATERIALS & SPARES,FUSION,BERYLLIANT INC,5100327058,"1,281.36",
United Kingdom Atomic Energy Authority,United Kingdom Atomic Energy Authority,28/09/2015,PERSONAL PROTECTIVE EQUIPMENT,FUSION,SURE SAFE LTD,5100327068,252.00,
United Kingdom Atomic Energy Authority,United Kingdom Atomic Energy Authority,05/10/2015,HEALTH PHYSICS,FUSION,NUVIA LIMITED,5100327083,"24,784.45",
United Kingdom Atomic Energy Authority,United Kingdom Atomic Energy Authority,28/09/2015,PERSONAL PROTECTIVE EQUIPMENT,FUSION,ARCO LTD,5100327102,35.92,
United Kingdom Atomic Energy Authority,United Kingdom Atomic Energy Authority,28/09/2015,PROFESSIONAL SERVICES,FUSION,PERKIN ELMER LAS UK LTD,5100327119,-66.00,
United Kingdom Atomic Energy Authority,United Kingdom Atomic Energy Authority,21/10/2015,PROFESSIONAL SERVICES,FUSION,PERKIN ELMER LAS UK LTD,5100327120,110.50,
United Kingdom Atomic Energy Authority,United Kingdom Atomic Energy Authority,28/09/2015,PROFESSIONAL SUBSCRIPTION,FUSION,RADSAFE CLG,5100327183,"17,000.00",
United Kingdom Atomic Energy Authority,United Kingdom Atomic Energy Authority,28/09/2015,PERSONAL PROTECTIVE EQUIPMENT,FUSION,ARCO LTD,5100327189,17.96,
United Kingdom Atomic Energy Authority,United Kingdom Atomic Energy Authority,30/09/2015,PLANT & EQUIPMENT,FUSION,FISHER SCIENTIFIC UK LTD,5100327190,611.15,
United Kingdom Atomic Energy Authority,United Kingdom Atomic Energy Authority,28/09/2015,MATERIALS & SPARES,FUSION,VWR INTERNATIONAL LTD,5100327191,238.00,
United Kingdom Atomic Energy Authority,United Kingdom Atomic Energy Authority,05/10/2015,PROFESSIONAL SERVICES,FUSION,SCIENTIFICS LTD,5100327286,297.00,
United Kingdom Atomic Energy Authority,United Kingdom Atomic Energy Authority,05/10/2015,PROFESSIONAL SERVICES,FUSION,SCIENTIFICS LTD,5100327321,297.00,
United Kingdom Atomic Energy Authority,United Kingdom Atomic Energy Authority,05/10/2015,PLANT & EQUIPMENT,FUSION,FISHER SCIENTIFIC UK LTD,5100327352,117.40,
United Kingdom Atomic Energy Authority,United Kingdom Atomic Energy Authority,05/10/2015,MATERIALS & SPARES,FUSION,VWR INTERNATIONAL LTD,5100327399,180.25,
United Kingdom Atomic Energy Authority,United Kingdom Atomic Energy Authority,05/10/2015,PROFESSIONAL SERVICES,FUSION,SCIENTIFICS LTD,5100327422,297.00,
United Kingdom Atomic Energy Authority,United Kingdom Atomic Energy Authority,12/10/2015,GASES,FUSION,BOC LTD,5100327506,131.05,
United Kingdom Atomic Energy Authority,United Kingdom Atomic Energy Authority,14/10/2015,REPAIRS & MAINTENANCE,FUSION,CROWCON DETECTION INSTRUMENTS LTD,5100327526,207.00,
United Kingdom Atomic Energy Authority,United Kingdom Atomic Energy Authority,12/10/2015,PROFESSIONAL SERVICES,FUSION,SIGMA - ALDRICH CO LTD,5100327536,83.80,
United Kingdom Atomic Energy Authority,United Kingdom Atomic Energy Authority,14/10/2015,PROFESSIONAL SERVICES,FUSION,RADIOCARBON DATING,5100327558,"16,133.60",
United Kingdom Atomic Energy Authority,United Kingdom Atomic Energy Authority,12/10/2015,MATERIALS & SPARES,FUSION,VWR INTERNATIONAL LTD,5100327563,99.40,
United Kingdom Atomic Energy Authority,United Kingdom Atomic Energy Authority,14/10/2015,PLANT & EQUIPMENT,FUSION,ARVAL UK LIMITED,5100327579,239.11,
United Kingdom Atomic Energy Authority,United Kingdom Atomic Energy Authority,14/10/2015,PROFESSIONAL SERVICES,FUSION,VT NUCLEAR SERVICES LTD,5100327716,"2,883.73",
United Kingdom Atomic Energy Authority,United Kingdom Atomic Energy Authority,14/10/2015,PLANT & EQUIPMENT,FUSION,FISHER SCIENTIFIC UK LTD,5100327763,"2,380.65",
United Kingdom Atomic Energy Authority,United Kingdom Atomic Energy Authority,19/10/2015,TELECOMMUNICATIONS,FUSION,CABLEWISE,5100327823,648.00,
United Kingdom Atomic Energy Authority,United Kingdom Atomic Energy Authority,14/10/2015,PROFESSIONAL SERVICES,FUSION,VT NUCLEAR SERVICES LTD,5100327832,"1,033.79",
United Kingdom Atomic Energy Authority,United Kingdom Atomic Energy Authority,21/10/2015,REGULATORY COSTS,FUSION,UKAS LABORATORY ACCREDITATION SERVICE,5100328003,"3,408.50",
United Kingdom Atomic Energy Authority,United Kingdom Atomic Energy Authority,21/10/2015,MATERIALS & SPARES,FUSION,VWR INTERNATIONAL LTD,5100328124,119.00,
United Kingdom Atomic Energy Authority,United Kingdom Atomic Energy Authority,21/10/2015,MATERIALS & SPARES,FUSION,GREYHOUND CHROMATOGRAPHY,5100328165,"1,725.00",
United Kingdom Atomic Energy Authority,United Kingdom Atomic Energy Authority,07/10/2015,PROFESSIONAL SERVICES,FUSION,MATERIAL MEASUREMENTS LTD.,5100327077,351.09,
United Kingdom Atomic Energy Authority,United Kingdom Atomic Energy Authority,07/10/2015,PROFESSIONAL SERVICES,FUSION,MATERIAL MEASUREMENTS LTD.,5100327078,107.67,
United Kingdom Atomic Energy Authority,United Kingdom Atomic Energy Authority,07/10/2015,PROFESSIONAL SERVICES,FUSION,MATERIAL MEASUREMENTS LTD.,5100327079,117.76,
United Kingdom Atomic Energy Authority,United Kingdom Atomic Energy Authority,12/10/2015,PROFESSIONAL SERVICES,FUSION,MATERIAL MEASUREMENTS LTD.,5100327276,130.24,
United Kingdom Atomic Energy Authority,United Kingdom Atomic Energy Authority,07/10/2015,PROFESSIONAL SERVICES,FUSION,MATERIAL MEASUREMENTS LTD.,5100327277,102.24,
United Kingdom Atomic Energy Authority,United Kingdom Atomic Energy Authority,07/10/2015,PROFESSIONAL SERVICES,FUSION,MATERIAL MEASUREMENTS LTD.,5100327278,111.15,
United Kingdom Atomic Energy Authority,United Kingdom Atomic Energy Authority,07/10/2015,PROFESSIONAL SERVICES,FUSION,MATERIAL MEASUREMENTS LTD.,5100327279,95.00,
United Kingdom Atomic Energy Authority,United Kingdom Atomic Energy Authority,07/10/2015,PROFESSIONAL SERVICES,FUSION,MATERIAL MEASUREMENTS LTD.,5100327431,150.00,
United Kingdom Atomic Energy Authority,United Kingdom Atomic Energy Authority,12/10/2015,PROFESSIONAL SERVICES,FUSION,MATERIAL MEASUREMENTS LTD.,5100327519,882.93,
United Kingdom Atomic Energy Authority,United Kingdom Atomic Energy Authority,12/10/2015,INSPECTION SERVICES,FUSION,ROYAL & SUN ALLIANCE ENGINEERING LT,5100327700,726.93,
United Kingdom Atomic Energy Authority,United Kingdom Atomic Energy Authority,19/10/2015,PROFESSIONAL SERVICES,FUSION,MATERIAL MEASUREMENTS LTD.,5100327728,95.00,
United Kingdom Atomic Energy Authority,United Kingdom Atomic Energy Authority,19/10/2015,PROFESSIONAL SERVICES,FUSION,MATERIAL MEASUREMENTS LTD.,5100327882,115.53,
United Kingdom Atomic Energy Authority,United Kingdom Atomic Energy Authority,19/10/2015,PROFESSIONAL SERVICES,FUSION,MATERIAL MEASUREMENTS LTD.,5100327883,115.53,
United Kingdom Atomic Energy Authority,United Kingdom Atomic Energy Authority,07/10/2015,OTHER TRAINING COSTS,FUSION,Assessment & Development Consultants,1900061144, 203.52,
United Kingdom Atomic Energy Authority,United Kingdom Atomic Energy Authority,24/10/2015,SUBSISTENCE,FUSION,EMPLOYEE EXPENSES,100785814,10.00,
United Kingdom Atomic Energy Authority,United Kingdom Atomic Energy Authority,24/10/2015,ROAD TRAVEL,FUSION,EMPLOYEE EXPENSES,100785814,20.24,
United Kingdom Atomic Energy Authority,United Kingdom Atomic Energy Authority,10/10/2015,OTHER STAFF COSTS,FUSION,EMPLOYEE EXPENSES,100783674,"1,150.00",
United Kingdom Atomic Energy Authority,United Kingdom Atomic Energy Authority,05/10/2015,MATERIALS & SPARES,FUSION,INSULATION CONTRACTING SERVICES,5100327299,890.77,
United Kingdom Atomic Energy Authority,United Kingdom Atomic Energy Authority,12/10/2015,PROFESSIONAL SERVICES,FUSION,EDM PRECISION TECHNOLOGIES,5100325998,106.00,
United Kingdom Atomic Energy Authority,United Kingdom Atomic Energy Authority,28/09/2015,PLANT & EQUIPMENT,FUSION,NOR-CAL UK LTD,5100326471,"2,067.75",
United Kingdom Atomic Energy Authority,United Kingdom Atomic Energy Authority,28/09/2015,MATERIALS & SPARES,FUSION,PIPELINE PEOPLE.COM,5100326910,396.94,
United Kingdom Atomic Energy Authority,United Kingdom Atomic Energy Authority,28/09/2015,MATERIALS & SPARES,FUSION,Industrial Technical Ltd,5100326993,462.00,
United Kingdom Atomic Energy Authority,United Kingdom Atomic Energy Authority,28/09/2015,MATERIALS & SPARES,FUSION,RS COMPONENTS LTD,5100327007,6.88,
United Kingdom Atomic Energy Authority,United Kingdom Atomic Energy Authority,28/09/2015,MATERIALS & SPARES,FUSION,OXFORD BOLTS & BEARINGS,5100327020,81.23,
United Kingdom Atomic Energy Authority,United Kingdom Atomic Energy Authority,28/09/2015,MATERIALS & SPARES,FUSION,ALLECTRA LTD,5100327026,363.00,
United Kingdom Atomic Energy Authority,United Kingdom Atomic Energy Authority,28/09/2015,PROFESSIONAL SERVICES,FUSION,SWAGELOK LONDON,5100327062,"1,419.04",
United Kingdom Atomic Energy Authority,United Kingdom Atomic Energy Authority,28/09/2015,PLANT SPARES,FUSION,AURIGA EUROPE PLC,5100327115,63.80,
United Kingdom Atomic Energy Authority,United Kingdom Atomic Energy Authority,05/10/2015,MATERIALS & SPARES,FUSION,OXFORD BOLTS & BEARINGS,5100327242,16.80,
United Kingdom Atomic Energy Authority,United Kingdom Atomic Energy Authority,05/10/2015,PLANT & EQUIPMENT,FUSION,NOR-CAL UK LTD,5100327244,177.55,
United Kingdom Atomic Energy Authority,United Kingdom Atomic Energy Authority,05/10/2015,PROFESSIONAL SERVICES,FUSION,SWAGELOK LONDON,5100327280,93.10,
United Kingdom Atomic Energy Authority,United Kingdom Atomic Energy Authority,05/10/2015,PROFESSIONAL SERVICES,FUSION,MKS INSTRUMENT UK LIMITED,5100327354,"2,590.00",
United Kingdom Atomic Energy Authority,United Kingdom Atomic Energy Authority,12/10/2015,MATERIALS & SPARES,FUSION,TR FASTENINGS LTD,5100327499,25.22,
United Kingdom Atomic Energy Authority,United Kingdom Atomic Energy Authority,12/10/2015,MATERIALS & SPARES,FUSION,B&M Engineering Ltd,5100327548,130.00,
United Kingdom Atomic Energy Authority,United Kingdom Atomic Energy Authority,12/10/2015,MATERIALS & SPARES,FUSION,B&M Engineering Ltd,5100327584,"1,220.00",
United Kingdom Atomic Energy Authority,United Kingdom Atomic Energy Authority,12/10/2015,MATERIALS & SPARES,FUSION,B&M Engineering Ltd,5100327586,800.00,
United Kingdom Atomic Energy Authority,United Kingdom Atomic Energy Authority,12/10/2015,BUILDING REPAIRS,FUSION,KNOWLES & SONS (OXFORD) LTD,5100327614,26.84,
United Kingdom Atomic Energy Authority,United Kingdom Atomic Energy Authority,14/10/2015,MATERIALS: NON-HAZARDOUS,FUSION,ILF Ltd,5100327742,510.00,
United Kingdom Atomic Energy Authority,United Kingdom Atomic Energy Authority,14/10/2015,MATERIALS: NON-HAZARDOUS,FUSION,ILF Ltd,5100327743,"1,489.00",
United Kingdom Atomic Energy Authority,United Kingdom Atomic Energy Authority,12/10/2015,MATERIALS & SPARES,FUSION,FARNELL ELECTRONIC,5100327749,31.56,
United Kingdom Atomic Energy Authority,United Kingdom Atomic Energy Authority,12/10/2015,MATERIALS & SPARES,FUSION,RS COMPONENTS LTD,5100327794,685.59,
United Kingdom Atomic Energy Authority,United Kingdom Atomic Energy Authority,12/10/2015,MATERIALS & SPARES,FUSION,RS COMPONENTS LTD,5100327810,286.89,
United Kingdom Atomic Energy Authority,United Kingdom Atomic Energy Authority,19/10/2015,MATERIALS & SPARES,FUSION,RS COMPONENTS LTD,5100327884,125.12,
United Kingdom Atomic Energy Authority,United Kingdom Atomic Energy Authority,19/10/2015,MATERIALS & SPARES,FUSION,METALFAST (A DIVISION OF,5100327921,175.56,
United Kingdom Atomic Energy Authority,United Kingdom Atomic Energy Authority,19/10/2015,MATERIALS & SPARES,FUSION,METALFAST (A DIVISION OF,5100327922,121.45,
United Kingdom Atomic Energy Authority,United Kingdom Atomic Energy Authority,19/10/2015,MATERIALS & SPARES,FUSION,OXFORD BOLTS & BEARINGS,5100328019,86.07,
United Kingdom Atomic Energy Authority,United Kingdom Atomic Energy Authority,19/10/2015,MATERIALS & SPARES,FUSION,METALFAST (A DIVISION OF,5100328055,75.30,
United Kingdom Atomic Energy Authority,United Kingdom Atomic Energy Authority,19/10/2015,MATERIALS & SPARES,FUSION,CROMWELL LTD,5100328066,117.90,
United Kingdom Atomic Energy Authority,United Kingdom Atomic Energy Authority,01/10/2015,SUBSISTENCE,FUSION,VISITOR EXPENSES,1900061137, 338.59,
United Kingdom Atomic Energy Authority,United Kingdom Atomic Energy Authority,13/10/2015,SUBSISTENCE,FUSION,VISITOR EXPENSES,1900061147, 388.92,
United Kingdom Atomic Energy Authority,United Kingdom Atomic Energy Authority,23/10/2015,SUBSISTENCE,FUSION,VISITOR EXPENSES,1900061170, 284.31,
United Kingdom Atomic Energy Authority,United Kingdom Atomic Energy Authority,21/10/2015,PLANT & EQUIPMENT,FUSION,VNIIA,5100328000,"14,334.12",
United Kingdom Atomic Energy Authority,United Kingdom Atomic Energy Authority,28/09/2015,MATERIALS & SPARES,FUSION,Industrial Technical Ltd,5100326997,105.00,
United Kingdom Atomic Energy Authority,United Kingdom Atomic Energy Authority,05/10/2015,MATERIALS & SPARES,FUSION,THORLABS LTD,5100327222,65.28,
United Kingdom Atomic Energy Authority,United Kingdom Atomic Energy Authority,05/10/2015,PLANT & EQUIPMENT,FUSION,THAMES VALLEY SAW SERVICE LTD,5100327411,"1,303.80",
United Kingdom Atomic Energy Authority,United Kingdom Atomic Energy Authority,12/10/2015,MATERIALS & SPARES,FUSION,B&M Engineering Ltd,5100327543,640.00,
United Kingdom Atomic Energy Authority,United Kingdom Atomic Energy Authority,12/10/2015,MATERIALS & SPARES,FUSION,Industrial Technical Ltd,5100327668,525.00,
United Kingdom Atomic Energy Authority,United Kingdom Atomic Energy Authority,19/10/2015,MATERIALS & SPARES,FUSION,OXFORD BOLTS & BEARINGS,5100327877,292.45,
United Kingdom Atomic Energy Authority,United Kingdom Atomic Energy Authority,19/10/2015,PROFESSIONAL SERVICES,FUSION,SCIENTIFIC MANUFACTURING,5100328004,359.00,
United Kingdom Atomic Energy Authority,United Kingdom Atomic Energy Authority,17/10/2015,SUBSISTENCE,FUSION,EMPLOYEE EXPENSES,100783820,204.32,
United Kingdom Atomic Energy Authority,United Kingdom Atomic Energy Authority,17/10/2015,ROAD TRAVEL,FUSION,EMPLOYEE EXPENSES,100783820,4.22,
United Kingdom Atomic Energy Authority,United Kingdom Atomic Energy Authority,21/10/2015,MATERIALS & SPARES,FUSION,Colbree precision Ltd,5100323952,"2,087.96",
United Kingdom Atomic Energy Authority,United Kingdom Atomic Energy Authority,05/10/2015,PLANT SPARES,FUSION,A W CLARKE,5100325124,"4,636.20",
United Kingdom Atomic Energy Authority,United Kingdom Atomic Energy Authority,21/10/2015,MATERIALS & SPARES,FUSION,Colbree precision Ltd,5100325129,344.66,
United Kingdom Atomic Energy Authority,United Kingdom Atomic Energy Authority,21/10/2015,MATERIALS & SPARES,FUSION,Colbree precision Ltd,5100325927,-20.00,
United Kingdom Atomic Energy Authority,United Kingdom Atomic Energy Authority,14/10/2015,PLANT SPARES,FUSION,A W CLARKE,5100325993,448.00,
United Kingdom Atomic Energy Authority,United Kingdom Atomic Energy Authority,05/10/2015,MATERIALS & SPARES,FUSION,RS COMPONENTS LTD,5100326209,69.82,
United Kingdom Atomic Energy Authority,United Kingdom Atomic Energy Authority,05/10/2015,MATERIALS & SPARES,FUSION,RS COMPONENTS LTD,5100326405,8.97,
United Kingdom Atomic Energy Authority,United Kingdom Atomic Energy Authority,05/10/2015,PLANT SPARES,FUSION,A W CLARKE,5100326642,"3,272.50",
United Kingdom Atomic Energy Authority,United Kingdom Atomic Energy Authority,05/10/2015,PLANT SPARES,FUSION,A W CLARKE,5100326643,"2,778.45",
United Kingdom Atomic Energy Authority,United Kingdom Atomic Energy Authority,05/10/2015,PLANT SPARES,FUSION,A W CLARKE,5100326646,49.75,
United Kingdom Atomic Energy Authority,United Kingdom Atomic Energy Authority,05/10/2015,PLANT SPARES,FUSION,A W CLARKE,5100326647,"1,852.30",
United Kingdom Atomic Energy Authority,United Kingdom Atomic Energy Authority,05/10/2015,PLANT SPARES,FUSION,A W CLARKE,5100326648,192.50,
United Kingdom Atomic Energy Authority,United Kingdom Atomic Energy Authority,05/10/2015,PLANT SPARES,FUSION,A W CLARKE,5100326651,67.50,
United Kingdom Atomic Energy Authority,United Kingdom Atomic Energy Authority,05/10/2015,PLANT SPARES,FUSION,A W CLARKE,5100326652,220.90,
United Kingdom Atomic Energy Authority,United Kingdom Atomic Energy Authority,05/10/2015,PLANT SPARES,FUSION,A W CLARKE,5100326654,50.00,
United Kingdom Atomic Energy Authority,United Kingdom Atomic Energy Authority,05/10/2015,PLANT SPARES,FUSION,A W CLARKE,5100326656,"6,313.55",
United Kingdom Atomic Energy Authority,United Kingdom Atomic Energy Authority,05/10/2015,PLANT SPARES,FUSION,A W CLARKE,5100326657,110.00,
United Kingdom Atomic Energy Authority,United Kingdom Atomic Energy Authority,05/10/2015,PLANT SPARES,FUSION,A W CLARKE,5100326659,63.00,
United Kingdom Atomic Energy Authority,United Kingdom Atomic Energy Authority,05/10/2015,PLANT SPARES,FUSION,A W CLARKE,5100326663,"1,142.75",
United Kingdom Atomic Energy Authority,United Kingdom Atomic Energy Authority,05/10/2015,PLANT SPARES,FUSION,A W CLARKE,5100326664,50.00,
United Kingdom Atomic Energy Authority,United Kingdom Atomic Energy Authority,05/10/2015,PLANT SPARES,FUSION,A W CLARKE,5100326665,"4,630.75",
United Kingdom Atomic Energy Authority,United Kingdom Atomic Energy Authority,05/10/2015,PLANT SPARES,FUSION,A W CLARKE,5100326737,76.25,
United Kingdom Atomic Energy Authority,United Kingdom Atomic Energy Authority,05/10/2015,PLANT SPARES,FUSION,A W CLARKE,5100326768,73.75,
United Kingdom Atomic Energy Authority,United Kingdom Atomic Energy Authority,28/09/2015,PLANT & EQUIPMENT,FUSION,LEE SPRING LTD,5100326907,52.50,
United Kingdom Atomic Energy Authority,United Kingdom Atomic Energy Authority,28/09/2015,RENT OF VEHICLE & EQUIPMENT,FUSION,KONSTRUCTA SITE ACCOMMODATION HIRE,5100326956,402.00,
United Kingdom Atomic Energy Authority,United Kingdom Atomic Energy Authority,28/09/2015,MATERIALS & SPARES,FUSION,RS COMPONENTS LTD,5100326971,46.55,
United Kingdom Atomic Energy Authority,United Kingdom Atomic Energy Authority,28/09/2015,MATERIALS & SPARES,FUSION,RS COMPONENTS LTD,5100326972,48.29,
United Kingdom Atomic Energy Authority,United Kingdom Atomic Energy Authority,28/09/2015,MATERIALS & SPARES,FUSION,RS COMPONENTS LTD,5100326973,13.12,
United Kingdom Atomic Energy Authority,United Kingdom Atomic Energy Authority,28/09/2015,PERSONAL PROTECTIVE EQUIPMENT,FUSION,ARCO LTD,5100326999,333.79,
United Kingdom Atomic Energy Authority,United Kingdom Atomic Energy Authority,28/09/2015,MATERIALS & SPARES,FUSION,RS COMPONENTS LTD,5100327000,38.22,
United Kingdom Atomic Energy Authority,United Kingdom Atomic Energy Authority,28/09/2015,MATERIALS & SPARES,FUSION,RS COMPONENTS LTD,5100327001,294.61,
United Kingdom Atomic Energy Authority,United Kingdom Atomic Energy Authority,28/09/2015,PLANT SPARES,FUSION,A W CLARKE,5100327016,375.50,
United Kingdom Atomic Energy Authority,United Kingdom Atomic Energy Authority,28/09/2015,MATERIALS & SPARES,FUSION,ABB Limited,5100327027,540.00,
United Kingdom Atomic Energy Authority,United Kingdom Atomic Energy Authority,28/09/2015,MATERIALS & SPARES,FUSION,Oxford Air conditioning Ltd.,5100327028,"7,270.52",
United Kingdom Atomic Energy Authority,United Kingdom Atomic Energy Authority,28/09/2015,MATERIALS & SPARES,FUSION,FARNELL ELECTRONIC,5100327039,23.86,
United Kingdom Atomic Energy Authority,United Kingdom Atomic Energy Authority,28/09/2015,MATERIALS & SPARES,FUSION,FARNELL ELECTRONIC,5100327046,669.01,
United Kingdom Atomic Energy Authority,United Kingdom Atomic Energy Authority,05/10/2015,REPAIRS & MAINTENANCE,FUSION,BEAVER 84 LIMITED,5100327060,139.11,
United Kingdom Atomic Energy Authority,United Kingdom Atomic Energy Authority,12/10/2015,MATERIALS & SPARES,FUSION,Manufax Engineering Limited,5100327082,"15,560.00",
United Kingdom Atomic Energy Authority,United Kingdom Atomic Energy Authority,28/09/2015,MATERIALS & SPARES,FUSION,RS COMPONENTS LTD,5100327089,112.77,
United Kingdom Atomic Energy Authority,United Kingdom Atomic Energy Authority,28/09/2015,MATERIALS & SPARES,FUSION,RS COMPONENTS LTD,5100327091,93.85,
United Kingdom Atomic Energy Authority,United Kingdom Atomic Energy Authority,28/09/2015,MATERIALS & SPARES,FUSION,RS COMPONENTS LTD,5100327093,70.94,
United Kingdom Atomic Energy Authority,United Kingdom Atomic Energy Authority,30/09/2015,MATERIALS & SPARES,FUSION,RS COMPONENTS LTD,5100327099,35.53,
United Kingdom Atomic Energy Authority,United Kingdom Atomic Energy Authority,28/09/2015,MATERIALS & SPARES,FUSION,RS COMPONENTS LTD,5100327107,13.88,
United Kingdom Atomic Energy Authority,United Kingdom Atomic Energy Authority,28/09/2015,MATERIALS & SPARES,FUSION,TR FASTENINGS LTD,5100327113,53.28,
United Kingdom Atomic Energy Authority,United Kingdom Atomic Energy Authority,28/09/2015,MATERIALS & SPARES,FUSION,RS COMPONENTS LTD,5100327127,25.62,
United Kingdom Atomic Energy Authority,United Kingdom Atomic Energy Authority,30/09/2015,PROFESSIONAL SERVICES,FUSION,HUTTON ENGINEERING (PRECISION) LTD,5100327136,409.94,
United Kingdom Atomic Energy Authority,United Kingdom Atomic Energy Authority,28/09/2015,MATERIALS & SPARES,FUSION,OXFORD BOLTS & BEARINGS,5100327137,184.25,
United Kingdom Atomic Energy Authority,United Kingdom Atomic Energy Authority,30/09/2015,MATERIALS & SPARES,FUSION,TR FASTENINGS LTD,5100327176,62.92,
United Kingdom Atomic Energy Authority,United Kingdom Atomic Energy Authority,30/09/2015,MATERIALS & SPARES,FUSION,TR FASTENINGS LTD,5100327177,62.50,
United Kingdom Atomic Energy Authority,United Kingdom Atomic Energy Authority,05/10/2015,PLANT & EQUIPMENT,FUSION,EDMUNDSON ELECTRICALS LTD,5100327200,173.99,
United Kingdom Atomic Energy Authority,United Kingdom Atomic Energy Authority,05/10/2015,PLANT & EQUIPMENT,FUSION,MCDC VACCUUM LTD,5100327225,722.28,
United Kingdom Atomic Energy Authority,United Kingdom Atomic Energy Authority,19/10/2015,PROFESSIONAL SERVICES,FUSION,FORTRESS INTERLOCKS LTD,5100327230,"12,080.80",
United Kingdom Atomic Energy Authority,United Kingdom Atomic Energy Authority,05/10/2015,MATERIALS & SPARES,FUSION,RS COMPONENTS LTD,5100327240,57.98,
United Kingdom Atomic Energy Authority,United Kingdom Atomic Energy Authority,05/10/2015,MATERIALS & SPARES,FUSION,OXFORD BOLTS & BEARINGS,5100327243,29.25,
United Kingdom Atomic Energy Authority,United Kingdom Atomic Energy Authority,05/10/2015,MATERIALS & SPARES,FUSION,RS COMPONENTS LTD,5100327263,52.43,
United Kingdom Atomic Energy Authority,United Kingdom Atomic Energy Authority,05/10/2015,MATERIALS & SPARES,FUSION,RS COMPONENTS LTD,5100327268,433.31,
United Kingdom Atomic Energy Authority,United Kingdom Atomic Energy Authority,05/10/2015,CAR HIRE,FUSION,LEASEDRIVE VELO,5100327297,34.39,
United Kingdom Atomic Energy Authority,United Kingdom Atomic Energy Authority,05/10/2015,MATERIALS & SPARES,FUSION,RS COMPONENTS LTD,5100327309,26.25,
United Kingdom Atomic Energy Authority,United Kingdom Atomic Energy Authority,05/10/2015,MATERIALS & SPARES,FUSION,RS COMPONENTS LTD,5100327310,681.20,
United Kingdom Atomic Energy Authority,United Kingdom Atomic Energy Authority,05/10/2015,MATERIALS & SPARES,FUSION,RS COMPONENTS LTD,5100327311,"1,037.57",
United Kingdom Atomic Energy Authority,United Kingdom Atomic Energy Authority,05/10/2015,MATERIALS & SPARES,FUSION,TR FASTENINGS LTD,5100327315,33.25,
United Kingdom Atomic Energy Authority,United Kingdom Atomic Energy Authority,05/10/2015,MATERIALS & SPARES,FUSION,Manufax Engineering Limited,5100327323,"4,435.00",
United Kingdom Atomic Energy Authority,United Kingdom Atomic Energy Authority,05/10/2015,MATERIALS & SPARES,FUSION,RS COMPONENTS LTD,5100327329,101.71,
United Kingdom Atomic Energy Authority,United Kingdom Atomic Energy Authority,07/10/2015,MATERIALS & SPARES,FUSION,RS COMPONENTS LTD,5100327335,37.63,
United Kingdom Atomic Energy Authority,United Kingdom Atomic Energy Authority,05/10/2015,MATERIALS & SPARES,FUSION,RS COMPONENTS LTD,5100327339,19.77,
United Kingdom Atomic Energy Authority,United Kingdom Atomic Energy Authority,05/10/2015,MATERIALS & SPARES,FUSION,COMPLETE PCB SERVICES LTD,5100327367,947.25,
United Kingdom Atomic Energy Authority,United Kingdom Atomic Energy Authority,05/10/2015,MATERIALS & SPARES,FUSION,COMPLETE PCB SERVICES LTD,5100327370,35.28,
United Kingdom Atomic Energy Authority,United Kingdom Atomic Energy Authority,12/10/2015,MATERIALS & SPARES,FUSION,RS COMPONENTS LTD,5100327375,72.06,
United Kingdom Atomic Energy Authority,United Kingdom Atomic Energy Authority,05/10/2015,MATERIALS & SPARES,FUSION,RS COMPONENTS LTD,5100327383,739.52,
United Kingdom Atomic Energy Authority,United Kingdom Atomic Energy Authority,05/10/2015,MATERIALS & SPARES,FUSION,RS COMPONENTS LTD,5100327384,20.78,
United Kingdom Atomic Energy Authority,United Kingdom Atomic Energy Authority,05/10/2015,MATERIALS & SPARES,FUSION,OXFORD BOLTS & BEARINGS,5100327388,237.48,
United Kingdom Atomic Energy Authority,United Kingdom Atomic Energy Authority,05/10/2015,MATERIALS & SPARES,FUSION,FARNELL ELECTRONIC,5100327401,8.90,
United Kingdom Atomic Energy Authority,United Kingdom Atomic Energy Authority,05/10/2015,MATERIALS & SPARES,FUSION,FARNELL ELECTRONIC,5100327405,192.51,
United Kingdom Atomic Energy Authority,United Kingdom Atomic Energy Authority,05/10/2015,MATERIALS & SPARES,FUSION,FARNELL ELECTRONIC,5100327407,242.04,
United Kingdom Atomic Energy Authority,United Kingdom Atomic Energy Authority,05/10/2015,MATERIALS & SPARES,FUSION,FARNELL ELECTRONIC,5100327410,53.29,
United Kingdom Atomic Energy Authority,United Kingdom Atomic Energy Authority,07/10/2015,MATERIALS & SPARES,FUSION,Safetykleen UK Limited,5100327417,543.42,
United Kingdom Atomic Energy Authority,United Kingdom Atomic Energy Authority,05/10/2015,PLANT & EQUIPMENT,FUSION,EDMUNDSON ELECTRICALS LTD,5100327418,57.24,
United Kingdom Atomic Energy Authority,United Kingdom Atomic Energy Authority,05/10/2015,PLANT & EQUIPMENT,FUSION,EDMUNDSON ELECTRICALS LTD,5100327419,218.55,
United Kingdom Atomic Energy Authority,United Kingdom Atomic Energy Authority,05/10/2015,MATERIALS & SPARES,FUSION,RS COMPONENTS LTD,5100327430,223.22,
United Kingdom Atomic Energy Authority,United Kingdom Atomic Energy Authority,05/10/2015,MATERIALS & SPARES,FUSION,RS COMPONENTS LTD,5100327444,116.68,
United Kingdom Atomic Energy Authority,United Kingdom Atomic Energy Authority,05/10/2015,MATERIALS & SPARES,FUSION,RS COMPONENTS LTD,5100327445,25.93,
United Kingdom Atomic Energy Authority,United Kingdom Atomic Energy Authority,14/10/2015,MATERIALS & SPARES,FUSION,RS COMPONENTS LTD,5100327446,71.84,
United Kingdom Atomic Energy Authority,United Kingdom Atomic Energy Authority,05/10/2015,MATERIALS & SPARES,FUSION,RS COMPONENTS LTD,5100327447,491.77,
United Kingdom Atomic Energy Authority,United Kingdom Atomic Energy Authority,05/10/2015,MATERIALS & SPARES,FUSION,FARNELL ELECTRONIC,5100327487,82.09,
United Kingdom Atomic Energy Authority,United Kingdom Atomic Energy Authority,12/10/2015,PLANT SPARES,FUSION,A W CLARKE,5100327496,150.00,
United Kingdom Atomic Energy Authority,United Kingdom Atomic Energy Authority,14/10/2015,PLANT SPARES,FUSION,A W CLARKE,5100327497,195.90,
United Kingdom Atomic Energy Authority,United Kingdom Atomic Energy Authority,12/10/2015,PLANT SPARES,FUSION,A W CLARKE,5100327498,300.00,
United Kingdom Atomic Energy Authority,United Kingdom Atomic Energy Authority,19/10/2015,MATERIALS & SPARES,FUSION,TR FASTENINGS LTD,5100327500,20.10,
United Kingdom Atomic Energy Authority,United Kingdom Atomic Energy Authority,12/10/2015,PLANT SPARES,FUSION,A W CLARKE,5100327515,"1,875.00",
United Kingdom Atomic Energy Authority,United Kingdom Atomic Energy Authority,12/10/2015,MATERIALS & SPARES,FUSION,SCREWFIX DIRECT LTD,5100327530,59.99,
United Kingdom Atomic Energy Authority,United Kingdom Atomic Energy Authority,12/10/2015,MATERIALS & SPARES,FUSION,CPC PLC,5100327532,139.78,
United Kingdom Atomic Energy Authority,United Kingdom Atomic Energy Authority,12/10/2015,MATERIALS & SPARES,FUSION,T H WHITE LIMITED,5100327535,60.00,
United Kingdom Atomic Energy Authority,United Kingdom Atomic Energy Authority,12/10/2015,MATERIALS & SPARES,FUSION,NW Keys Ltd,5100327537,39.46,
United Kingdom Atomic Energy Authority,United Kingdom Atomic Energy Authority,12/10/2015,MATERIALS & SPARES,FUSION,B&M Engineering Ltd,5100327538,80.00,
United Kingdom Atomic Energy Authority,United Kingdom Atomic Energy Authority,12/10/2015,MATERIALS & SPARES,FUSION,OXFORD BOLTS & BEARINGS,5100327560,114.44,
United Kingdom Atomic Energy Authority,United Kingdom Atomic Energy Authority,07/10/2015,MATERIALS & SPARES,FUSION,HV WOODING LIMITED,5100327562,243.53,
United Kingdom Atomic Energy Authority,United Kingdom Atomic Energy Authority,12/10/2015,REPAIRS & MAINTENANCE,FUSION,BEAVER 84 LIMITED,5100327574,797.08,
United Kingdom Atomic Energy Authority,United Kingdom Atomic Energy Authority,12/10/2015,MATERIALS & SPARES,FUSION,COMPLETE PCB SERVICES LTD,5100327596,"1,902.04",
United Kingdom Atomic Energy Authority,United Kingdom Atomic Energy Authority,12/10/2015,MATERIALS & SPARES,FUSION,Marker Tech ltd,5100327597,"1,055.00",
United Kingdom Atomic Energy Authority,United Kingdom Atomic Energy Authority,14/10/2015,PLANT & EQUIPMENT,FUSION,PROFESSIONALFABRICATION SERVICES LTD,5100327611,950.00,
United Kingdom Atomic Energy Authority,United Kingdom Atomic Energy Authority,19/10/2015,BUILDING REPAIRS,FUSION,H & H Scaffolding Ltd,5100327635,"6,327.00",
United Kingdom Atomic Energy Authority,United Kingdom Atomic Energy Authority,19/10/2015,MATERIALS & SPARES,FUSION,ANIXTER (UK) LTD,5100327680,"20,246.26",
United Kingdom Atomic Energy Authority,United Kingdom Atomic Energy Authority,19/10/2015,MATERIALS & SPARES,FUSION,ANIXTER (UK) LTD,5100327681,"16,593.04",
United Kingdom Atomic Energy Authority,United Kingdom Atomic Energy Authority,14/10/2015,PLANT & EQUIPMENT,FUSION,EDMUNDSON ELECTRICALS LTD,5100327718,566.03,
United Kingdom Atomic Energy Authority,United Kingdom Atomic Energy Authority,12/10/2015,PLANT & EQUIPMENT,FUSION,EDMUNDSON ELECTRICALS LTD,5100327719,35.24,
United Kingdom Atomic Energy Authority,United Kingdom Atomic Energy Authority,14/10/2015,PLANT & EQUIPMENT,FUSION,EDMUNDSON ELECTRICALS LTD,5100327720,"1,778.02",
United Kingdom Atomic Energy Authority,United Kingdom Atomic Energy Authority,12/10/2015,PLANT & EQUIPMENT,FUSION,EDMUNDSON ELECTRICALS LTD,5100327721,35.08,
United Kingdom Atomic Energy Authority,United Kingdom Atomic Energy Authority,12/10/2015,MATERIALS & SPARES,FUSION,FARNELL ELECTRONIC,5100327744,30.85,
United Kingdom Atomic Energy Authority,United Kingdom Atomic Energy Authority,14/10/2015,MATERIALS & SPARES,FUSION,OXFORD BOLTS & BEARINGS,5100327752,35.70,
United Kingdom Atomic Energy Authority,United Kingdom Atomic Energy Authority,12/10/2015,MATERIALS & SPARES,FUSION,FARNELL ELECTRONIC,5100327759,11.70,
United Kingdom Atomic Energy Authority,United Kingdom Atomic Energy Authority,12/10/2015,PLANT SPARES,FUSION,A W CLARKE,5100327782,888.75,
United Kingdom Atomic Energy Authority,United Kingdom Atomic Energy Authority,12/10/2015,PLANT SPARES,FUSION,A W CLARKE,5100327783,"1,062.60",
United Kingdom Atomic Energy Authority,United Kingdom Atomic Energy Authority,12/10/2015,MATERIALS & SPARES,FUSION,RS COMPONENTS LTD,5100327786,37.27,
United Kingdom Atomic Energy Authority,United Kingdom Atomic Energy Authority,12/10/2015,MATERIALS & SPARES,FUSION,RS COMPONENTS LTD,5100327788,42.26,
United Kingdom Atomic Energy Authority,United Kingdom Atomic Energy Authority,12/10/2015,MATERIALS & SPARES,FUSION,RS COMPONENTS LTD,5100327789,103.10,
United Kingdom Atomic Energy Authority,United Kingdom Atomic Energy Authority,12/10/2015,MATERIALS & SPARES,FUSION,RS COMPONENTS LTD,5100327790,117.21,
United Kingdom Atomic Energy Authority,United Kingdom Atomic Energy Authority,12/10/2015,MATERIALS & SPARES,FUSION,RS COMPONENTS LTD,5100327791,102.90,
United Kingdom Atomic Energy Authority,United Kingdom Atomic Energy Authority,12/10/2015,MATERIALS & SPARES,FUSION,RS COMPONENTS LTD,5100327799,8.40,
United Kingdom Atomic Energy Authority,United Kingdom Atomic Energy Authority,12/10/2015,MATERIALS & SPARES,FUSION,RS COMPONENTS LTD,5100327800,84.78,
United Kingdom Atomic Energy Authority,United Kingdom Atomic Energy Authority,12/10/2015,MATERIALS & SPARES,FUSION,RS COMPONENTS LTD,5100327812,86.80,
United Kingdom Atomic Energy Authority,United Kingdom Atomic Energy Authority,19/10/2015,MATERIALS & SPARES,FUSION,ACRONA ENGINEERING LTD,5100327817,278.00,
United Kingdom Atomic Energy Authority,United Kingdom Atomic Energy Authority,12/10/2015,MATERIALS & SPARES,FUSION,RS COMPONENTS LTD,5100327840,223.62,
United Kingdom Atomic Energy Authority,United Kingdom Atomic Energy Authority,12/10/2015,MATERIALS & SPARES,FUSION,RS COMPONENTS LTD,5100327843,5.29,
United Kingdom Atomic Energy Authority,United Kingdom Atomic Energy Authority,19/10/2015,MATERIALS & SPARES,FUSION,FARNELL ELECTRONIC,5100327854,14.90,
United Kingdom Atomic Energy Authority,United Kingdom Atomic Energy Authority,19/10/2015,MATERIALS & SPARES,FUSION,SCHROFF UK LTD,5100327865,776.80,
United Kingdom Atomic Energy Authority,United Kingdom Atomic Energy Authority,19/10/2015,MATERIALS & SPARES,FUSION,RS COMPONENTS LTD,5100327867,32.14,
United Kingdom Atomic Energy Authority,United Kingdom Atomic Energy Authority,19/10/2015,MATERIALS & SPARES,FUSION,RS COMPONENTS LTD,5100327868,31.75,
United Kingdom Atomic Energy Authority,United Kingdom Atomic Energy Authority,19/10/2015,MATERIALS & SPARES,FUSION,RS COMPONENTS LTD,5100327872,15.73,
United Kingdom Atomic Energy Authority,United Kingdom Atomic Energy Authority,19/10/2015,MATERIALS & SPARES,FUSION,RS COMPONENTS LTD,5100327888,2.42,
United Kingdom Atomic Energy Authority,United Kingdom Atomic Energy Authority,19/10/2015,MATERIALS & SPARES,FUSION,RS COMPONENTS LTD,5100327895,80.11,
United Kingdom Atomic Energy Authority,United Kingdom Atomic Energy Authority,19/10/2015,MATERIALS & SPARES,FUSION,RS COMPONENTS LTD,5100327901,117.55,
United Kingdom Atomic Energy Authority,United Kingdom Atomic Energy Authority,19/10/2015,MATERIALS & SPARES,FUSION,SCREWFIX DIRECT LTD,5100327902,14.76,
United Kingdom Atomic Energy Authority,United Kingdom Atomic Energy Authority,19/10/2015,MATERIALS & SPARES,FUSION,RS COMPONENTS LTD,5100327903,34.22,
United Kingdom Atomic Energy Authority,United Kingdom Atomic Energy Authority,19/10/2015,MATERIALS & SPARES,FUSION,FARNELL ELECTRONIC,5100327925,159.37,
United Kingdom Atomic Energy Authority,United Kingdom Atomic Energy Authority,19/10/2015,MATERIALS & SPARES,FUSION,RS COMPONENTS LTD,5100327930,52.77,
United Kingdom Atomic Energy Authority,United Kingdom Atomic Energy Authority,19/10/2015,MATERIALS & SPARES,FUSION,RS COMPONENTS LTD,5100327940,67.39,
United Kingdom Atomic Energy Authority,United Kingdom Atomic Energy Authority,19/10/2015,MATERIALS & SPARES,FUSION,RS COMPONENTS LTD,5100327943,85.04,
United Kingdom Atomic Energy Authority,United Kingdom Atomic Energy Authority,19/10/2015,MATERIALS & SPARES,FUSION,RS COMPONENTS LTD,5100327949,106.31,
United Kingdom Atomic Energy Authority,United Kingdom Atomic Energy Authority,21/10/2015,CLEANING,FUSION,HYDROBLAST,5100327955,230.00,
United Kingdom Atomic Energy Authority,United Kingdom Atomic Energy Authority,19/10/2015,PLANT & EQUIPMENT,FUSION,MILLHILL TOOLS LTD,5100327974,32.50,
United Kingdom Atomic Energy Authority,United Kingdom Atomic Energy Authority,19/10/2015,PLANT & EQUIPMENT,FUSION,MILLHILL TOOLS LTD,5100327975,18.16,
United Kingdom Atomic Energy Authority,United Kingdom Atomic Energy Authority,19/10/2015,MATERIALS & SPARES,FUSION,OXFORD BOLTS & BEARINGS,5100328081,213.40,
United Kingdom Atomic Energy Authority,United Kingdom Atomic Energy Authority,19/10/2015,MATERIALS & SPARES,FUSION,OXFORD BOLTS & BEARINGS,5100328083,301.66,
United Kingdom Atomic Energy Authority,United Kingdom Atomic Energy Authority,19/10/2015,MATERIALS & SPARES,FUSION,FARNELL ELECTRONIC,5100328098,5.46,
United Kingdom Atomic Energy Authority,United Kingdom Atomic Energy Authority,19/10/2015,MATERIALS & SPARES,FUSION,FARNELL ELECTRONIC,5100328099,109.16,
United Kingdom Atomic Energy Authority,United Kingdom Atomic Energy Authority,23/10/2015,DELIVERY & CARRIAGE,FUSION,Tamworth Heat Treatments Ltd,1900061171, 828.00,
United Kingdom Atomic Energy Authority,United Kingdom Atomic Energy Authority,17/10/2015,SUBSISTENCE,FUSION,EMPLOYEE EXPENSES,100783791,6.21,
United Kingdom Atomic Energy Authority,United Kingdom Atomic Energy Authority,17/10/2015,ROAD TRAVEL,FUSION,EMPLOYEE EXPENSES,100783791,19.40,
United Kingdom Atomic Energy Authority,United Kingdom Atomic Energy Authority,14/10/2015,CONFERENCES/MEETINGS,FUSION,St Hilda's College (Trading) Ltd,1900061155," 1,160.00",
United Kingdom Atomic Energy Authority,United Kingdom Atomic Energy Authority,17/10/2015,TAXIS,FUSION,EMPLOYEE EXPENSES,100783792,10.80,
United Kingdom Atomic Energy Authority,United Kingdom Atomic Energy Authority,10/10/2015,SUBSISTENCE,FUSION,EMPLOYEE EXPENSES,100783653,595.08,
United Kingdom Atomic Energy Authority,United Kingdom Atomic Energy Authority,10/10/2015,SUBSISTENCE,FUSION,EMPLOYEE EXPENSES,100783653,14.45,
United Kingdom Atomic Energy Authority,United Kingdom Atomic Energy Authority,17/10/2015,SUBSISTENCE,FUSION,EMPLOYEE EXPENSES,100783792,353.55,
United Kingdom Atomic Energy Authority,United Kingdom Atomic Energy Authority,10/10/2015,RAIL TRAVEL,FUSION,EMPLOYEE EXPENSES,100783670,163.00,
United Kingdom Atomic Energy Authority,United Kingdom Atomic Energy Authority,17/10/2015,RAIL TRAVEL,FUSION,EMPLOYEE EXPENSES,100783792,25.00,
United Kingdom Atomic Energy Authority,United Kingdom Atomic Energy Authority,10/10/2015,ROAD TRAVEL,FUSION,EMPLOYEE EXPENSES,100783653,5.40,
United Kingdom Atomic Energy Authority,United Kingdom Atomic Energy Authority,17/10/2015,OTHER EMPLOYEE EXPENSES,FUSION,EMPLOYEE EXPENSES,100783792,3.00,
United Kingdom Atomic Energy Authority,United Kingdom Atomic Energy Authority,02/10/2015,TAXIS,FUSION,EMPLOYEE EXPENSES,100783578,19.00,
United Kingdom Atomic Energy Authority,United Kingdom Atomic Energy Authority,02/10/2015,SUBSISTENCE,FUSION,EMPLOYEE EXPENSES,100783578,221.52,
United Kingdom Atomic Energy Authority,United Kingdom Atomic Energy Authority,02/10/2015,SUBSISTENCE,FUSION,EMPLOYEE EXPENSES,100783578,1.75,
United Kingdom Atomic Energy Authority,United Kingdom Atomic Energy Authority,02/10/2015,RAIL TRAVEL,FUSION,EMPLOYEE EXPENSES,100783578,2.30,
United Kingdom Atomic Energy Authority,United Kingdom Atomic Energy Authority,02/10/2015,OTHER EMPLOYEE EXPENSES,FUSION,EMPLOYEE EXPENSES,100783578,6.54,
United Kingdom Atomic Energy Authority,United Kingdom Atomic Energy Authority,13/10/2015,CONFERENCES/MEETINGS,FUSION,IRIDA Group Ltd,1900061152, 185.01,
United Kingdom Atomic Energy Authority,United Kingdom Atomic Energy Authority,10/10/2015,CAR HIRE,FUSION,EMPLOYEE EXPENSES,100783638,403.28,
United Kingdom Atomic Energy Authority,United Kingdom Atomic Energy Authority,17/10/2015,CAR HIRE,FUSION,EMPLOYEE EXPENSES,100783812,437.90,
United Kingdom Atomic Energy Authority,United Kingdom Atomic Energy Authority,10/10/2015,SUBSISTENCE,FUSION,EMPLOYEE EXPENSES,100783638,80.00,
United Kingdom Atomic Energy Authority,United Kingdom Atomic Energy Authority,17/10/2015,SUBSISTENCE,FUSION,EMPLOYEE EXPENSES,100783812,484.98,
United Kingdom Atomic Energy Authority,United Kingdom Atomic Energy Authority,24/10/2015,SUBSISTENCE,FUSION,EMPLOYEE EXPENSES,100785825,569.01,
United Kingdom Atomic Energy Authority,United Kingdom Atomic Energy Authority,24/10/2015,RAIL TRAVEL,FUSION,EMPLOYEE EXPENSES,100785825,40.30,
United Kingdom Atomic Energy Authority,United Kingdom Atomic Energy Authority,17/10/2015,ROAD TRAVEL,FUSION,EMPLOYEE EXPENSES,100783812,55.42,
United Kingdom Atomic Energy Authority,United Kingdom Atomic Energy Authority,24/10/2015,ROAD TRAVEL,FUSION,EMPLOYEE EXPENSES,100785825,64.17,
United Kingdom Atomic Energy Authority,United Kingdom Atomic Energy Authority,02/10/2015,RAIL TRAVEL,FUSION,EMPLOYEE EXPENSES,100783596,31.20,
United Kingdom Atomic Energy Authority,United Kingdom Atomic Energy Authority,28/09/2015,TRAINING COURSE FEES,FUSION,MEDIA FIRST,5100327204,950.00,
United Kingdom Atomic Energy Authority,United Kingdom Atomic Energy Authority,19/10/2015,PROFESSIONAL SERVICES,FUSION,INSTITUTE OF PHYSICS,5100327927,"2,000.00",
United Kingdom Atomic Energy Authority,United Kingdom Atomic Energy Authority,17/10/2015,ROAD TRAVEL,FUSION,EMPLOYEE EXPENSES,100783787,14.70,
United Kingdom Atomic Energy Authority,United Kingdom Atomic Energy Authority,30/09/2015,CAR HIRE,FUSION,LEASEDRIVE VELO,5100327139,68.78,
United Kingdom Atomic Energy Authority,United Kingdom Atomic Energy Authority,05/10/2015,UNIVERSITY PLACEMENT,FUSION,ST EDMUND HALL,5100327484,"9,533.07",
United Kingdom Atomic Energy Authority,United Kingdom Atomic Energy Authority,19/10/2015,UNIVERSITY PLACEMENT,FUSION,UNIVERSITY OF YORK,5100327855,"1,623.00",
United Kingdom Atomic Energy Authority,United Kingdom Atomic Energy Authority,19/10/2015,UNIVERSITY PLACEMENT,FUSION,UNIVERSITY OF YORK,5100327856,"1,670.00",
United Kingdom Atomic Energy Authority,United Kingdom Atomic Energy Authority,19/10/2015,UNIVERSITY PLACEMENT,FUSION,UNIVERSITY OF YORK,5100327859,"1,670.00",
United Kingdom Atomic Energy Authority,United Kingdom Atomic Energy Authority,21/10/2015,CAR HIRE,FUSION,LEASEDRIVE VELO,5100328034,34.39,
United Kingdom Atomic Energy Authority,United Kingdom Atomic Energy Authority,10/10/2015,AIR TRAVEL,FUSION,EMPLOYEE EXPENSES,100783675,390.36,
United Kingdom Atomic Energy Authority,United Kingdom Atomic Energy Authority,10/10/2015,ROAD TRAVEL,FUSION,EMPLOYEE EXPENSES,100783629,58.12,
United Kingdom Atomic Energy Authority,United Kingdom Atomic Energy Authority,24/10/2015,ROAD TRAVEL,FUSION,EMPLOYEE EXPENSES,100785796,5.42,
United Kingdom Atomic Energy Authority,United Kingdom Atomic Energy Authority,12/10/2015,CAR HIRE,FUSION,LEASEDRIVE VELO,5100327676,34.39,
United Kingdom Atomic Energy Authority,United Kingdom Atomic Energy Authority,21/10/2015,PROFESSIONAL SERVICES,FUSION,ONE FIX RECRUITMENT,5100328009,275.00,
United Kingdom Atomic Energy Authority,United Kingdom Atomic Energy Authority,02/10/2015,SUBSISTENCE,FUSION,EMPLOYEE EXPENSES,100783575,7.00,
United Kingdom Atomic Energy Authority,United Kingdom Atomic Energy Authority,02/10/2015,RAIL TRAVEL,FUSION,EMPLOYEE EXPENSES,100783575,19.60,
United Kingdom Atomic Energy Authority,United Kingdom Atomic Energy Authority,02/10/2015,ROAD TRAVEL,FUSION,EMPLOYEE EXPENSES,100783575,2.00,
United Kingdom Atomic Energy Authority,United Kingdom Atomic Energy Authority,02/10/2015,TAXIS,FUSION,EMPLOYEE EXPENSES,100783574,104.13,
United Kingdom Atomic Energy Authority,United Kingdom Atomic Energy Authority,02/10/2015,SUBSISTENCE,FUSION,EMPLOYEE EXPENSES,100783569,100.37,
United Kingdom Atomic Energy Authority,United Kingdom Atomic Energy Authority,02/10/2015,SUBSISTENCE,FUSION,EMPLOYEE EXPENSES,100783574,430.69,
United Kingdom Atomic Energy Authority,United Kingdom Atomic Energy Authority,02/10/2015,SUBSISTENCE,FUSION,EMPLOYEE EXPENSES,100783588,121.58,
United Kingdom Atomic Energy Authority,United Kingdom Atomic Energy Authority,17/10/2015,SUBSISTENCE,FUSION,EMPLOYEE EXPENSES,100783798,347.95,
United Kingdom Atomic Energy Authority,United Kingdom Atomic Energy Authority,17/10/2015,SUBSISTENCE,FUSION,EMPLOYEE EXPENSES,100783798,8.46,
United Kingdom Atomic Energy Authority,United Kingdom Atomic Energy Authority,24/10/2015,SUBSISTENCE,FUSION,EMPLOYEE EXPENSES,100785797,470.51,
United Kingdom Atomic Energy Authority,United Kingdom Atomic Energy Authority,24/10/2015,SUBSISTENCE,FUSION,EMPLOYEE EXPENSES,100785800,24.82,
United Kingdom Atomic Energy Authority,United Kingdom Atomic Energy Authority,24/10/2015,SUBSISTENCE,FUSION,EMPLOYEE EXPENSES,100785813,504.35,
United Kingdom Atomic Energy Authority,United Kingdom Atomic Energy Authority,24/10/2015,SUBSISTENCE,FUSION,EMPLOYEE EXPENSES,100785813,3.16,
United Kingdom Atomic Energy Authority,United Kingdom Atomic Energy Authority,02/10/2015,RAIL TRAVEL,FUSION,EMPLOYEE EXPENSES,100783574,32.75,
United Kingdom Atomic Energy Authority,United Kingdom Atomic Energy Authority,02/10/2015,RAIL TRAVEL,FUSION,EMPLOYEE EXPENSES,100783588,2.71,
United Kingdom Atomic Energy Authority,United Kingdom Atomic Energy Authority,17/10/2015,RAIL TRAVEL,FUSION,EMPLOYEE EXPENSES,100783798,12.00,
United Kingdom Atomic Energy Authority,United Kingdom Atomic Energy Authority,17/10/2015,RAIL TRAVEL,FUSION,EMPLOYEE EXPENSES,100783798,6.59,
United Kingdom Atomic Energy Authority,United Kingdom Atomic Energy Authority,17/10/2015,RAIL TRAVEL,FUSION,EMPLOYEE EXPENSES,100783808,66.60,
United Kingdom Atomic Energy Authority,United Kingdom Atomic Energy Authority,24/10/2015,RAIL TRAVEL,FUSION,EMPLOYEE EXPENSES,100785797,8.30,
United Kingdom Atomic Energy Authority,United Kingdom Atomic Energy Authority,24/10/2015,RAIL TRAVEL,FUSION,EMPLOYEE EXPENSES,100785813,25.36,
United Kingdom Atomic Energy Authority,United Kingdom Atomic Energy Authority,02/10/2015,ROAD TRAVEL,FUSION,EMPLOYEE EXPENSES,100783574,29.00,
United Kingdom Atomic Energy Authority,United Kingdom Atomic Energy Authority,17/10/2015,ROAD TRAVEL,FUSION,EMPLOYEE EXPENSES,100783798,25.00,
United Kingdom Atomic Energy Authority,United Kingdom Atomic Energy Authority,24/10/2015,ROAD TRAVEL,FUSION,EMPLOYEE EXPENSES,100785797,14.50,
United Kingdom Atomic Energy Authority,United Kingdom Atomic Energy Authority,24/10/2015,ROAD TRAVEL,FUSION,EMPLOYEE EXPENSES,100785799,60.84,
United Kingdom Atomic Energy Authority,United Kingdom Atomic Energy Authority,24/10/2015,ROAD TRAVEL,FUSION,EMPLOYEE EXPENSES,100785810,22.50,
United Kingdom Atomic Energy Authority,United Kingdom Atomic Energy Authority,24/10/2015,ROAD TRAVEL,FUSION,EMPLOYEE EXPENSES,100785813,28.00,
United Kingdom Atomic Energy Authority,United Kingdom Atomic Energy Authority,02/10/2015,OTHER EMPLOYEE EXPENSES,FUSION,EMPLOYEE EXPENSES,100783574,41.66,
United Kingdom Atomic Energy Authority,United Kingdom Atomic Energy Authority,28/09/2015,MATERIALS & SPARES,FUSION,FARNELL ELECTRONIC,5100326964,245.21,
United Kingdom Atomic Energy Authority,United Kingdom Atomic Energy Authority,28/09/2015,MATERIALS & SPARES,FUSION,FARNELL ELECTRONIC,5100327038,89.30,
United Kingdom Atomic Energy Authority,United Kingdom Atomic Energy Authority,28/09/2015,MATERIALS & SPARES,FUSION,COMPLETE PCB SERVICES LTD,5100327178,985.00,
United Kingdom Atomic Energy Authority,United Kingdom Atomic Energy Authority,05/10/2015,MATERIALS & SPARES,FUSION,RS COMPONENTS LTD,5100327238,185.12,
United Kingdom Atomic Energy Authority,United Kingdom Atomic Energy Authority,05/10/2015,MATERIALS & SPARES,FUSION,RS COMPONENTS LTD,5100327308,13.05,
United Kingdom Atomic Energy Authority,United Kingdom Atomic Energy Authority,05/10/2015,STATIONERY,FUSION,LYRECO UK LIMITED,5100327345,206.01,
United Kingdom Atomic Energy Authority,United Kingdom Atomic Energy Authority,05/10/2015,MATERIALS & SPARES,FUSION,COMPLETE PCB SERVICES LTD,5100327371,530.70,
United Kingdom Atomic Energy Authority,United Kingdom Atomic Energy Authority,12/10/2015,MATERIALS & SPARES,FUSION,CPC PLC,5100327531,36.31,
United Kingdom Atomic Energy Authority,United Kingdom Atomic Energy Authority,12/10/2015,BUILDING REPAIRS,FUSION,KNOWLES & SONS (OXFORD) LTD,5100327610,25.00,
United Kingdom Atomic Energy Authority,United Kingdom Atomic Energy Authority,12/10/2015,MATERIALS & SPARES,FUSION,COMPLETE PCB SERVICES LTD,5100327701,224.00,
United Kingdom Atomic Energy Authority,United Kingdom Atomic Energy Authority,19/10/2015,MATERIALS & SPARES,FUSION,RS COMPONENTS LTD,5100327945,43.01,
United Kingdom Atomic Energy Authority,United Kingdom Atomic Energy Authority,19/10/2015,MATERIALS & SPARES,FUSION,FARNELL ELECTRONIC,5100328096,121.20,
United Kingdom Atomic Energy Authority,United Kingdom Atomic Energy Authority,19/10/2015,MATERIALS & SPARES,FUSION,FARNELL ELECTRONIC,5100328139,315.51,
United Kingdom Atomic Energy Authority,United Kingdom Atomic Energy Authority,19/10/2015,MATERIALS & SPARES,FUSION,FARNELL ELECTRONIC,5100328141,18.15,
United Kingdom Atomic Energy Authority,United Kingdom Atomic Energy Authority,13/10/2015,PROFESSIONAL SUBSCRIPTION,FUSION,Rutherford Appleton Laboratory GBS RE STFC EURO,1900061151, 296.02,
United Kingdom Atomic Energy Authority,United Kingdom Atomic Energy Authority,10/10/2015,RAIL TRAVEL,FUSION,EMPLOYEE EXPENSES,100783654,63.70,
United Kingdom Atomic Energy Authority,United Kingdom Atomic Energy Authority,28/09/2015,PROFESSIONAL SERVICES,FUSION,SCIENTIFICS LTD,5100326224,160.00,
United Kingdom Atomic Energy Authority,United Kingdom Atomic Energy Authority,12/10/2015,GASES,FUSION,BOC LTD,5100327512,46.89,
United Kingdom Atomic Energy Authority,United Kingdom Atomic Energy Authority,12/10/2015,GASES,FUSION,BOC LTD,5100327738,261.75,
United Kingdom Atomic Energy Authority,United Kingdom Atomic Energy Authority,12/10/2015,MATERIALS & SPARES,FUSION,RS COMPONENTS LTD,5100327847,237.32,
United Kingdom Atomic Energy Authority,United Kingdom Atomic Energy Authority,19/10/2015,BUILDING REPAIRS,FUSION,LORNE STEWART PLC,5100328038,"4,218.40",
United Kingdom Atomic Energy Authority,United Kingdom Atomic Energy Authority,28/09/2015,MATERIALS & SPARES,FUSION,OXFORD BOLTS & BEARINGS,5100327019,155.26,
United Kingdom Atomic Energy Authority,United Kingdom Atomic Energy Authority,28/09/2015,PLANT & EQUIPMENT,FUSION,AALCO LIMITED,5100327024,81.00,
United Kingdom Atomic Energy Authority,United Kingdom Atomic Energy Authority,28/09/2015,MATERIALS & SPARES,FUSION,FARNELL ELECTRONIC,5100327040,67.18,
United Kingdom Atomic Energy Authority,United Kingdom Atomic Energy Authority,28/09/2015,MATERIALS & SPARES,FUSION,FARNELL ELECTRONIC,5100327053,134.71,
United Kingdom Atomic Energy Authority,United Kingdom Atomic Energy Authority,28/09/2015,MATERIALS & SPARES,FUSION,RS COMPONENTS LTD,5100327131,6.73,
United Kingdom Atomic Energy Authority,United Kingdom Atomic Energy Authority,30/09/2015,PLANT & EQUIPMENT,FUSION,AALCO LIMITED,5100327197,113.70,
United Kingdom Atomic Energy Authority,United Kingdom Atomic Energy Authority,07/10/2015,PLANT & EQUIPMENT,FUSION,EDMUNDSON ELECTRICALS LTD,5100327203,241.81,
United Kingdom Atomic Energy Authority,United Kingdom Atomic Energy Authority,05/10/2015,MATERIALS & SPARES,FUSION,RS COMPONENTS LTD,5100327261,183.75,
United Kingdom Atomic Energy Authority,United Kingdom Atomic Energy Authority,12/10/2015,PLANT & EQUIPMENT,FUSION,JOHNSON MATTHEY PLC,5100327324,307.27,
United Kingdom Atomic Energy Authority,United Kingdom Atomic Energy Authority,05/10/2015,MATERIALS & SPARES,FUSION,RS COMPONENTS LTD,5100327331,156.99,
United Kingdom Atomic Energy Authority,United Kingdom Atomic Energy Authority,12/10/2015,MATERIALS & SPARES,FUSION,KURT J LESKER,5100327334,191.25,
United Kingdom Atomic Energy Authority,United Kingdom Atomic Energy Authority,05/10/2015,MATERIALS & SPARES,FUSION,KEY INDUSTRIAL EQUIPMENT LTD,5100327394,146.70,
United Kingdom Atomic Energy Authority,United Kingdom Atomic Energy Authority,12/10/2015,PLANT & EQUIPMENT,FUSION,Pipeline and Construction Supplies Ltd,5100327452,77.50,
United Kingdom Atomic Energy Authority,United Kingdom Atomic Energy Authority,05/10/2015,MATERIALS & SPARES,FUSION,GARNER OSBORNE CIRCUITS LTD,5100327468,390.40,
United Kingdom Atomic Energy Authority,United Kingdom Atomic Energy Authority,19/10/2015,MATERIALS & SPARES,FUSION,TR ENGINEERING PROJECTS LTD,5100327528,326.40,
United Kingdom Atomic Energy Authority,United Kingdom Atomic Energy Authority,12/10/2015,BUILDING REPAIRS,FUSION,KNOWLES & SONS (OXFORD) LTD,5100327632,965.25,
United Kingdom Atomic Energy Authority,United Kingdom Atomic Energy Authority,14/10/2015,MATERIALS & SPARES,FUSION,Winder Power Ltd,5100327747,"17,500.00",
United Kingdom Atomic Energy Authority,United Kingdom Atomic Energy Authority,14/10/2015,MATERIALS & SPARES,FUSION,Winder Power Ltd,5100327750,"9,000.00",
United Kingdom Atomic Energy Authority,United Kingdom Atomic Energy Authority,14/10/2015,MATERIALS & SPARES,FUSION,Winder Power Ltd,5100327751,"14,500.00",
United Kingdom Atomic Energy Authority,United Kingdom Atomic Energy Authority,14/10/2015,MATERIALS & SPARES,FUSION,Winder Power Ltd,5100327753,"16,700.00",
United Kingdom Atomic Energy Authority,United Kingdom Atomic Energy Authority,12/10/2015,MATERIALS & SPARES,FUSION,RS COMPONENTS LTD,5100327803,35.81,
United Kingdom Atomic Energy Authority,United Kingdom Atomic Energy Authority,12/10/2015,MATERIALS & SPARES,FUSION,RS COMPONENTS LTD,5100327816,193.73,
United Kingdom Atomic Energy Authority,United Kingdom Atomic Energy Authority,14/10/2015,MATERIALS & SPARES,FUSION,RS COMPONENTS LTD,5100327838,207.68,
United Kingdom Atomic Energy Authority,United Kingdom Atomic Energy Authority,19/10/2015,MATERIALS & SPARES,FUSION,RS COMPONENTS LTD,5100327928,20.48,
United Kingdom Atomic Energy Authority,United Kingdom Atomic Energy Authority,19/10/2015,MATERIALS & SPARES,FUSION,RS COMPONENTS LTD,5100327944,29.33,
United Kingdom Atomic Energy Authority,United Kingdom Atomic Energy Authority,19/10/2015,CONSUMABLES,FUSION,PRITCHARD SHEET METAL,5100327977,87.00,
United Kingdom Atomic Energy Authority,United Kingdom Atomic Energy Authority,19/10/2015,MATERIALS & SPARES,FUSION,ANIXTER (UK) LTD,5100328063,534.90,
United Kingdom Atomic Energy Authority,United Kingdom Atomic Energy Authority,19/10/2015,PLANT & EQUIPMENT,FUSION,SM GAUGE COMPANY LIMITED,5100328121,182.00,
United Kingdom Atomic Energy Authority,United Kingdom Atomic Energy Authority,24/10/2015,SUBSISTENCE,FUSION,EMPLOYEE EXPENSES,100785809,"1,111.68",
United Kingdom Atomic Energy Authority,United Kingdom Atomic Energy Authority,24/10/2015,MILEAGE ALLOWANCE,FUSION,EMPLOYEE EXPENSES,100785809,34.20,
United Kingdom Atomic Energy Authority,United Kingdom Atomic Energy Authority,28/09/2015,PUBLICATIONS,FUSION,IOP PUBLISHING LTD,5100327141,"1,125.00",
United Kingdom Atomic Energy Authority,United Kingdom Atomic Energy Authority,19/10/2015,PUBLICATIONS,FUSION,IOP PUBLISHING LTD,5100327987,"1,781.25",
United Kingdom Atomic Energy Authority,United Kingdom Atomic Energy Authority,19/10/2015,TRAINING COSTS,FUSION,UNIVERSITY OF THE WEST OF ENGLAND,5100328137,"1,735.00",
United Kingdom Atomic Energy Authority,United Kingdom Atomic Energy Authority,17/10/2015,TAXIS,FUSION,EMPLOYEE EXPENSES,100783802,69.44,
United Kingdom Atomic Energy Authority,United Kingdom Atomic Energy Authority,02/10/2015,SUBSISTENCE,FUSION,EMPLOYEE EXPENSES,100783589,30.00,
United Kingdom Atomic Energy Authority,United Kingdom Atomic Energy Authority,17/10/2015,SUBSISTENCE,FUSION,EMPLOYEE EXPENSES,100783802,80.64,
United Kingdom Atomic Energy Authority,United Kingdom Atomic Energy Authority,24/10/2015,SUBSISTENCE,FUSION,EMPLOYEE EXPENSES,100785827,7.50,
United Kingdom Atomic Energy Authority,United Kingdom Atomic Energy Authority,24/10/2015,MILEAGE ALLOWANCE,FUSION,EMPLOYEE EXPENSES,100785827,33.75,
United Kingdom Atomic Energy Authority,United Kingdom Atomic Energy Authority,17/10/2015,RAIL TRAVEL,FUSION,EMPLOYEE EXPENSES,100783802,21.50,
United Kingdom Atomic Energy Authority,United Kingdom Atomic Energy Authority,24/10/2015,RAIL TRAVEL,FUSION,EMPLOYEE EXPENSES,100785827,12.00,
United Kingdom Atomic Energy Authority,United Kingdom Atomic Energy Authority,02/10/2015,ROAD TRAVEL,FUSION,EMPLOYEE EXPENSES,100783568,4.00,
United Kingdom Atomic Energy Authority,United Kingdom Atomic Energy Authority,02/10/2015,OTHER EMPLOYEE EXPENSES,FUSION,EMPLOYEE EXPENSES,100783589,12.81,
United Kingdom Atomic Energy Authority,United Kingdom Atomic Energy Authority,02/10/2015,PROFESSIONAL SUBSCRIPTION,FUSION,EMPLOYEE EXPENSES,100783587,135.70,
United Kingdom Atomic Energy Authority,United Kingdom Atomic Energy Authority,02/10/2015,PROFESSIONAL SUBSCRIPTION,FUSION,EMPLOYEE EXPENSES,100783598,46.40,
United Kingdom Atomic Energy Authority,United Kingdom Atomic Energy Authority,10/10/2015,PROFESSIONAL SUBSCRIPTION,FUSION,EMPLOYEE EXPENSES,100783673,253.40,
United Kingdom Atomic Energy Authority,United Kingdom Atomic Energy Authority,17/10/2015,SUBSISTENCE,FUSION,EMPLOYEE EXPENSES,100783815,"1,333.71",
United Kingdom Atomic Energy Authority,United Kingdom Atomic Energy Authority,17/10/2015,RAIL TRAVEL,FUSION,EMPLOYEE EXPENSES,100783815,22.02,
United Kingdom Atomic Energy Authority,United Kingdom Atomic Energy Authority,30/09/2015,TRAVEL,FUSION,VISITOR EXPENSES,1900061133, 156.01,cul14514
United Kingdom Atomic Energy Authority,United Kingdom Atomic Energy Authority,17/10/2015,TAXIS,FUSION,EMPLOYEE EXPENSES,100783793,13.00,
United Kingdom Atomic Energy Authority,United Kingdom Atomic Energy Authority,17/10/2015,SUBSISTENCE,FUSION,EMPLOYEE EXPENSES,100783793,4.81,
United Kingdom Atomic Energy Authority,United Kingdom Atomic Energy Authority,17/10/2015,RAIL TRAVEL,FUSION,EMPLOYEE EXPENSES,100783793,29.40,
United Kingdom Atomic Energy Authority,United Kingdom Atomic Energy Authority,17/10/2015,ROAD TRAVEL,FUSION,EMPLOYEE EXPENSES,100783793,17.10,
United Kingdom Atomic Energy Authority,United Kingdom Atomic Energy Authority,12/10/2015,MATERIALS & SPARES,FUSION,RS COMPONENTS LTD,5100327819,16.38,
United Kingdom Atomic Energy Authority,United Kingdom Atomic Energy Authority,19/10/2015,MATERIALS & SPARES,FUSION,ICS Cool Energy Ltd,5100324350,"16,257.50",
United Kingdom Atomic Energy Authority,United Kingdom Atomic Energy Authority,21/10/2015,PLANT & EQUIPMENT,FUSION,MCDC VACCUUM LTD,5100326979,"2,120.40",
United Kingdom Atomic Energy Authority,United Kingdom Atomic Energy Authority,14/10/2015,MATERIALS & SPARES,FUSION,CROSSMAN ENGINEERING,5100327589,"3,406.00",
United Kingdom Atomic Energy Authority,United Kingdom Atomic Energy Authority,12/10/2015,CAR HIRE,FUSION,LEASEDRIVE VELO,5100327675,54.85,
United Kingdom Atomic Energy Authority,United Kingdom Atomic Energy Authority,14/10/2015,MATERIALS & SPARES,FUSION,CROSSMAN ENGINEERING,5100327965,-550.00,
United Kingdom Atomic Energy Authority,United Kingdom Atomic Energy Authority,19/10/2015,CAR HIRE,FUSION,LEASEDRIVE VELO,5100328115,65.51,
United Kingdom Atomic Energy Authority,United Kingdom Atomic Energy Authority,21/10/2015,DELIVERY & CARRIAGE,FUSION,Solenvis Limited,1900061167," 3,201.60",
United Kingdom Atomic Energy Authority,United Kingdom Atomic Energy Authority,02/10/2015,SUBSISTENCE,FUSION,EMPLOYEE EXPENSES,100783599,23.20,
United Kingdom Atomic Energy Authority,United Kingdom Atomic Energy Authority,02/10/2015,SUBSISTENCE,FUSION,EMPLOYEE EXPENSES,100783599,85.62,
United Kingdom Atomic Energy Authority,United Kingdom Atomic Energy Authority,02/10/2015,MILEAGE ALLOWANCE,FUSION,EMPLOYEE EXPENSES,100783599,67.50,
United Kingdom Atomic Energy Authority,United Kingdom Atomic Energy Authority,28/09/2015,TRAINING COURSE FEES,FUSION,PEARCEMAYFIELD ASSOCIATED LTD,5100327185,"3,160.00",
United Kingdom Atomic Energy Authority,United Kingdom Atomic Energy Authority,10/10/2015,SUBSISTENCE,FUSION,EMPLOYEE EXPENSES,100783669,4.12,
United Kingdom Atomic Energy Authority,United Kingdom Atomic Energy Authority,17/10/2015,MILEAGE ALLOWANCE,FUSION,EMPLOYEE EXPENSES,100783819,90.00,
United Kingdom Atomic Energy Authority,United Kingdom Atomic Energy Authority,10/10/2015,RAIL TRAVEL,FUSION,EMPLOYEE EXPENSES,100783666,50.90,
United Kingdom Atomic Energy Authority,United Kingdom Atomic Energy Authority,10/10/2015,RAIL TRAVEL,FUSION,EMPLOYEE EXPENSES,100783669,66.60,
United Kingdom Atomic Energy Authority,United Kingdom Atomic Energy Authority,05/10/2015,PLANT SPARES,FUSION,A W CLARKE,5100327116,331.15,
United Kingdom Atomic Energy Authority,United Kingdom Atomic Energy Authority,30/09/2015,PLANT SPARES,FUSION,A W CLARKE,5100327117,79.30,
United Kingdom Atomic Energy Authority,United Kingdom Atomic Energy Authority,07/10/2015,PLANT & EQUIPMENT,FUSION,MCDC VACCUUM LTD,5100327356,"1,175.00",
United Kingdom Atomic Energy Authority,United Kingdom Atomic Energy Authority,12/10/2015,PLANT SPARES,FUSION,A W CLARKE,5100327540,237.90,
United Kingdom Atomic Energy Authority,United Kingdom Atomic Energy Authority,12/10/2015,PLANT SPARES,FUSION,A W CLARKE,5100327549,119.00,
United Kingdom Atomic Energy Authority,United Kingdom Atomic Energy Authority,12/10/2015,PLANT SPARES,FUSION,A W CLARKE,5100327550,78.25,
United Kingdom Atomic Energy Authority,United Kingdom Atomic Energy Authority,12/10/2015,PLANT SPARES,FUSION,A W CLARKE,5100327551,255.00,
United Kingdom Atomic Energy Authority,United Kingdom Atomic Energy Authority,12/10/2015,MATERIALS & SPARES,FUSION,THORLABS LTD,5100327591,98.20,
United Kingdom Atomic Energy Authority,United Kingdom Atomic Energy Authority,12/10/2015,MATERIALS & SPARES,FUSION,RS COMPONENTS LTD,5100327785,18.27,
United Kingdom Atomic Energy Authority,United Kingdom Atomic Energy Authority,19/10/2015,MATERIALS & SPARES,FUSION,FARNELL ELECTRONIC,5100327851,2.48,
United Kingdom Atomic Energy Authority,United Kingdom Atomic Energy Authority,19/10/2015,UNIVERSITY PLACEMENT,FUSION,UNIVERSITY OF YORK,5100327861,"1,680.59",
United Kingdom Atomic Energy Authority,United Kingdom Atomic Energy Authority,19/10/2015,UNIVERSITY PLACEMENT,FUSION,UNIVERSITY OF YORK,5100327862,"1,642.86",
United Kingdom Atomic Energy Authority,United Kingdom Atomic Energy Authority,19/10/2015,UNIVERSITY PLACEMENT,FUSION,UNIVERSITY OF YORK,5100327863,"1,616.50",
United Kingdom Atomic Energy Authority,United Kingdom Atomic Energy Authority,19/10/2015,MATERIALS & SPARES,FUSION,CANBERRA UK LTD,5100327885,"2,150.00",
United Kingdom Atomic Energy Authority,United Kingdom Atomic Energy Authority,19/10/2015,MATERIALS & SPARES,FUSION,RS COMPONENTS LTD,5100327932,30.56,
United Kingdom Atomic Energy Authority,United Kingdom Atomic Energy Authority,19/10/2015,MATERIALS & SPARES,FUSION,FARNELL ELECTRONIC,5100328140,7.70,
United Kingdom Atomic Energy Authority,United Kingdom Atomic Energy Authority,19/10/2015,MATERIALS & SPARES,FUSION,FARNELL ELECTRONIC,5100328145,5.06,
United Kingdom Atomic Energy Authority,United Kingdom Atomic Energy Authority,30/09/2015,MILEAGE ALLOWANCE,FUSION,VISITOR EXPENSES,1900061131, 185.00,
United Kingdom Atomic Energy Authority,United Kingdom Atomic Energy Authority,14/10/2015,DELIVERY & CARRIAGE,FUSION,ASD Metal Services,1900061156," 1,228.20",
United Kingdom Atomic Energy Authority,United Kingdom Atomic Energy Authority,10/10/2015,TAXIS,FUSION,EMPLOYEE EXPENSES,100783667,11.10,
United Kingdom Atomic Energy Authority,United Kingdom Atomic Energy Authority,24/10/2015,TAXIS,FUSION,EMPLOYEE EXPENSES,100785806,37.14,
United Kingdom Atomic Energy Authority,United Kingdom Atomic Energy Authority,24/10/2015,TAXIS,FUSION,EMPLOYEE EXPENSES,100785807,8.70,
United Kingdom Atomic Energy Authority,United Kingdom Atomic Energy Authority,24/10/2015,TAXIS,FUSION,EMPLOYEE EXPENSES,100785822,10.40,
United Kingdom Atomic Energy Authority,United Kingdom Atomic Energy Authority,02/10/2015,SUBSISTENCE,FUSION,EMPLOYEE EXPENSES,100783570,228.22,
United Kingdom Atomic Energy Authority,United Kingdom Atomic Energy Authority,02/10/2015,SUBSISTENCE,FUSION,EMPLOYEE EXPENSES,100783572,5.46,
United Kingdom Atomic Energy Authority,United Kingdom Atomic Energy Authority,02/10/2015,SUBSISTENCE,FUSION,EMPLOYEE EXPENSES,100783579,325.32,
United Kingdom Atomic Energy Authority,United Kingdom Atomic Energy Authority,02/10/2015,SUBSISTENCE,FUSION,EMPLOYEE EXPENSES,100783579,3.16,
United Kingdom Atomic Energy Authority,United Kingdom Atomic Energy Authority,02/10/2015,SUBSISTENCE,FUSION,EMPLOYEE EXPENSES,100783585,966.74,
United Kingdom Atomic Energy Authority,United Kingdom Atomic Energy Authority,02/10/2015,SUBSISTENCE,FUSION,EMPLOYEE EXPENSES,100783585,5.62,
United Kingdom Atomic Energy Authority,United Kingdom Atomic Energy Authority,02/10/2015,SUBSISTENCE,FUSION,EMPLOYEE EXPENSES,100783586,249.92,
United Kingdom Atomic Energy Authority,United Kingdom Atomic Energy Authority,02/10/2015,SUBSISTENCE,FUSION,EMPLOYEE EXPENSES,100783597,498.98,
United Kingdom Atomic Energy Authority,United Kingdom Atomic Energy Authority,10/10/2015,SUBSISTENCE,FUSION,EMPLOYEE EXPENSES,100783630,40.00,
United Kingdom Atomic Energy Authority,United Kingdom Atomic Energy Authority,10/10/2015,SUBSISTENCE,FUSION,EMPLOYEE EXPENSES,100783630,38.83,
United Kingdom Atomic Energy Authority,United Kingdom Atomic Energy Authority,10/10/2015,SUBSISTENCE,FUSION,EMPLOYEE EXPENSES,100783639,532.07,
United Kingdom Atomic Energy Authority,United Kingdom Atomic Energy Authority,10/10/2015,SUBSISTENCE,FUSION,EMPLOYEE EXPENSES,100783639,3.16,
United Kingdom Atomic Energy Authority,United Kingdom Atomic Energy Authority,10/10/2015,SUBSISTENCE,FUSION,EMPLOYEE EXPENSES,100783640,258.91,
United Kingdom Atomic Energy Authority,United Kingdom Atomic Energy Authority,10/10/2015,SUBSISTENCE,FUSION,EMPLOYEE EXPENSES,100783667,99.70,
United Kingdom Atomic Energy Authority,United Kingdom Atomic Energy Authority,10/10/2015,SUBSISTENCE,FUSION,EMPLOYEE EXPENSES,100783676,"1,555.00",7030004382
United Kingdom Atomic Energy Authority,United Kingdom Atomic Energy Authority,17/10/2015,SUBSISTENCE,FUSION,EMPLOYEE EXPENSES,100783801,"1,138.08",CUL14511
United Kingdom Atomic Energy Authority,United Kingdom Atomic Energy Authority,17/10/2015,SUBSISTENCE,FUSION,EMPLOYEE EXPENSES,100783803,79.16,CUL14512
United Kingdom Atomic Energy Authority,United Kingdom Atomic Energy Authority,24/10/2015,SUBSISTENCE,FUSION,EMPLOYEE EXPENSES,100785798,76.86,CUL14513
United Kingdom Atomic Energy Authority,United Kingdom Atomic Energy Authority,24/10/2015,SUBSISTENCE,FUSION,EMPLOYEE EXPENSES,100785801,7.79,CUL14514
United Kingdom Atomic Energy Authority,United Kingdom Atomic Energy Authority,24/10/2015,SUBSISTENCE,FUSION,EMPLOYEE EXPENSES,100785802,10.00,CUL14516
United Kingdom Atomic Energy Authority,United Kingdom Atomic Energy Authority,24/10/2015,SUBSISTENCE,FUSION,EMPLOYEE EXPENSES,100785802,167.87,CUL14517
United Kingdom Atomic Energy Authority,United Kingdom Atomic Energy Authority,24/10/2015,SUBSISTENCE,FUSION,EMPLOYEE EXPENSES,100785806,235.05,CUL14518
United Kingdom Atomic Energy Authority,United Kingdom Atomic Energy Authority,24/10/2015,SUBSISTENCE,FUSION,EMPLOYEE EXPENSES,100785807,338.57,CUL14519
United Kingdom Atomic Energy Authority,United Kingdom Atomic Energy Authority,24/10/2015,SUBSISTENCE,FUSION,EMPLOYEE EXPENSES,100785807,7.04,CUL14520
United Kingdom Atomic Energy Authority,United Kingdom Atomic Energy Authority,24/10/2015,SUBSISTENCE,FUSION,EMPLOYEE EXPENSES,100785822,482.96,CUL14521
United Kingdom Atomic Energy Authority,United Kingdom Atomic Energy Authority,02/10/2015,MILEAGE ALLOWANCE,FUSION,EMPLOYEE EXPENSES,100783572,54.00,CUL14522
United Kingdom Atomic Energy Authority,United Kingdom Atomic Energy Authority,10/10/2015,MILEAGE ALLOWANCE,FUSION,EMPLOYEE EXPENSES,100783630,54.00,CUL14523
United Kingdom Atomic Energy Authority,United Kingdom Atomic Energy Authority,10/10/2015,MILEAGE ALLOWANCE,FUSION,EMPLOYEE EXPENSES,100783667,9.60,CUL14524
United Kingdom Atomic Energy Authority,United Kingdom Atomic Energy Authority,10/10/2015,MILEAGE ALLOWANCE,FUSION,EMPLOYEE EXPENSES,100783671,69.75,CUL14525
United Kingdom Atomic Energy Authority,United Kingdom Atomic Energy Authority,24/10/2015,MILEAGE ALLOWANCE,FUSION,EMPLOYEE EXPENSES,100785801,54.00,CUL14526
United Kingdom Atomic Energy Authority,United Kingdom Atomic Energy Authority,24/10/2015,MILEAGE ALLOWANCE,FUSION,EMPLOYEE EXPENSES,100785802,54.00,CUL14527
United Kingdom Atomic Energy Authority,United Kingdom Atomic Energy Authority,02/10/2015,RAIL TRAVEL,FUSION,EMPLOYEE EXPENSES,100783597,18.85,CUL14528
United Kingdom Atomic Energy Authority,United Kingdom Atomic Energy Authority,10/10/2015,RAIL TRAVEL,FUSION,EMPLOYEE EXPENSES,100783639,12.91,CUL14529
United Kingdom Atomic Energy Authority,United Kingdom Atomic Energy Authority,10/10/2015,RAIL TRAVEL,FUSION,EMPLOYEE EXPENSES,100783667,87.00,CUL14530
United Kingdom Atomic Energy Authority,United Kingdom Atomic Energy Authority,10/10/2015,RAIL TRAVEL,FUSION,EMPLOYEE EXPENSES,100783667,1.11,CUL14531
United Kingdom Atomic Energy Authority,United Kingdom Atomic Energy Authority,17/10/2015,RAIL TRAVEL,FUSION,EMPLOYEE EXPENSES,100783801,44.18,CUL14532
United Kingdom Atomic Energy Authority,United Kingdom Atomic Energy Authority,24/10/2015,RAIL TRAVEL,FUSION,EMPLOYEE EXPENSES,100785798,3.26,CUL14533
United Kingdom Atomic Energy Authority,United Kingdom Atomic Energy Authority,24/10/2015,RAIL TRAVEL,FUSION,EMPLOYEE EXPENSES,100785822,37.58,CUL14534
United Kingdom Atomic Energy Authority,United Kingdom Atomic Energy Authority,02/10/2015,ROAD TRAVEL,FUSION,EMPLOYEE EXPENSES,100783570,14.50,CUL14535
United Kingdom Atomic Energy Authority,United Kingdom Atomic Energy Authority,02/10/2015,ROAD TRAVEL,FUSION,EMPLOYEE EXPENSES,100783585,23.00,CUL14536
United Kingdom Atomic Energy Authority,United Kingdom Atomic Energy Authority,02/10/2015,ROAD TRAVEL,FUSION,EMPLOYEE EXPENSES,100783585,21.68,CUL14537
United Kingdom Atomic Energy Authority,United Kingdom Atomic Energy Authority,02/10/2015,ROAD TRAVEL,FUSION,EMPLOYEE EXPENSES,100783597,32.30,CUL14538
United Kingdom Atomic Energy Authority,United Kingdom Atomic Energy Authority,10/10/2015,ROAD TRAVEL,FUSION,EMPLOYEE EXPENSES,100783667,2.97,CUL14539
United Kingdom Atomic Energy Authority,United Kingdom Atomic Energy Authority,17/10/2015,ROAD TRAVEL,FUSION,EMPLOYEE EXPENSES,100783801,23.00,CUL14540
United Kingdom Atomic Energy Authority,United Kingdom Atomic Energy Authority,17/10/2015,ROAD TRAVEL,FUSION,EMPLOYEE EXPENSES,100783801,1.91,CUL14541
United Kingdom Atomic Energy Authority,United Kingdom Atomic Energy Authority,24/10/2015,ROAD TRAVEL,FUSION,EMPLOYEE EXPENSES,100785807,26.10,CUL14542
United Kingdom Atomic Energy Authority,United Kingdom Atomic Energy Authority,24/10/2015,ROAD TRAVEL,FUSION,EMPLOYEE EXPENSES,100785807,3.83,CUL14543
United Kingdom Atomic Energy Authority,United Kingdom Atomic Energy Authority,24/10/2015,ROAD TRAVEL,FUSION,EMPLOYEE EXPENSES,100785822,31.10,CUL14544
United Kingdom Atomic Energy Authority,United Kingdom Atomic Energy Authority,02/10/2015,OTHER EMPLOYEE EXPENSES,FUSION,EMPLOYEE EXPENSES,100783579,3.00,CUL14545
United Kingdom Atomic Energy Authority,United Kingdom Atomic Energy Authority,10/10/2015,OTHER EMPLOYEE EXPENSES,FUSION,EMPLOYEE EXPENSES,100783640,3.99,CUL14546
United Kingdom Atomic Energy Authority,United Kingdom Atomic Energy Authority,24/10/2015,OTHER EMPLOYEE EXPENSES,FUSION,EMPLOYEE EXPENSES,100785806,7.99,CUL14547
United Kingdom Atomic Energy Authority,United Kingdom Atomic Energy Authority,24/10/2015,OTHER EMPLOYEE EXPENSES,FUSION,EMPLOYEE EXPENSES,100785822,24.00,CUL14548
United Kingdom Atomic Energy Authority,United Kingdom Atomic Energy Authority,17/10/2015,PROFESSIONAL SUBSCRIPTION,FUSION,EMPLOYEE EXPENSES,100783822,50.00,CUL14549
United Kingdom Atomic Energy Authority,United Kingdom Atomic Energy Authority,30/09/2015,PROFESSIONAL SERVICES,FUSION,CELTECH CONSULTANCY LTD,5100326742,350.00,CUL14550
United Kingdom Atomic Energy Authority,United Kingdom Atomic Energy Authority,07/10/2015,BOOKS & PUBLICATIONS,FUSION,IOP Publishing Ltd - EUR,5100327296,"1,406.24",CUL14551
United Kingdom Atomic Energy Authority,United Kingdom Atomic Energy Authority,05/10/2015,CONFERENCES,FUSION,WHITE HART HOTEL,5100327337,65.00,CUL14552
United Kingdom Atomic Energy Authority,United Kingdom Atomic Energy Authority,12/10/2015,CONFERENCES,FUSION,WHITE HART HOTEL,5100327602,421.87,CUL14553
United Kingdom Atomic Energy Authority,United Kingdom Atomic Energy Authority,14/10/2015,BOOKS & PUBLICATIONS,FUSION,IOP Publishing Ltd - EUR,5100327604,"1,593.74",CUL14554
United Kingdom Atomic Energy Authority,United Kingdom Atomic Energy Authority,14/10/2015,BOOKS & PUBLICATIONS,FUSION,IOP Publishing Ltd - EUR,5100327684,"2,191.99",
United Kingdom Atomic Energy Authority,United Kingdom Atomic Energy Authority,14/10/2015,BOOKS & PUBLICATIONS,FUSION,IOP Publishing Ltd - EUR,5100327685,"1,699.99",
United Kingdom Atomic Energy Authority,United Kingdom Atomic Energy Authority,02/10/2015,BOOKS & PUBLICATIONS,FUSION,Copyright Clearance Centre,1900061141," 1,781.09",cul14523
United Kingdom Atomic Energy Authority,United Kingdom Atomic Energy Authority,16/10/2015,TRAVEL,FUSION,VISITOR EXPENSES,1900061158, 360.75,cul14540
United Kingdom Atomic Energy Authority,United Kingdom Atomic Energy Authority,02/10/2015,EFDA TRAVEL EXPENSES,FUSION,EMPLOYEE EXPENSES,100783576,138.91,
United Kingdom Atomic Energy Authority,United Kingdom Atomic Energy Authority,02/10/2015,EFDA TRAVEL EXPENSES,FUSION,EMPLOYEE EXPENSES,100783577,19.00,
United Kingdom Atomic Energy Authority,United Kingdom Atomic Energy Authority,02/10/2015,EFDA TRAVEL EXPENSES,FUSION,EMPLOYEE EXPENSES,100783580,70.24,
United Kingdom Atomic Energy Authority,United Kingdom Atomic Energy Authority,02/10/2015,EFDA TRAVEL EXPENSES,FUSION,EMPLOYEE EXPENSES,100783582,240.19,
United Kingdom Atomic Energy Authority,United Kingdom Atomic Energy Authority,02/10/2015,EFDA TRAVEL EXPENSES,FUSION,EMPLOYEE EXPENSES,100783583,691.46,
United Kingdom Atomic Energy Authority,United Kingdom Atomic Energy Authority,02/10/2015,EFDA TRAVEL EXPENSES,FUSION,EMPLOYEE EXPENSES,100783584,335.34,
United Kingdom Atomic Energy Authority,United Kingdom Atomic Energy Authority,10/10/2015,EFDA TRAVEL EXPENSES,FUSION,EMPLOYEE EXPENSES,100783646,124.54,
United Kingdom Atomic Energy Authority,United Kingdom Atomic Energy Authority,10/10/2015,EFDA TRAVEL EXPENSES,FUSION,EMPLOYEE EXPENSES,100783647,14.68,
United Kingdom Atomic Energy Authority,United Kingdom Atomic Energy Authority,10/10/2015,EFDA TRAVEL EXPENSES,FUSION,EMPLOYEE EXPENSES,100783648,147.26,
United Kingdom Atomic Energy Authority,United Kingdom Atomic Energy Authority,10/10/2015,EFDA TRAVEL EXPENSES,FUSION,EMPLOYEE EXPENSES,100783650,278.50,
United Kingdom Atomic Energy Authority,United Kingdom Atomic Energy Authority,17/10/2015,EFDA TRAVEL EXPENSES,FUSION,EMPLOYEE EXPENSES,100783795,153.20,
United Kingdom Atomic Energy Authority,United Kingdom Atomic Energy Authority,17/10/2015,EFDA TRAVEL EXPENSES,FUSION,EMPLOYEE EXPENSES,100783797,405.25,
United Kingdom Atomic Energy Authority,United Kingdom Atomic Energy Authority,24/10/2015,EFDA TRAVEL EXPENSES,FUSION,EMPLOYEE EXPENSES,100785808,562.71,
United Kingdom Atomic Energy Authority,United Kingdom Atomic Energy Authority,24/10/2015,EFDA TRAVEL EXPENSES,FUSION,EMPLOYEE EXPENSES,100785811,491.11,
United Kingdom Atomic Energy Authority,United Kingdom Atomic Energy Authority,24/10/2015,EFDA TRAVEL EXPENSES,FUSION,EMPLOYEE EXPENSES,100785812,29.00,
United Kingdom Atomic Energy Authority,United Kingdom Atomic Energy Authority,28/09/2015,BUILDING REPAIRS,PROPERTY,KNOWLES & SONS (OXFORD) LTD,5100326305,"59,150.76",
United Kingdom Atomic Energy Authority,United Kingdom Atomic Energy Authority,28/09/2015,BUILDING REPAIRS,PROPERTY,KNOWLES & SONS (OXFORD) LTD,5100326306,"2,570.47",
United Kingdom Atomic Energy Authority,United Kingdom Atomic Energy Authority,28/09/2015,BUILDING REPAIRS,PROPERTY,KNOWLES & SONS (OXFORD) LTD,5100327147,"-24,383.58",
United Kingdom Atomic Energy Authority,United Kingdom Atomic Energy Authority,28/09/2015,BUILDING REPAIRS,PROPERTY,KNOWLES & SONS (OXFORD) LTD,5100327149,"-1,544.08",
United Kingdom Atomic Energy Authority,United Kingdom Atomic Energy Authority,05/10/2015,SECURITY & EMERGENCY,PROPERTY,RELIANCE SECURITY GROUP PLC,5100327267,-662.08,
United Kingdom Atomic Energy Authority,United Kingdom Atomic Energy Authority,05/10/2015,SECURITY & EMERGENCY,PROPERTY,RELIANCE SECURITY GROUP PLC,5100327492,"89,051.66",
United Kingdom Atomic Energy Authority,United Kingdom Atomic Energy Authority,19/10/2015,SOFTWARE,PROPERTY,SPIDEX SOFTWARE LTD,5100327581,334.40,
United Kingdom Atomic Energy Authority,United Kingdom Atomic Energy Authority,12/10/2015,BUILDING REPAIRS,PROPERTY,KNOWLES & SONS (OXFORD) LTD,5100327643,-965.25,
United Kingdom Atomic Energy Authority,United Kingdom Atomic Energy Authority,21/10/2015,CONSUMABLES,PROPERTY,ABLOY SECURITY,5100327962,302.40,
United Kingdom Atomic Energy Authority,United Kingdom Atomic Energy Authority,28/09/2015,BUILDING REPAIRS,PROPERTY,LORNE STEWART PLC,5100326518,"7,159.68",
United Kingdom Atomic Energy Authority,United Kingdom Atomic Energy Authority,28/09/2015,BUILDING REPAIRS,PROPERTY,LORNE STEWART PLC,5100326520,435.15,
United Kingdom Atomic Energy Authority,United Kingdom Atomic Energy Authority,12/10/2015,SITE INFRASTRUCTURE,PROPERTY,KINGDOM SIGNS LTD,5100327521,632.60,
United Kingdom Atomic Energy Authority,United Kingdom Atomic Energy Authority,12/10/2015,BUILDING REPAIRS,PROPERTY,KNOWLES & SONS (OXFORD) LTD,5100327640,494.42,
United Kingdom Atomic Energy Authority,United Kingdom Atomic Energy Authority,12/10/2015,BUILDING REPAIRS,PROPERTY,KNOWLES & SONS (OXFORD) LTD,5100327641,322.19,
United Kingdom Atomic Energy Authority,United Kingdom Atomic Energy Authority,19/10/2015,BUILDING REPAIRS,PROPERTY,LORNE STEWART PLC,5100328039,"1,094.40",
United Kingdom Atomic Energy Authority,United Kingdom Atomic Energy Authority,21/10/2015,LEGAL FEES,PROPERTY,MORGAN COLE,5100328051,777.00,
United Kingdom Atomic Energy Authority,United Kingdom Atomic Energy Authority,21/10/2015,LEGAL FEES,PROPERTY,MORGAN COLE,5100328269,6.00,
United Kingdom Atomic Energy Authority,United Kingdom Atomic Energy Authority,28/09/2015,BUILDING REPAIRS,PROPERTY,LORNE STEWART PLC,5100326498,"12,217.38",
United Kingdom Atomic Energy Authority,United Kingdom Atomic Energy Authority,28/09/2015,BUILDING REPAIRS,PROPERTY,LORNE STEWART PLC,5100326499,"3,474.78",
United Kingdom Atomic Energy Authority,United Kingdom Atomic Energy Authority,28/09/2015,BUILDING REPAIRS,PROPERTY,LORNE STEWART PLC,5100326503,700.85,
United Kingdom Atomic Energy Authority,United Kingdom Atomic Energy Authority,28/09/2015,BUILDING REPAIRS,PROPERTY,LORNE STEWART PLC,5100326504,350.43,
United Kingdom Atomic Energy Authority,United Kingdom Atomic Energy Authority,28/09/2015,BUILDING REPAIRS,PROPERTY,LORNE STEWART PLC,5100326505,"2,519.05",
United Kingdom Atomic Energy Authority,United Kingdom Atomic Energy Authority,28/09/2015,BUILDING REPAIRS,PROPERTY,LORNE STEWART PLC,5100326511,"15,826.18",
United Kingdom Atomic Energy Authority,United Kingdom Atomic Energy Authority,28/09/2015,BUILDING REPAIRS,PROPERTY,LORNE STEWART PLC,5100326514,191.10,
United Kingdom Atomic Energy Authority,United Kingdom Atomic Energy Authority,28/09/2015,BUILDING REPAIRS,PROPERTY,LORNE STEWART PLC,5100326521,"1,003.97",
United Kingdom Atomic Energy Authority,United Kingdom Atomic Energy Authority,28/09/2015,BUILDING REPAIRS,PROPERTY,LORNE STEWART PLC,5100326525,562.07,
United Kingdom Atomic Energy Authority,United Kingdom Atomic Energy Authority,28/09/2015,SECURITY & EMERGENCY,PROPERTY,TRINITY PROTETION SYSTEMS,5100326738,95.00,
United Kingdom Atomic Energy Authority,United Kingdom Atomic Energy Authority,28/09/2015,SECURITY & EMERGENCY,PROPERTY,TRINITY PROTETION SYSTEMS,5100327173,-38.75,
United Kingdom Atomic Energy Authority,United Kingdom Atomic Energy Authority,05/10/2015,MATERIALS & SPARES,PROPERTY,INSULATION CONTRACTING SERVICES,5100327298,810.32,
United Kingdom Atomic Energy Authority,United Kingdom Atomic Energy Authority,07/10/2015,SECURITY & EMERGENCY,PROPERTY,TRINITY PROTETION SYSTEMS,5100327442,56.25,
United Kingdom Atomic Energy Authority,United Kingdom Atomic Energy Authority,21/10/2015,SECURITY & EMERGENCY,PROPERTY,TRINITY PROTETION SYSTEMS,5100327443,225.00,
United Kingdom Atomic Energy Authority,United Kingdom Atomic Energy Authority,05/10/2015,SECURITY & EMERGENCY,PROPERTY,TRINITY PROTETION SYSTEMS,5100327491,"1,826.94",
United Kingdom Atomic Energy Authority,United Kingdom Atomic Energy Authority,12/10/2015,BUILDING REPAIRS,PROPERTY,KNOWLES & SONS (OXFORD) LTD,5100327606,205.03,
United Kingdom Atomic Energy Authority,United Kingdom Atomic Energy Authority,12/10/2015,BUILDING REPAIRS,PROPERTY,KNOWLES & SONS (OXFORD) LTD,5100327607,"-7,012.96",
United Kingdom Atomic Energy Authority,United Kingdom Atomic Energy Authority,12/10/2015,BUILDING REPAIRS,PROPERTY,KNOWLES & SONS (OXFORD) LTD,5100327608,"7,012.96",
United Kingdom Atomic Energy Authority,United Kingdom Atomic Energy Authority,12/10/2015,BUILDING REPAIRS,PROPERTY,KNOWLES & SONS (OXFORD) LTD,5100327616,178.82,
United Kingdom Atomic Energy Authority,United Kingdom Atomic Energy Authority,12/10/2015,BUILDING REPAIRS,PROPERTY,KNOWLES & SONS (OXFORD) LTD,5100327620,60.08,
United Kingdom Atomic Energy Authority,United Kingdom Atomic Energy Authority,12/10/2015,BUILDING REPAIRS,PROPERTY,KNOWLES & SONS (OXFORD) LTD,5100327621,168.77,
